Workbook

Sheet IEA Data
M2: kg | N2: 33.33 | O2: kw | Q2: kgy | R2: 1000 | S2: 1000
N3: 0.64 | Q3: eff | R3: =N4 -> 52.078125 | S3: =R25 -> 0.1496402976
N4: =N2/N3 -> 52.078125 | O4: kw/kg | Q4: kwh/mmbtu | R4: =R2*R3 -> 52078.125 | S4: =S2*S3 -> 149.6402976
Q5: usd/kwh | R5: 0.07 | S5: 3
Q6: USD for eng | R6: =R4*R5 -> 3645.46875 | S6: =S5*S4 -> 448.9208929
M22: H2 kWh/kg | N22: kwh/kg | O22: 33.33
M23: Conversion | N23: BTU/kWh | O23: 3412.14
M24: H2 BTU/kg | N24: BTU/kWh | O24: =O22*O23 -> 113726.6262
M25: H2 MMBTU/kg | N25: MMBTU/kWh | O25: =O24/1000000 -> 0.1137266262 | Q25: 0.76 | R25: =O25/Q25 -> 0.1496402976

Sheet Simple Analysis
F1: Electrolyzer | G1: Grey Hydrogen | H1: Blue Hydrogen | N1: Electrolyzer | O1: Grey Hydrogen | P1: Blue Hydrogen
B2: Energy Conversion | K2: Annual Production Required | M2: kgy | N2: 1000000 | O2: 1000000 | P2: 1000000
D3: kWh/kg | F3: 33.33 | G3: 33.33 | H3: 33.33 | K3: Capacity Factor | M3: % | N3: 0.6 | O3: 0.9 | P3: 0.9
D4: MMBTU/kg | F4: ='IEA Data'!O25 -> 0.1137266262 | G4: =F4 -> 0.1137266262 | H4: =G4 -> 0.1137266262 | K4: Hours of Production | M4: Hours | N4: =N3*8760 -> 5256 | O4: =O3*8760 -> 7884 | P4: 7884
K5: Required Hourly Capacity | M5: kgh | N5: =N2/N4 -> 190.2587519 | O5: =O2/O4 -> 126.8391679 | P5: 126.8391679
D6: Efficiency | F6: 0.64 | G6: 0.76 | H6: 0.69
D7: kWh/kg | F7: =F3/F6 -> 52.078125 | G7: =G3/G6 -> 43.85526316 | H7: 48.30434783 | K7: Capacity of Electolyzer | M7: kW H2 | N7: =N5*F3 -> 6341.324201 | O7: =O5*G3 -> 4227.549467 | P7: =P5*H3 -> 4227.549467
D8: MMBTU/kg | F8: =F4/F6 -> 0.1776978534 | G8: =G4/G6 -> 0.1496402976 | H8: 0.1648211974 | K8: Capacity of Electolyzer | M8: kW e | N8: =N5*F7 -> 9908.319064 | O8: =O5*G7 -> 5562.565089 | P8: 6126.883286
D10: Energy Cost - USD/kWh or USD/MMBTU | F10: 0.04 | G10: 3 | H10: =G10 -> 3 | K10: Cost/kWe | M10: USD/kWe | N10: 900 | O10: =O12/O8 -> 691.6 | P10: =P12/P8 -> 1159.2
D11: Energy Cost - USD/kg | F11: =F10*F7 -> 2.083125 | G11: =G10*G8 -> 0.4489208929 | H11: =H10*H8 -> 0.4944635922 | K11: Cost/kW H2 | M11: USD/kW H2 | N11: =N12/N7 -> 1406.25 | O11: 910 | P11: 1680
K12: Total Capital Cost | M12: USD | N12: =N10*N8 -> 8917487.158 | O12: =O11*O7 -> 3847070.015 | P12: =P11*P7 -> 7102283.105
D13: kg CO2/kg H2 (at Plant) | F13: 0 | G13: 8.9 | H13: =G13 -> 8.9
D14: Recovery | H14: 0.9 | K14: Asset Life | M14: Years | N14: 25 | O14: 30 | P14: 30
D15: Net kg CO2/kg H2 | F15: =F13*(1-F14) -> 0 | G15: =G13*(1-G14) -> 8.9 | H15: 0.89 | K15: Project IRR | M15: % | N15: =F21 -> 0.05 | O15: =G21 -> 0.05 | P15: 0.05
D16: Sequestered CO2/kg H2 | H16: =G15-H15 -> 8.01 | K16: Capital Recovery | M16: USD/yr | N16: =PMT(N15,N14,-N12) -> 632717.6268 | O16: =PMT(O15,O14,-O12) -> 250257.4253 | P16: 462013.7083
K17: Capital Recovery | M17: USD/hour | N17: =N16/N4 -> 120.380066 | O17: =O16/O4 -> 31.7424436 | P17: 58.60143434
D18: PTC/45Q Incentive | F18: 3 | G18: 0 | H18: 85 | K18: Capital Recovery | M18: USD/kg | N18: =N16/N2 -> 0.6327176268 | O18: =O16/O2 -> 0.2502574253 | P18: 0.4620137083
D19: PTC/45Q Incentive Period | F19: 10 | H19: 12
K20: O&M Expense | M20: % Cap Exp | N20: 0.015 | O20: 0.047 | P20: 0.03
D21: Pre-tax Project IRR Target | F21: 0.05 | G21: =F21 -> 0.05 | H21: =G21 -> 0.05 | K21: Total O&M | M21: USD/yr | N21: =N20*N12 -> 133762.3074 | O21: =O20*O12 -> 180812.2907 | P21: 213068.4932
D22: Life of Project | F22: 25 | G22: 30 | H22: 30 | K22: O&M per kg | M22: USdD/kg | N22: =N21/N2 -> 0.1337623074 | O22: =O21/O2 -> 0.1808122907 | P22: 0.2130684932
D24: PV of ITC | F24: =PV(F21,F19,-F18) -> 23.16520479 | H24: =PV(H21,H19,-H18) -> 753.3763891 | K24: Total Non-Energy Cost | M24: USD/kg | N24: =N22+N18 -> 0.7664799341 | O24: =O22+O18 -> 0.4310697161 | P24: 0.6750822015
D25: Levelized Value of PTC per kg/45Q per Ton | F25: =PMT(F21,F22,-F24) -> 1.643628204 | H25: =PMT(H21,H22,-H24) -> 49.00821527
D26: Value of Sequestered Savings/kg | G26: =G16*G25/1000 -> 0 | H26: =H16*H25/1000 -> 0.3925558043 | K26: Energy Cost Raw | M26: USD/kg | N26: =F11 -> 2.083125 | O26: =G11 -> 0.4489208929 | P26: 0.4944635922
K27: Energy Cost - Incentive | M27: USD/kg | N27: =F29 -> 0.4394967965 | O27: =G29 -> 0.4489208929 | P27: 0.1019077879
D28: Total Energy Cost No-Incentive | F28: =F11 -> 2.083125 | G28: =G11 -> 0.4489208929 | H28: 0.4944635922 | K28: Energy Cost - CO2 Cost | M28: USD/kg | N28: =F33 -> 2.083125 | O28: =G33 -> 1.205420893 | P28: 0.5701135922
D29: Total Cost with Incentive | F29: =F28-F25 -> 0.4394967965 | G29: =G28 -> 0.4489208929 | H29: =H28-H26 -> 0.1019077879
K30: LCOH Cost Raw | M30: USD/kg | N30: =N26+N$22+N$18 -> 2.849604934 | O30: =O26+O$22+O$18 -> 0.879990609 | P30: 1.169545794
D31: Cost of CO2/kg | G31: =85/1000 -> 0.085 | H31: =85/1000 -> 0.085 | K31: LCOH - Incentive | M31: USD/kg | N31: =N27+N$22+N$18 -> 1.205976731 | O31: 0.879990609 | P31: 0.7769899894
D32: Total Cost of CO2/kg | F32: =F31*F15 -> 0 | G32: =G31*G15 -> 0.7565 | H32: =H31*H15 -> 0.07565 | K32: LCOH - CO2 Cost | M32: USD/kg | N32: 2.849604934 | O32: 1.636490609 | P32: 1.245195794
D33: Total Energy Cost with CO2 Cost | F33: =F28+F32 -> 2.083125 | G33: =G28+G32 -> 1.205420893 | H33: 0.5701135922

Sheet More Detailed
F1: =INDEX(H1:J1,E$2) -> Electrolyzer | H1: Electrolyzer | I1: Grey Hydrogen | J1: Blue Hydrogen | P1: =INDEX(R1:T1,$E$2) -> Electrolyzer | R1: Electrolyzer | S1: Grey Hydrogen | T1: Blue Hydrogen
B2: Scenario | E2: 1
B4: Energy Conversion | M4: Annual Production Required | O4: kgy | P4: =INDEX(R4:T4,$E$2) -> 1000000 | R4: 1000000 | S4: 1000000 | T4: 1000000
D5: Life of Project | F5: =INDEX(H5:J5,E$2) -> 38 | H5: =H7 -> 38 | I5: 30 | J5: 30 | M5: Capacity Factor | O5: % | P5: =INDEX(R5:T5,$E$2) -> 0.3 | R5: 0.3 | S5: 0.9 | T5: 0.9
D6: Maximum Hours (Stack) | F6: =INDEX(H6:J6,E$2) -> 100000 | H6: 100000 | M6: Hours of Production | O6: Hours | P6: =INDEX(R6:T6,$E$2) -> 2628 | R6: =R5*8760 -> 2628 | S6: =S5*8760 -> 7884 | T6: 7884
H7: =ROUND(H6/(8760*R5),0) -> 38 | M7: Required Hourly Capacity | O7: kgh | P7: =INDEX(R7:T7,$E$2) -> 380.5175038 | R7: =R4/R6 -> 380.5175038 | S7: =S4/S6 -> 126.8391679 | T7: 126.8391679
D9: kWh/kg | F9: =INDEX(H9:J9,E$2) -> 33.33 | H9: 33.33 | I9: 33.33 | J9: 33.33 | M9: Capacity of Electolyzer | O9: kW H2 | P9: =INDEX(R9:T9,$E$2) -> 12682.6484 | R9: =R7*H9 -> 12682.6484 | S9: =S7*I9 -> 4227.549467 | T9: =T7*J9 -> 4227.549467
D10: MMBTU/kg | F10: =INDEX(H10:J10,E$2) -> 0.1137266262 | H10: ='IEA Data'!O25 -> 0.1137266262 | I10: =H10 -> 0.1137266262 | J10: =I10 -> 0.1137266262 | M10: Capacity of Electolyzer | O10: kW e | P10: =INDEX(R10:T10,$E$2) -> 19816.63813 | R10: =R7*H13 -> 19816.63813 | S10: =S7*I13 -> 5562.565089 | T10: =T7*J13 -> 6126.883286
D12: Efficiency | F12: =INDEX(H12:J12,E$2) -> 0.64 | H12: 0.64 | I12: 0.76 | J12: 0.69 | M12: Cost/kWe | O12: USD/kWe | P12: =INDEX(R12:T12,$E$2) -> 900 | R12: 900 | S12: =S14/S10 -> 691.6 | T12: =T14/T10 -> 1159.2
D13: kWh/kg | F13: =INDEX(H13:J13,E$2) -> 52.078125 | H13: =H9/H12 -> 52.078125 | I13: =I9/I12 -> 43.85526316 | J13: 48.30434783 | M13: Cost/kW H2 | O13: USD/kW H2 | P13: =INDEX(R13:T13,$E$2) -> 1406.25 | R13: =R14/R9 -> 1406.25 | S13: 910 | T13: 1680
D14: MMBTU/kg | F14: =INDEX(H14:J14,E$2) -> 0.1776978534 | H14: =H10/H12 -> 0.1776978534 | I14: =I10/I12 -> 0.1496402976 | J14: 0.1648211974 | M14: Total Capital Cost | O14: USD | P14: =INDEX(R14:T14,$E$2) -> 17834974.32 | R14: =R12*R10 -> 17834974.32 | S14: =S13*S9 -> 3847070.015 | T14: =T13*T9 -> 7102283.105
D16: Energy Cost - USD/kWh or USD/MMBTU | F16: =INDEX(H16:J16,E$2) -> 0.025 | H16: 0.025 | I16: 5 | J16: =I16 -> 5 | M16: Asset Life | O16: Years | P16: =INDEX(R16:T16,$E$2) -> 38 | R16: =H5 -> 38 | S16: 30 | T16: 30
D17: Energy Cost - USD/kg | F17: =INDEX(H17:J17,E$2) -> 1.301953125 | H17: =H16*H13 -> 1.301953125 | I17: =I16*I14 -> 0.7482014882 | J17: =J16*J14 -> 0.824105987 | M17: Project IRR | O17: % | P17: =INDEX(R17:T17,$E$2) -> 0.05 | R17: =H27 -> 0.05 | S17: =I27 -> 0.05 | T17: =J27 -> 0.05
M18: Capital Recovery | O18: USD/yr | P18: =INDEX(R18:T18,$E$2) -> 1057332.687 | R18: =PMT(R17,R16,-R14) -> 1057332.687 | S18: =PMT(S17,S16,-S14) -> 250257.4253 | T18: 462013.7083
D19: kg CO2/kg H2 (at Plant) | F19: =INDEX(H19:J19,E$2) -> 0 | H19: 0 | I19: 8.9 | J19: =I19 -> 8.9 | M19: Capital Recovery | O19: USD/hour | P19: =INDEX(R19:T19,$E$2) -> 402.3335947 | R19: =R18/R6 -> 402.3335947 | S19: =S18/S6 -> 31.7424436 | T19: 58.60143434
D20: Recovery | F20: =INDEX(H20:J20,E$2) -> 0 | J20: 0.9 | M20: Capital Recovery | O20: USD/kg | P20: =INDEX(R20:T20,$E$2) -> 1.057332687 | R20: =R18/R4 -> 1.057332687 | S20: =S18/S4 -> 0.2502574253 | T20: 0.4620137083
D21: Net kg CO2/kg H2 | F21: =INDEX(H21:J21,E$2) -> 0 | H21: =H19*(1-H20) -> 0 | I21: =I19*(1-I20) -> 8.9 | J21: 0.89
D22: Sequestered CO2/kg H2 | F22: =INDEX(H22:J22,E$2) -> 0 | J22: =I21-J21 -> 8.01 | M22: O&M Expense | O22: % Cap Exp | P22: =INDEX(R22:T22,$E$2) -> 0.015 | R22: 0.015 | S22: 0.047 | T22: 0.03
M23: O&M Expense/kg Produced | O23: USD/kg | P23: =INDEX(R23:T23,$E$2) -> 0.08025738442 | R23: 0.08025738442 | S23: 0.1808122907 | T23: 0.2130684932
D24: PTC/45Q Incentive | F24: =INDEX(H24:J24,E$2) -> 3 | H24: 3 | I24: 0 | J24: 85 | M24: Total O&M | O24: USD/yr | P24: =INDEX(R24:T24,$E$2) -> 80257.38442 | R24: =R23*R4 -> 80257.38442 | S24: =S23*S4 -> 180812.2907 | T24: 213068.4932
D25: PTC/45Q Incentive Period | F25: =INDEX(H25:J25,E$2) -> 10 | H25: 10 | J25: 12 | M25: Inflation Factor for Nominal | O25: Factor | P25: =INDEX(R25:T25,$E$2) -> 1.345730946 | R25: =H38 -> 1.345730946 | S25: =I38 -> 1.284786689 | T25: =J38 -> 1.284786689
D27: Pre-tax Project IRR Target | F27: =INDEX(H27:J27,E$2) -> 0.05 | H27: 0.05 | I27: =H27 -> 0.05 | J27: =I27 -> 0.05 | M27: O&M per kg | O27: USdD/kg | P27: =INDEX(R27:T27,$E$2) -> 0.1080048458 | R27: =R24/R4*R25 -> 0.1080048458 | S27: =S24/S4*S25 -> 0.2323052243 | T27: 0.2737475638
D28: Inflation | F28: =INDEX(H28:J28,E$2) -> 0.02 | H28: 0.02 | I28: 0.02 | J28: 0.02
D29: Real IRR | F29: =INDEX(H29:J29,E$2) -> 0.02941176471 | H29: =(1+H27)/(1+H28)-1 -> 0.02941176471 | I29: =(1+I27)/(1+I28)-1 -> 0.02941176471 | J29: 0.02941176471 | M29: Total Non-Energy Cost | O29: USD/kg | P29: =INDEX(R29:T29,$E$2) -> 1.165337533 | R29: =R27+R20 -> 1.165337533 | S29: =S27+S20 -> 0.4825626496 | T29: =T27+T20 -> 0.7357612721
D31: Degradation of Energy | F31: =INDEX(H31:J31,E$2) -> 0 | H31: 0 | I31: 0 | J31: 0 | M31: Energy Cost Raw | O31: USD/kg | P31: =INDEX(R31:T31,$E$2) -> 1.75207861 | R31: =H47 -> 1.75207861 | S31: 0.9612793126 | T31: 1.058800402
D32: Nominal IRR with Degradation | F32: =INDEX(H32:J32,E$2) -> 0.05 | H32: =(1+H27)/(1-H31)-1 -> 0.05 | I32: =(1+I27)/(1-I31)-1 -> 0.05 | J32: 0.05 | M32: Energy Cost - Incentive | O32: USD/kg | P32: =INDEX(R32:T32,$E$2) -> 0.3787473236 | R32: 0.3787473236 | S32: 0.9612793126 | T32: 0.666244598
M33: Energy Cost - CO2 Cost | O33: USD/kg | P33: =INDEX(R33:T33,$E$2) -> 1.75207861 | R33: =H54 -> 1.75207861 | S33: =I54 -> 1.717779313 | T33: =J54 -> 1.134450402
D34: Real IRR with Degradation | F34: =INDEX(H34:J34,E$2) -> 0.02941176471 | H34: =(1+H29)/(1-H31)-1 -> 0.02941176471 | I34: =(1+I29)/(1-I31)-1 -> 0.02941176471 | J34: 0.02941176471
M35: LCOH Nominal Raw | O35: USD/kg | P35: =INDEX(R35:T35,$E$2) -> 2.917416143 | R35: =R31+R$27+R$20 -> 2.917416143 | S35: 1.443841962 | T35: 1.794561674
D36: PV of PTC/45Q - Nominal | F36: =INDEX(H36:J36,E$2) -> 23.16520479 | H36: =PV(H27,H25,-H24) -> 23.16520479 | J36: =PV(J27,J25,-J24) -> 753.3763891 | M36: LCOH - Nominal Incentive | O36: USD/kg | P36: =INDEX(R36:T36,$E$2) -> 1.544084856 | R36: 1.544084856 | S36: 1.443841962 | T36: 1.40200587
M37: LCOH - CO2 Cost | O37: USD/kg | P37: =INDEX(R37:T37,$E$2) -> 2.917416143 | R37: 2.917416143 | S37: 2.200341962 | T37: 1.870211674
D38: Inflation Factor for Nominal Expeses | F38: =INDEX(H38:J38,E$2) -> 1.345730946 | H38: =PV(H29,H5,-1)/PV(H27,H5,-1) -> 1.345730946 | I38: =PV(I29,I5,-1)/PV(I27,I5,-1) -> 1.284786689 | J38: =PV(J29,J5,-1)/PV(J27,J5,-1) -> 1.284786689
D39: Inflation and Degradation Factor for Nominal Expenses | F39: =INDEX(H39:J39,E$2) -> 1.345730946 | H39: =PV(H29,H5,-1)/PV(H32,H5,-1) -> 1.345730946 | I39: =PV(I29,I5,-1)/PV(I32,I5,-1) -> 1.284786689 | J39: 1.284786689 | M39: Real IRR | O39: % | P39: =INDEX(R39:T39,$E$2) -> 0.02941176471 | R39: =H29 -> 0.02941176471 | S39: =I29 -> 0.02941176471 | T39: 0.02941176471
D40: Real Degradation Facor for Expenses | F40: =INDEX(H40:J40,E$2) -> 1 | H40: =PV(H29,H5,-1)/PV(H34,H5,-1) -> 1 | I40: =PV(I29,I5,-1)/PV(I34,I5,-1) -> 1 | J40: 1 | M40: Real Capital Recovery | O40: USD | P40: =INDEX(R40:T40,$E$2) -> 785693.9682 | R40: =PMT(R39,H5,-R14) -> 785693.9682 | S40: =PMT(S39,I5,-S14) -> 194785.1947 | T40: 359603.4364
M41: Capital Recovery per kg | O41: USD/kg | P41: =INDEX(R41:T41,$E$2) -> 0.7856939682 | R41: =R40/R4 -> 0.7856939682 | S41: =S40/S4 -> 0.1947851947 | T41: 0.3596034364
D43: Levelized Value of PTC per kg/45Q per Ton | F43: =INDEX(H43:J43,E$2) -> 1.373331286 | H43: =PMT(H27,H5,-H36) -> 1.373331286 | J43: =PMT(J27,J5,-J36) -> 49.00821527 | M43: Real O&M | O43: USD/kg | P43: =INDEX(R43:T43,$E$2) -> 0.08025738442 | R43: =R23 -> 0.08025738442 | S43: =S23 -> 0.1808122907 | T43: 0.2130684932
D44: Value of Sequestered Savings/kg | I44: =I22*I43/1000 -> 0 | J44: =J22*J43/1000 -> 0.3925558043 | M44: Real Energy Cost | O44: USD/kg | P44: =INDEX(R44:T44,$E$2) -> 1.301953125 | R44: =H17 -> 1.301953125 | S44: =I17 -> 0.7482014882 | T44: 0.824105987
D46: Total Real Energy Cost No-Incentive | M46: LCOH Real Raw | O46: USD/kg | P46: =INDEX(R46:T46,$E$2) -> 2.167904478 | R46: =R41+R43+R44 -> 2.167904478 | S46: =S41+S43+S44 -> 1.123798974 | T46: 1.396777916
D47: Total Nominal Energy Cost No-Incentive | F47: =INDEX(H47:J47,E$2) -> 1.75207861 | H47: =H17*H38 -> 1.75207861 | I47: =I17*I38 -> 0.9612793126 | J47: =J17*J38 -> 1.058800402 | M47: LCOH - Real - Incentive | O47: USD/kg | P47: =INDEX(R47:T47,$E$2) -> 1.244698676 | R47: =R41+R43+R32 -> 1.244698676 | S47: =S41+S43+S32 -> 1.336876798 | T47: 1.238916528
D48: Total Cost with Incentive | F48: =INDEX(H48:J48,E$2) -> 0.3787473236 | H48: =H47-H43 -> 0.3787473236 | I48: =I47 -> 0.9612793126 | J48: =J47-J44 -> 0.666244598 | M48: LCOH - CO2 Cost | O48: USD/kg | P48: =INDEX(R48:T48,$E$2) -> 3.783367495 | R48: =R41+R43+R37 -> 3.783367495 | S48: =S41+S43+S37 -> 2.575939448 | T48: 2.442883604
D50: Real Cost of Energy with No Incentive | F50: =INDEX(H50:J50,E$2) -> 1.301953125 | H50: =H40*H17 -> 1.301953125 | I50: =I40*I17 -> 0.7482014882 | J50: 0.824105987
D52: Cost of CO2/kg | F52: =INDEX(H52:J52,E$2) -> 0 | I52: =85/1000 -> 0.085 | J52: =85/1000 -> 0.085
D53: Total Cost of CO2/kg | F53: =INDEX(H53:J53,E$2) -> 0 | H53: =H52*H21 -> 0 | I53: =I52*I21 -> 0.7565 | J53: =J52*J21 -> 0.07565
D54: Total Energy Cost with CO2 Cost | F54: =INDEX(H54:J54,E$2) -> 1.75207861 | H54: =H47+H53 -> 1.75207861 | I54: =I47+I53 -> 1.717779313 | J54: 1.134450402

Sheet FM Proof
E1: Nominal | F1: TRUE | G1: Incentive | H1: FALSE
B2: Period | I2: 0 | J2: 1 | K2: 2 | L2: 3 | M2: 4 | N2: 5 | O2: 6 | P2: 7 | Q2: 8 | R2: 9 | S2: 10 | T2: 11 | U2: 12 | V2: 13 | W2: 14 | X2: 15 | Y2: 16 | Z2: 17 | AA2: 18 | AB2: 19 | AC2: 20 | AD2: 21 | AE2: 22 | AF2: 23 | AG2: 24 | AH2: 25 | AI2: 26 | AJ2: 27 | AK2: 28 | AL2: 29 | AM2: 30 | AN2: 31 | AO2: 32 | AP2: 33 | AQ2: 34 | AR2: 35 | AS2: 36 | AT2: 37 | AU2: 38 | AV2: 39 | AW2: 40 | AX2: 40 | AY2: 40 | AZ2: 40 | BA2: 40 | BB2: 40 | BC2: 40 | BD2: 40 | BE2: 40 | BF2: 40 | BG2: 40 | BH2: 40 | BI2: 40 | BJ2: 40
D3: Construction | E3: Flag | F3: 0 | I3: =(I2=$F$3)*1 -> 1 | J3: 0 | K3: 0 | L3: 0 | M3: 0 | N3: 0 | O3: 0 | P3: 0 | Q3: 0 | R3: 0 | S3: 0 | T3: 0 | U3: 0 | V3: 0 | W3: 0 | X3: 0 | Y3: 0 | Z3: 0 | AA3: 0 | AB3: 0 | AC3: 0 | AD3: 0 | AE3: 0 | AF3: 0 | AG3: 0 | AH3: 0 | AI3: 0 | AJ3: 0 | AK3: 0 | AL3: 0 | AM3: 0 | AN3: 0 | AO3: 0 | AP3: 0 | AQ3: 0 | AR3: 0 | AS3: 0 | AT3: 0 | AU3: 0 | AV3: 0 | AW3: 0 | AX3: =(AX2=$F$3)*1 -> 0 | AY3: 0 | AZ3: 0 | BA3: 0 | BB3: 0 | BC3: 0 | BD3: 0 | BE3: 0 | BF3: 0 | BG3: 0 | BH3: 0 | BI3: 0 | BJ3: 0
D4: Operation | E4: Flag | F4: ='More Detailed'!F5 -> 38 | I4: =(AND(NOT(I3),I2<=$F$4))*1 -> 0 | J4: 1 | K4: 1 | L4: 1 | M4: 1 | N4: 1 | O4: 1 | P4: 1 | Q4: 1 | R4: 1 | S4: 1 | T4: 1 | U4: 1 | V4: 1 | W4: 1 | X4: 1 | Y4: 1 | Z4: 1 | AA4: 1 | AB4: 1 | AC4: 1 | AD4: 1 | AE4: 1 | AF4: 1 | AG4: 1 | AH4: 1 | AI4: 1 | AJ4: 1 | AK4: 1 | AL4: 1 | AM4: 1 | AN4: 1 | AO4: 1 | AP4: 1 | AQ4: 1 | AR4: 1 | AS4: 1 | AT4: 1 | AU4: 1 | AV4: 0 | AW4: 0 | AX4: =(AND(NOT(AX3),AX2<=$F$4))*1 -> 0 | AY4: 0 | AZ4: 0 | BA4: 0 | BB4: 0 | BC4: 0 | BD4: 0 | BE4: 0 | BF4: 0 | BG4: 0 | BH4: 0 | BI4: 0 | BJ4: 0
D5: PTC/45Q Term | E5: Flag | F5: ='More Detailed'!F25 -> 10 | I5: =(AND(NOT(I3),I2<=$F$5))*1 -> 0 | J5: =(AND(NOT(J3),J2<=$F$5))*1 -> 1 | K5: 1 | L5: 1 | M5: 1 | N5: 1 | O5: 1 | P5: 1 | Q5: 1 | R5: 1 | S5: 1 | T5: 0 | U5: 0 | V5: 0 | W5: 0 | X5: 0 | Y5: 0 | Z5: 0 | AA5: 0 | AB5: 0 | AC5: 0 | AD5: 0 | AE5: 0 | AF5: 0 | AG5: 0 | AH5: 0 | AI5: 0 | AJ5: 0 | AK5: 0 | AL5: 0 | AM5: 0 | AN5: 0 | AO5: 0 | AP5: 0 | AQ5: 0 | AR5: 0 | AS5: 0 | AT5: 0 | AU5: 0 | AV5: 0 | AW5: 0 | AX5: =(AND(NOT(AX3),AX2<=$F$5))*1 -> 0 | AY5: 0 | AZ5: 0 | BA5: 0 | BB5: 0 | BC5: 0 | BD5: 0 | BE5: 0 | BF5: 0 | BG5: 0 | BH5: 0 | BI5: 0 | BJ5: 0
B7: Production and Capacity
D8: Capacity | E8: kgy | F8: ='More Detailed'!P4 -> 1000000 | I8: =(IF(I4,I10/I9))*1 -> 0 | J8: =(IF(J4,J10/J9))*1 -> 3333333.333 | K8: 3333333.333 | L8: 3333333.333 | M8: 3333333.333 | N8: 3333333.333 | O8: 3333333.333 | P8: 3333333.333 | Q8: 3333333.333 | R8: 3333333.333 | S8: 3333333.333 | T8: 3333333.333 | U8: 3333333.333 | V8: 3333333.333 | W8: 3333333.333 | X8: 3333333.333 | Y8: 3333333.333 | Z8: 3333333.333 | AA8: 3333333.333 | AB8: 3333333.333 | AC8: 3333333.333 | AD8: 3333333.333 | AE8: 3333333.333 | AF8: 3333333.333 | AG8: 3333333.333 | AH8: 3333333.333 | AI8: 3333333.333 | AJ8: 3333333.333 | AK8: 3333333.333 | AL8: 3333333.333 | AM8: 3333333.333 | AN8: 3333333.333 | AO8: 3333333.333 | AP8: 3333333.333 | AQ8: 3333333.333 | AR8: 3333333.333 | AS8: 3333333.333 | AT8: 3333333.333 | AU8: 3333333.333 | AV8: 0 | AW8: 0 | AX8: 0 | AY8: 0 | AZ8: 0 | BA8: 0 | BB8: 0 | BC8: 0 | BD8: 0 | BE8: 0 | BF8: 0 | BG8: 0 | BH8: 0 | BI8: 0 | BJ8: 0
D9: Capacity Factor | E9: % | F9: ='More Detailed'!P5 -> 0.3 | I9: =$F$9*I4 -> 0 | J9: 0.3 | K9: 0.3 | L9: 0.3 | M9: 0.3 | N9: 0.3 | O9: 0.3 | P9: 0.3 | Q9: 0.3 | R9: 0.3 | S9: 0.3 | T9: 0.3 | U9: 0.3 | V9: 0.3 | W9: 0.3 | X9: 0.3 | Y9: 0.3 | Z9: 0.3 | AA9: 0.3 | AB9: 0.3 | AC9: 0.3 | AD9: 0.3 | AE9: 0.3 | AF9: 0.3 | AG9: 0.3 | AH9: 0.3 | AI9: 0.3 | AJ9: 0.3 | AK9: 0.3 | AL9: 0.3 | AM9: 0.3 | AN9: 0.3 | AO9: 0.3 | AP9: 0.3 | AQ9: 0.3 | AR9: 0.3 | AS9: 0.3 | AT9: 0.3 | AU9: 0.3 | AV9: 0 | AW9: 0 | AX9: =$F$9*AX4 -> 0 | AY9: 0 | AZ9: 0 | BA9: 0 | BB9: 0 | BC9: 0 | BD9: 0 | BE9: 0 | BF9: 0 | BG9: 0 | BH9: 0 | BI9: 0 | BJ9: 0
D10: Production | E10: kgy | F10: ='More Detailed'!P4 -> 1000000 | I10: =$F$10*I4 -> 0 | J10: =$F$10*J4 -> 1000000 | K10: 1000000 | L10: 1000000 | M10: 1000000 | N10: 1000000 | O10: 1000000 | P10: 1000000 | Q10: 1000000 | R10: 1000000 | S10: 1000000 | T10: 1000000 | U10: 1000000 | V10: 1000000 | W10: 1000000 | X10: 1000000 | Y10: 1000000 | Z10: 1000000 | AA10: 1000000 | AB10: 1000000 | AC10: 1000000 | AD10: 1000000 | AE10: 1000000 | AF10: 1000000 | AG10: 1000000 | AH10: 1000000 | AI10: 1000000 | AJ10: 1000000 | AK10: 1000000 | AL10: 1000000 | AM10: 1000000 | AN10: 1000000 | AO10: 1000000 | AP10: 1000000 | AQ10: 1000000 | AR10: 1000000 | AS10: 1000000 | AT10: 1000000 | AU10: 1000000 | AV10: 0 | AW10: 0 | AX10: 0 | AY10: 0 | AZ10: 0 | BA10: 0 | BB10: 0 | BC10: 0 | BD10: 0 | BE10: 0 | BF10: 0 | BG10: 0 | BH10: 0 | BI10: 0 | BJ10: 0
D12: Hourly Capacity | E12: kgh | F12: ='More Detailed'!P7 -> 380.5175038 | I12: =$F$12*I4 -> 0 | J12: 380.5175038 | K12: 380.5175038 | L12: 380.5175038 | M12: 380.5175038 | N12: 380.5175038 | O12: 380.5175038 | P12: 380.5175038 | Q12: 380.5175038 | R12: 380.5175038 | S12: 380.5175038 | T12: 380.5175038 | U12: 380.5175038 | V12: 380.5175038 | W12: 380.5175038 | X12: 380.5175038 | Y12: 380.5175038 | Z12: 380.5175038 | AA12: 380.5175038 | AB12: 380.5175038 | AC12: 380.5175038 | AD12: 380.5175038 | AE12: 380.5175038 | AF12: 380.5175038 | AG12: 380.5175038 | AH12: 380.5175038 | AI12: 380.5175038 | AJ12: 380.5175038 | AK12: 380.5175038 | AL12: 380.5175038 | AM12: 380.5175038 | AN12: 380.5175038 | AO12: 380.5175038 | AP12: 380.5175038 | AQ12: 380.5175038 | AR12: 380.5175038 | AS12: 380.5175038 | AT12: 380.5175038 | AU12: 380.5175038 | AV12: 0 | AW12: 0 | AX12: =$F$12*AX4 -> 0 | AY12: 0 | AZ12: 0 | BA12: 0 | BB12: 0 | BC12: 0 | BD12: 0 | BE12: 0 | BF12: 0 | BG12: 0 | BH12: 0 | BI12: 0 | BJ12: 0
D13: Capacity in kWe Input | E13: kWe | F13: ='More Detailed'!P9 -> 12682.6484 | I13: =$F$13*I4 -> 0 | J13: 12682.6484 | K13: 12682.6484 | L13: 12682.6484 | M13: 12682.6484 | N13: 12682.6484 | O13: 12682.6484 | P13: 12682.6484 | Q13: 12682.6484 | R13: 12682.6484 | S13: 12682.6484 | T13: 12682.6484 | U13: 12682.6484 | V13: 12682.6484 | W13: 12682.6484 | X13: 12682.6484 | Y13: 12682.6484 | Z13: 12682.6484 | AA13: 12682.6484 | AB13: 12682.6484 | AC13: 12682.6484 | AD13: 12682.6484 | AE13: 12682.6484 | AF13: 12682.6484 | AG13: 12682.6484 | AH13: 12682.6484 | AI13: 12682.6484 | AJ13: 12682.6484 | AK13: 12682.6484 | AL13: 12682.6484 | AM13: 12682.6484 | AN13: 12682.6484 | AO13: 12682.6484 | AP13: 12682.6484 | AQ13: 12682.6484 | AR13: 12682.6484 | AS13: 12682.6484 | AT13: 12682.6484 | AU13: 12682.6484 | AV13: 0 | AW13: 0 | AX13: =$F$13*AX4 -> 0 | AY13: 0 | AZ13: 0 | BA13: 0 | BB13: 0 | BC13: 0 | BD13: 0 | BE13: 0 | BF13: 0 | BG13: 0 | BH13: 0 | BI13: 0 | BJ13: 0
D14: Capacity in kW H2 Output | E14: kW H2 | F14: ='More Detailed'!P10 -> 19816.63813 | I14: =$F$14*I4 -> 0 | J14: 19816.63813 | K14: 19816.63813 | L14: 19816.63813 | M14: 19816.63813 | N14: 19816.63813 | O14: 19816.63813 | P14: 19816.63813 | Q14: 19816.63813 | R14: 19816.63813 | S14: 19816.63813 | T14: 19816.63813 | U14: 19816.63813 | V14: 19816.63813 | W14: 19816.63813 | X14: 19816.63813 | Y14: 19816.63813 | Z14: 19816.63813 | AA14: 19816.63813 | AB14: 19816.63813 | AC14: 19816.63813 | AD14: 19816.63813 | AE14: 19816.63813 | AF14: 19816.63813 | AG14: 19816.63813 | AH14: 19816.63813 | AI14: 19816.63813 | AJ14: 19816.63813 | AK14: 19816.63813 | AL14: 19816.63813 | AM14: 19816.63813 | AN14: 19816.63813 | AO14: 19816.63813 | AP14: 19816.63813 | AQ14: 19816.63813 | AR14: 19816.63813 | AS14: 19816.63813 | AT14: 19816.63813 | AU14: 19816.63813 | AV14: 0 | AW14: 0 | AX14: =$F$14*AX4 -> 0 | AY14: 0 | AZ14: 0 | BA14: 0 | BB14: 0 | BC14: 0 | BD14: 0 | BE14: 0 | BF14: 0 | BG14: 0 | BH14: 0 | BI14: 0 | BJ14: 0
D15: Total Energy kWe Input before Degradation | E15: kWe | I15: =I14*I9*8760 -> 0 | J15: =J14*J9*8760 -> 52078125 | K15: 52078125 | L15: 52078125 | M15: 52078125 | N15: 52078125 | O15: 52078125 | P15: 52078125 | Q15: 52078125 | R15: 52078125 | S15: 52078125 | T15: 52078125 | U15: 52078125 | V15: 52078125 | W15: 52078125 | X15: 52078125 | Y15: 52078125 | Z15: 52078125 | AA15: 52078125 | AB15: 52078125 | AC15: 52078125 | AD15: 52078125 | AE15: 52078125 | AF15: 52078125 | AG15: 52078125 | AH15: 52078125 | AI15: 52078125 | AJ15: 52078125 | AK15: 52078125 | AL15: 52078125 | AM15: 52078125 | AN15: 52078125 | AO15: 52078125 | AP15: 52078125 | AQ15: 52078125 | AR15: 52078125 | AS15: 52078125 | AT15: 52078125 | AU15: 52078125 | AV15: 0 | AW15: 0 | AX15: =AX14*AX9*8760 -> 0 | AY15: =AY14*AY9*8760 -> 0 | AZ15: =AZ14*AZ9*8760 -> 0 | BA15: =BA14*BA9*8760 -> 0 | BB15: =BB14*BB9*8760 -> 0 | BC15: =BC14*BC9*8760 -> 0 | BD15: =BD14*BD9*8760 -> 0 | BE15: =BE14*BE9*8760 -> 0 | BF15: =BF14*BF9*8760 -> 0 | BG15: =BG14*BG9*8760 -> 0 | BH15: =BH14*BH9*8760 -> 0 | BI15: =BI14*BI9*8760 -> 0 | BJ15: =BJ14*BJ9*8760 -> 0
B17: Indicies
D18: Inflation Index | E18: % | F18: ='More Detailed'!F28 -> 0.02 | H18: 1 | I18: =H18*(1+$F$18*I4) -> 1 | J18: 1.02 | K18: 1.0404 | L18: 1.061208 | M18: 1.08243216 | N18: 1.104080803 | O18: 1.126162419 | P18: 1.148685668 | Q18: 1.171659381 | R18: 1.195092569 | S18: 1.21899442 | T18: 1.243374308 | U18: 1.268241795 | V18: 1.29360663 | W18: 1.319478763 | X18: 1.345868338 | Y18: 1.372785705 | Z18: 1.400241419 | AA18: 1.428246248 | AB18: 1.456811173 | AC18: 1.485947396 | AD18: 1.515666344 | AE18: 1.545979671 | AF18: 1.576899264 | AG18: 1.608437249 | AH18: 1.640605994 | AI18: 1.673418114 | AJ18: 1.706886477 | AK18: 1.741024206 | AL18: 1.77584469 | AM18: 1.811361584 | AN18: 1.847588816 | AO18: 1.884540592 | AP18: 1.922231404 | AQ18: 1.960676032 | AR18: 1.999889553 | AS18: 2.039887344 | AT18: 2.080685091 | AU18: 2.122298792 | AV18: 2.122298792 | AW18: 2.122298792 | AX18: =AW18*(1+$F$18*AX4) -> 2.122298792 | AY18: 2.122298792 | AZ18: 2.122298792 | BA18: 2.122298792 | BB18: 2.122298792 | BC18: 2.122298792 | BD18: 2.122298792 | BE18: 2.122298792 | BF18: 2.122298792 | BG18: 2.122298792 | BH18: 2.122298792 | BI18: 2.122298792 | BJ18: 2.122298792
D19: Degradation Index | E19: % | F19: ='More Detailed'!F31 -> 0 | H19: 1 | I19: =H19*(1+$F$19*I4) -> 1 | J19: 1 | K19: 1 | L19: 1 | M19: 1 | N19: 1 | O19: 1 | P19: 1 | Q19: 1 | R19: 1 | S19: 1 | T19: 1 | U19: 1 | V19: 1 | W19: 1 | X19: 1 | Y19: 1 | Z19: 1 | AA19: 1 | AB19: 1 | AC19: 1 | AD19: 1 | AE19: 1 | AF19: 1 | AG19: 1 | AH19: 1 | AI19: 1 | AJ19: 1 | AK19: 1 | AL19: 1 | AM19: 1 | AN19: 1 | AO19: 1 | AP19: 1 | AQ19: 1 | AR19: 1 | AS19: 1 | AT19: 1 | AU19: 1 | AV19: 1 | AW19: 1 | AX19: =AW19*(1+$F$19*AX4) -> 1 | AY19: 1 | AZ19: 1 | BA19: 1 | BB19: 1 | BC19: 1 | BD19: 1 | BE19: 1 | BF19: 1 | BG19: 1 | BH19: 1 | BI19: 1 | BJ19: 1
B21: Cash Flow Components
D22: Total Capital Cost | E22: USD | F22: ='More Detailed'!P14 -> 17834974.32 | I22: =$F$22*I3 -> 17834974.32 | J22: 0 | K22: 0 | L22: 0 | M22: 0 | N22: 0 | O22: 0 | P22: 0 | Q22: 0 | R22: 0 | S22: 0 | T22: 0 | U22: 0 | V22: 0 | W22: 0 | X22: 0 | Y22: 0 | Z22: 0 | AA22: 0 | AB22: 0 | AC22: 0 | AD22: 0 | AE22: 0 | AF22: 0 | AG22: 0 | AH22: 0 | AI22: 0 | AJ22: 0 | AK22: 0 | AL22: 0 | AM22: 0 | AN22: 0 | AO22: 0 | AP22: 0 | AQ22: 0 | AR22: 0 | AS22: 0 | AT22: 0 | AU22: 0 | AV22: 0 | AW22: 0 | AX22: =$F$22*AX3 -> 0 | AY22: 0 | AZ22: 0 | BA22: 0 | BB22: 0 | BC22: 0 | BD22: 0 | BE22: 0 | BF22: 0 | BG22: 0 | BH22: 0 | BI22: 0 | BJ22: 0
D24: Energy Cost Before Inflation | E24: USD/kg | F24: ='More Detailed'!F17 -> 1.301953125 | I24: =$F$24*I4 -> 0 | J24: 1.301953125 | K24: 1.301953125 | L24: 1.301953125 | M24: 1.301953125 | N24: 1.301953125 | O24: 1.301953125 | P24: 1.301953125 | Q24: 1.301953125 | R24: 1.301953125 | S24: 1.301953125 | T24: 1.301953125 | U24: 1.301953125 | V24: 1.301953125 | W24: 1.301953125 | X24: 1.301953125 | Y24: 1.301953125 | Z24: 1.301953125 | AA24: 1.301953125 | AB24: 1.301953125 | AC24: 1.301953125 | AD24: 1.301953125 | AE24: 1.301953125 | AF24: 1.301953125 | AG24: 1.301953125 | AH24: 1.301953125 | AI24: 1.301953125 | AJ24: 1.301953125 | AK24: 1.301953125 | AL24: 1.301953125 | AM24: 1.301953125 | AN24: 1.301953125 | AO24: 1.301953125 | AP24: 1.301953125 | AQ24: 1.301953125 | AR24: 1.301953125 | AS24: 1.301953125 | AT24: 1.301953125 | AU24: 1.301953125 | AV24: 0 | AW24: 0 | AX24: =$F$24*AX4 -> 0 | AY24: 0 | AZ24: 0 | BA24: 0 | BB24: 0 | BC24: 0 | BD24: 0 | BE24: 0 | BF24: 0 | BG24: 0 | BH24: 0 | BI24: 0 | BJ24: 0
D25: Energy Cost After Inflation | E25: USD/kg | I25: =I24*I18 -> 0 | J25: 1.327992187 | K25: 1.354552031 | L25: 1.381643072 | M25: 1.409275933 | N25: 1.437461452 | O25: 1.466210681 | P25: 1.495534895 | Q25: 1.525445593 | R25: 1.555954504 | S25: 1.587073594 | T25: 1.618815066 | U25: 1.651191368 | V25: 1.684215195 | W25: 1.717899499 | X25: 1.752257489 | Y25: 1.787302639 | Z25: 1.823048691 | AA25: 1.859509665 | AB25: 1.896699859 | AC25: 1.934633856 | AD25: 1.973326533 | AE25: 2.012793064 | AF25: 2.053048925 | AG25: 2.094109903 | AH25: 2.135992101 | AI25: 2.178711943 | AJ25: 2.222286182 | AK25: 2.266731906 | AL25: 2.312066544 | AM25: 2.358307875 | AN25: 2.405474032 | AO25: 2.453583513 | AP25: 2.502655183 | AQ25: 2.552708287 | AR25: 2.603762453 | AS25: 2.655837702 | AT25: 2.708954456 | AU25: 2.763133545 | AV25: 0 | AW25: 0 | AX25: =AX24*AX18 -> 0 | AY25: 0 | AZ25: 0 | BA25: 0 | BB25: 0 | BC25: 0 | BD25: 0 | BE25: 0 | BF25: 0 | BG25: 0 | BH25: 0 | BI25: 0 | BJ25: 0
D26: Energy with Degradation | E26: kgy | I26: =I10*I19 -> 0 | J26: 1000000 | K26: 1000000 | L26: 1000000 | M26: 1000000 | N26: 1000000 | O26: 1000000 | P26: 1000000 | Q26: 1000000 | R26: 1000000 | S26: 1000000 | T26: 1000000 | U26: 1000000 | V26: 1000000 | W26: 1000000 | X26: 1000000 | Y26: 1000000 | Z26: 1000000 | AA26: 1000000 | AB26: 1000000 | AC26: 1000000 | AD26: 1000000 | AE26: 1000000 | AF26: 1000000 | AG26: 1000000 | AH26: 1000000 | AI26: 1000000 | AJ26: 1000000 | AK26: 1000000 | AL26: 1000000 | AM26: 1000000 | AN26: 1000000 | AO26: 1000000 | AP26: 1000000 | AQ26: 1000000 | AR26: 1000000 | AS26: 1000000 | AT26: 1000000 | AU26: 1000000 | AV26: 0 | AW26: 0 | AX26: =AX10*AX19 -> 0 | AY26: 0 | AZ26: 0 | BA26: 0 | BB26: 0 | BC26: 0 | BD26: 0 | BE26: 0 | BF26: 0 | BG26: 0 | BH26: 0 | BI26: 0 | BJ26: 0
D27: Cost of Energy Purchases | E27: USD | I27: =I25*I26 -> 0 | J27: 1327992.187 | K27: 1354552.031 | L27: 1381643.072 | M27: 1409275.933 | N27: 1437461.452 | O27: 1466210.681 | P27: 1495534.895 | Q27: 1525445.593 | R27: 1555954.504 | S27: 1587073.594 | T27: 1618815.066 | U27: 1651191.368 | V27: 1684215.195 | W27: 1717899.499 | X27: 1752257.489 | Y27: 1787302.639 | Z27: 1823048.691 | AA27: 1859509.665 | AB27: 1896699.859 | AC27: 1934633.856 | AD27: 1973326.533 | AE27: 2012793.064 | AF27: 2053048.925 | AG27: 2094109.903 | AH27: 2135992.101 | AI27: 2178711.943 | AJ27: 2222286.182 | AK27: 2266731.906 | AL27: 2312066.544 | AM27: 2358307.875 | AN27: 2405474.032 | AO27: 2453583.513 | AP27: 2502655.183 | AQ27: 2552708.287 | AR27: 2603762.453 | AS27: 2655837.702 | AT27: 2708954.456 | AU27: 2763133.545 | AV27: 0 | AW27: 0 | AX27: =AX25*AX26 -> 0 | AY27: 0 | AZ27: 0 | BA27: 0 | BB27: 0 | BC27: 0 | BD27: 0 | BE27: 0 | BF27: 0 | BG27: 0 | BH27: 0 | BI27: 0 | BJ27: 0
D29: Basic O&M Costs without Inflation | E29: USD/kg | F29: ='More Detailed'!P23 -> 0.08025738442 | I29: =$F$29 -> 0.08025738442 | J29: =$F$29 -> 0.08025738442 | K29: 0.08025738442 | L29: 0.08025738442 | M29: 0.08025738442 | N29: 0.08025738442 | O29: 0.08025738442 | P29: 0.08025738442 | Q29: 0.08025738442 | R29: 0.08025738442 | S29: 0.08025738442 | T29: 0.08025738442 | U29: 0.08025738442 | V29: 0.08025738442 | W29: 0.08025738442 | X29: 0.08025738442 | Y29: 0.08025738442 | Z29: 0.08025738442 | AA29: 0.08025738442 | AB29: 0.08025738442 | AC29: 0.08025738442 | AD29: 0.08025738442 | AE29: 0.08025738442 | AF29: 0.08025738442 | AG29: 0.08025738442 | AH29: 0.08025738442 | AI29: 0.08025738442 | AJ29: 0.08025738442 | AK29: 0.08025738442 | AL29: 0.08025738442 | AM29: 0.08025738442 | AN29: 0.08025738442 | AO29: 0.08025738442 | AP29: 0.08025738442 | AQ29: 0.08025738442 | AR29: 0.08025738442 | AS29: 0.08025738442 | AT29: 0.08025738442 | AU29: 0.08025738442 | AV29: 0.08025738442 | AW29: 0.08025738442 | AX29: 0.08025738442 | AY29: 0.08025738442 | AZ29: 0.08025738442 | BA29: 0.08025738442 | BB29: 0.08025738442 | BC29: 0.08025738442 | BD29: 0.08025738442 | BE29: 0.08025738442 | BF29: 0.08025738442 | BG29: 0.08025738442 | BH29: 0.08025738442 | BI29: 0.08025738442 | BJ29: 0.08025738442
D30: Basic O&M Costs without Inflation | E30: USD | F30: ='More Detailed'!P24 -> 80257.38442 | I30: =I29*I10 -> 0 | J30: =J29*J10 -> 80257.38442 | K30: 80257.38442 | L30: 80257.38442 | M30: 80257.38442 | N30: 80257.38442 | O30: 80257.38442 | P30: 80257.38442 | Q30: 80257.38442 | R30: 80257.38442 | S30: 80257.38442 | T30: 80257.38442 | U30: 80257.38442 | V30: 80257.38442 | W30: 80257.38442 | X30: 80257.38442 | Y30: 80257.38442 | Z30: 80257.38442 | AA30: 80257.38442 | AB30: 80257.38442 | AC30: 80257.38442 | AD30: 80257.38442 | AE30: 80257.38442 | AF30: 80257.38442 | AG30: 80257.38442 | AH30: 80257.38442 | AI30: 80257.38442 | AJ30: 80257.38442 | AK30: 80257.38442 | AL30: 80257.38442 | AM30: 80257.38442 | AN30: 80257.38442 | AO30: 80257.38442 | AP30: 80257.38442 | AQ30: 80257.38442 | AR30: 80257.38442 | AS30: 80257.38442 | AT30: 80257.38442 | AU30: 80257.38442 | AV30: 0 | AW30: 0 | AX30: 0 | AY30: 0 | AZ30: 0 | BA30: 0 | BB30: 0 | BC30: 0 | BD30: 0 | BE30: 0 | BF30: 0 | BG30: 0 | BH30: 0 | BI30: 0 | BJ30: 0
D31: Basic O&M Costs with Inflation | E31: USD | I31: =I30*I18 -> 0 | J31: 81862.53211 | K31: 83499.78275 | L31: 85169.7784 | M31: 86873.17397 | N31: 88610.63745 | O31: 90382.8502 | P31: 92190.5072 | Q31: 94034.31735 | R31: 95915.00369 | S31: 97833.30377 | T31: 99789.96984 | U31: 101785.7692 | V31: 103821.4846 | W31: 105897.9143 | X31: 108015.8726 | Y31: 110176.1901 | Z31: 112379.7139 | AA31: 114627.3081 | AB31: 116919.8543 | AC31: 119258.2514 | AD31: 121643.4164 | AE31: 124076.2847 | AF31: 126557.8104 | AG31: 129088.9666 | AH31: 131670.746 | AI31: 134304.1609 | AJ31: 136990.2441 | AK31: 139730.049 | AL31: 142524.65 | AM31: 145375.143 | AN31: 148282.6458 | AO31: 151248.2988 | AP31: 154273.2647 | AQ31: 157358.73 | AR31: 160505.9046 | AS31: 163716.0227 | AT31: 166990.3432 | AU31: 170330.15 | AV31: 0 | AW31: 0 | AX31: =AX30*AX18 -> 0 | AY31: 0 | AZ31: 0 | BA31: 0 | BB31: 0 | BC31: 0 | BD31: 0 | BE31: 0 | BF31: 0 | BG31: 0 | BH31: 0 | BI31: 0 | BJ31: 0
D33: PTC/45Q Without Inflation | E33: USD/kg,ton | F33: ='More Detailed'!F24 -> 3 | I33: =$F$33*I5 -> 0 | J33: =$F$33*J5 -> 3 | K33: 3 | L33: 3 | M33: 3 | N33: 3 | O33: 3 | P33: 3 | Q33: 3 | R33: 3 | S33: 3 | T33: 0 | U33: 0 | V33: 0 | W33: 0 | X33: 0 | Y33: 0 | Z33: 0 | AA33: 0 | AB33: 0 | AC33: 0 | AD33: 0 | AE33: 0 | AF33: 0 | AG33: 0 | AH33: 0 | AI33: 0 | AJ33: 0 | AK33: 0 | AL33: 0 | AM33: 0 | AN33: 0 | AO33: 0 | AP33: 0 | AQ33: 0 | AR33: 0 | AS33: 0 | AT33: 0 | AU33: 0 | AV33: 0 | AW33: 0 | AX33: =$F$33*AX5 -> 0 | AY33: 0 | AZ33: 0 | BA33: 0 | BB33: 0 | BC33: 0 | BD33: 0 | BE33: 0 | BF33: 0 | BG33: 0 | BH33: 0 | BI33: 0 | BJ33: 0
D34: PTC/45Q with Inflation | E34: USD/kg,ton | I34: =I33*I18 -> 0 | J34: =J33*J18 -> 3.06 | K34: 3.1212 | L34: 3.183624 | M34: 3.24729648 | N34: 3.31224241 | O34: 3.378487258 | P34: 3.446057003 | Q34: 3.514978143 | R34: 3.585277706 | S34: 3.65698326 | T34: 0 | U34: 0 | V34: 0 | W34: 0 | X34: 0 | Y34: 0 | Z34: 0 | AA34: 0 | AB34: 0 | AC34: 0 | AD34: 0 | AE34: 0 | AF34: 0 | AG34: 0 | AH34: 0 | AI34: 0 | AJ34: 0 | AK34: 0 | AL34: 0 | AM34: 0 | AN34: 0 | AO34: 0 | AP34: 0 | AQ34: 0 | AR34: 0 | AS34: 0 | AT34: 0 | AU34: 0 | AV34: 0 | AW34: 0 | AX34: =AX33*AX18 -> 0 | AY34: =AY33*AY18 -> 0 | AZ34: =AZ33*AZ18 -> 0 | BA34: =BA33*BA18 -> 0 | BB34: =BB33*BB18 -> 0 | BC34: =BC33*BC18 -> 0 | BD34: =BD33*BD18 -> 0 | BE34: =BE33*BE18 -> 0 | BF34: =BF33*BF18 -> 0 | BG34: =BG33*BG18 -> 0 | BH34: =BH33*BH18 -> 0 | BI34: =BI33*BI18 -> 0 | BJ34: =BJ33*BJ18 -> 0
D35: PTC/45Q Amount | E35: USD | F35: =H1 -> FALSE | I35: =I34*I10*$F$35 -> 0 | J35: =J34*J10*$F$35 -> 0 | K35: 0 | L35: 0 | M35: 0 | N35: 0 | O35: 0 | P35: 0 | Q35: 0 | R35: 0 | S35: 0 | T35: 0 | U35: 0 | V35: 0 | W35: 0 | X35: 0 | Y35: 0 | Z35: 0 | AA35: 0 | AB35: 0 | AC35: 0 | AD35: 0 | AE35: 0 | AF35: 0 | AG35: 0 | AH35: 0 | AI35: 0 | AJ35: 0 | AK35: 0 | AL35: 0 | AM35: 0 | AN35: 0 | AO35: 0 | AP35: 0 | AQ35: 0 | AR35: 0 | AS35: 0 | AT35: 0 | AU35: 0 | AV35: 0 | AW35: 0 | AX35: 0 | AY35: 0 | AZ35: 0 | BA35: 0 | BB35: 0 | BC35: 0 | BD35: 0 | BE35: 0 | BF35: 0 | BG35: 0 | BH35: 0 | BI35: 0 | BJ35: 0
D37: Nominal LCOE | E37: USD/kg | F37: =IF(H1,'More Detailed'!P36,'More Detailed'!P35) -> 2.917416143 | I37: =$F$37 -> 2.917416143 | J37: =$F$37 -> 2.917416143 | K37: 2.917416143 | L37: 2.917416143 | M37: 2.917416143 | N37: 2.917416143 | O37: 2.917416143 | P37: 2.917416143 | Q37: 2.917416143 | R37: 2.917416143 | S37: 2.917416143 | T37: 2.917416143 | U37: 2.917416143 | V37: 2.917416143 | W37: 2.917416143 | X37: 2.917416143 | Y37: 2.917416143 | Z37: 2.917416143 | AA37: 2.917416143 | AB37: 2.917416143 | AC37: 2.917416143 | AD37: 2.917416143 | AE37: 2.917416143 | AF37: 2.917416143 | AG37: 2.917416143 | AH37: 2.917416143 | AI37: 2.917416143 | AJ37: 2.917416143 | AK37: 2.917416143 | AL37: 2.917416143 | AM37: 2.917416143 | AN37: 2.917416143 | AO37: 2.917416143 | AP37: 2.917416143 | AQ37: 2.917416143 | AR37: 2.917416143 | AS37: 2.917416143 | AT37: 2.917416143 | AU37: 2.917416143 | AV37: 2.917416143 | AW37: 2.917416143 | AX37: 2.917416143 | AY37: 2.917416143 | AZ37: 2.917416143 | BA37: 2.917416143 | BB37: 2.917416143 | BC37: 2.917416143 | BD37: 2.917416143 | BE37: 2.917416143 | BF37: 2.917416143 | BG37: 2.917416143 | BH37: 2.917416143 | BI37: 2.917416143 | BJ37: 2.917416143
D38: Real LCOE Before Inflation | E38: USD/kg | F38: =IF(H1,'More Detailed'!P47,'More Detailed'!P46) -> 2.167904478 | I38: =$F$38 -> 2.167904478 | J38: =$F$38 -> 2.167904478 | K38: 2.167904478 | L38: 2.167904478 | M38: 2.167904478 | N38: 2.167904478 | O38: 2.167904478 | P38: 2.167904478 | Q38: 2.167904478 | R38: 2.167904478 | S38: 2.167904478 | T38: 2.167904478 | U38: 2.167904478 | V38: 2.167904478 | W38: 2.167904478 | X38: 2.167904478 | Y38: 2.167904478 | Z38: 2.167904478 | AA38: 2.167904478 | AB38: 2.167904478 | AC38: 2.167904478 | AD38: 2.167904478 | AE38: 2.167904478 | AF38: 2.167904478 | AG38: 2.167904478 | AH38: 2.167904478 | AI38: 2.167904478 | AJ38: 2.167904478 | AK38: 2.167904478 | AL38: 2.167904478 | AM38: 2.167904478 | AN38: 2.167904478 | AO38: 2.167904478 | AP38: 2.167904478 | AQ38: 2.167904478 | AR38: 2.167904478 | AS38: 2.167904478 | AT38: 2.167904478 | AU38: 2.167904478 | AV38: 2.167904478 | AW38: 2.167904478 | AX38: 2.167904478 | AY38: 2.167904478 | AZ38: 2.167904478 | BA38: 2.167904478 | BB38: 2.167904478 | BC38: 2.167904478 | BD38: 2.167904478 | BE38: 2.167904478 | BF38: 2.167904478 | BG38: 2.167904478 | BH38: 2.167904478 | BI38: 2.167904478 | BJ38: 2.167904478
D39: Real LCOE Inflated | E39: USD/kg | I39: =I38*I18 -> 2.167904478 | J39: =J38*J18 -> 2.211262567 | K39: 2.255487819 | L39: 2.300597575 | M39: 2.346609526 | N39: 2.393541717 | O39: 2.441412551 | P39: 2.490240802 | Q39: 2.540045618 | R39: 2.590846531 | S39: 2.642663461 | T39: 2.695516731 | U39: 2.749427065 | V39: 2.804415606 | W39: 2.860503919 | X39: 2.917713997 | Y39: 2.976068277 | Z39: 3.035589642 | AA39: 3.096301435 | AB39: 3.158227464 | AC39: 3.221392013 | AD39: 3.285819854 | AE39: 3.351536251 | AF39: 3.418566976 | AG39: 3.486938315 | AH39: 3.556677081 | AI39: 3.627810623 | AJ39: 3.700366836 | AK39: 3.774374172 | AL39: 3.849861656 | AM39: 3.926858889 | AN39: 4.005396067 | AO39: 4.085503988 | AP39: 4.167214068 | AQ39: 4.250558349 | AR39: 4.335569516 | AS39: 4.422280906 | AT39: 4.510726524 | AU39: 4.600941055 | AV39: 4.600941055 | AW39: 4.600941055 | AX39: 4.600941055 | AY39: 4.600941055 | AZ39: 4.600941055 | BA39: 4.600941055 | BB39: 4.600941055 | BC39: 4.600941055 | BD39: 4.600941055 | BE39: 4.600941055 | BF39: 4.600941055 | BG39: 4.600941055 | BH39: 4.600941055 | BI39: 4.600941055 | BJ39: 4.600941055
D41: Applied LCOE | E41: USD/kg | F41: =IF(F1,F37,F39) -> 2.917416143 | G41: =F1 -> TRUE | I41: =IF($G$41,I37,I39) -> 2.917416143 | J41: =IF($G$41,J37,J39) -> 2.917416143 | K41: 2.917416143 | L41: 2.917416143 | M41: 2.917416143 | N41: 2.917416143 | O41: 2.917416143 | P41: 2.917416143 | Q41: 2.917416143 | R41: 2.917416143 | S41: 2.917416143 | T41: 2.917416143 | U41: 2.917416143 | V41: 2.917416143 | W41: 2.917416143 | X41: 2.917416143 | Y41: 2.917416143 | Z41: 2.917416143 | AA41: 2.917416143 | AB41: 2.917416143 | AC41: 2.917416143 | AD41: 2.917416143 | AE41: 2.917416143 | AF41: 2.917416143 | AG41: 2.917416143 | AH41: 2.917416143 | AI41: 2.917416143 | AJ41: 2.917416143 | AK41: 2.917416143 | AL41: 2.917416143 | AM41: 2.917416143 | AN41: 2.917416143 | AO41: 2.917416143 | AP41: 2.917416143 | AQ41: 2.917416143 | AR41: 2.917416143 | AS41: 2.917416143 | AT41: 2.917416143 | AU41: 2.917416143 | AV41: 2.917416143 | AW41: 2.917416143 | AX41: =IF($G$41,AX37,AX39) -> 2.917416143 | AY41: 2.917416143 | AZ41: 2.917416143 | BA41: 2.917416143 | BB41: 2.917416143 | BC41: 2.917416143 | BD41: 2.917416143 | BE41: 2.917416143 | BF41: 2.917416143 | BG41: 2.917416143 | BH41: 2.917416143 | BI41: 2.917416143 | BJ41: 2.917416143
D42: Production | E42: kg | I42: =I10 -> 0 | J42: 1000000 | K42: 1000000 | L42: 1000000 | M42: 1000000 | N42: 1000000 | O42: 1000000 | P42: 1000000 | Q42: 1000000 | R42: 1000000 | S42: 1000000 | T42: 1000000 | U42: 1000000 | V42: 1000000 | W42: 1000000 | X42: 1000000 | Y42: 1000000 | Z42: 1000000 | AA42: 1000000 | AB42: 1000000 | AC42: 1000000 | AD42: 1000000 | AE42: 1000000 | AF42: 1000000 | AG42: 1000000 | AH42: 1000000 | AI42: 1000000 | AJ42: 1000000 | AK42: 1000000 | AL42: 1000000 | AM42: 1000000 | AN42: 1000000 | AO42: =AO10 -> 1000000 | AP42: 1000000 | AQ42: 1000000 | AR42: 1000000 | AS42: 1000000 | AT42: 1000000 | AU42: 1000000 | AV42: 0 | AW42: 0 | AX42: 0 | AY42: 0 | AZ42: 0 | BA42: 0 | BB42: 0 | BC42: 0 | BD42: 0 | BE42: 0 | BF42: 0 | BG42: 0 | BH42: 0 | BI42: 0 | BJ42: 0
D43: Revenues | E43: USD | I43: =I42*I41 -> 0 | J43: =J42*J41 -> 2917416.143 | K43: 2917416.143 | L43: 2917416.143 | M43: 2917416.143 | N43: 2917416.143 | O43: 2917416.143 | P43: 2917416.143 | Q43: 2917416.143 | R43: 2917416.143 | S43: 2917416.143 | T43: 2917416.143 | U43: 2917416.143 | V43: 2917416.143 | W43: 2917416.143 | X43: 2917416.143 | Y43: 2917416.143 | Z43: 2917416.143 | AA43: 2917416.143 | AB43: 2917416.143 | AC43: 2917416.143 | AD43: 2917416.143 | AE43: 2917416.143 | AF43: 2917416.143 | AG43: 2917416.143 | AH43: 2917416.143 | AI43: 2917416.143 | AJ43: 2917416.143 | AK43: 2917416.143 | AL43: 2917416.143 | AM43: 2917416.143 | AN43: 2917416.143 | AO43: 2917416.143 | AP43: 2917416.143 | AQ43: 2917416.143 | AR43: 2917416.143 | AS43: 2917416.143 | AT43: 2917416.143 | AU43: 2917416.143 | AV43: 0 | AW43: 0 | AX43: =AX42*AX41 -> 0 | AY43: =AY42*AY41 -> 0 | AZ43: =AZ42*AZ41 -> 0 | BA43: =BA42*BA41 -> 0 | BB43: =BB42*BB41 -> 0 | BC43: =BC42*BC41 -> 0 | BD43: =BD42*BD41 -> 0 | BE43: =BE42*BE41 -> 0 | BF43: =BF42*BF41 -> 0 | BG43: =BG42*BG41 -> 0 | BH43: =BH42*BH41 -> 0 | BI43: =BI42*BI41 -> 0 | BJ43: =BJ42*BJ41 -> 0
B45: Cash Flow
D46: Revenues | E46: USD | I46: =I43 -> 0 | J46: =J43 -> 2917416.143 | K46: 2917416.143 | L46: 2917416.143 | M46: 2917416.143 | N46: 2917416.143 | O46: 2917416.143 | P46: 2917416.143 | Q46: 2917416.143 | R46: 2917416.143 | S46: 2917416.143 | T46: 2917416.143 | U46: 2917416.143 | V46: 2917416.143 | W46: 2917416.143 | X46: 2917416.143 | Y46: 2917416.143 | Z46: 2917416.143 | AA46: 2917416.143 | AB46: 2917416.143 | AC46: 2917416.143 | AD46: 2917416.143 | AE46: 2917416.143 | AF46: 2917416.143 | AG46: 2917416.143 | AH46: 2917416.143 | AI46: 2917416.143 | AJ46: 2917416.143 | AK46: 2917416.143 | AL46: 2917416.143 | AM46: 2917416.143 | AN46: 2917416.143 | AO46: 2917416.143 | AP46: 2917416.143 | AQ46: 2917416.143 | AR46: 2917416.143 | AS46: 2917416.143 | AT46: 2917416.143 | AU46: 2917416.143 | AV46: 0 | AW46: 0 | AX46: 0 | AY46: 0 | AZ46: 0 | BA46: 0 | BB46: 0 | BC46: 0 | BD46: 0 | BE46: 0 | BF46: 0 | BG46: 0 | BH46: 0 | BI46: 0 | BJ46: 0
D47: Less: Expenses | E47: USD | I47: =-I27-I31 -> 0 | J47: -1409854.72 | K47: -1438051.814 | L47: -1466812.85 | M47: -1496149.107 | N47: -1526072.089 | O47: -1556593.531 | P47: -1587725.402 | Q47: -1619479.91 | R47: -1651869.508 | S47: -1684906.898 | T47: -1718605.036 | U47: -1752977.137 | V47: -1788036.68 | W47: -1823797.413 | X47: -1860273.362 | Y47: -1897478.829 | Z47: -1935428.405 | AA47: -1974136.973 | AB47: -2013619.713 | AC47: -2053892.107 | AD47: -2094969.949 | AE47: -2136869.348 | AF47: -2179606.735 | AG47: -2223198.87 | AH47: -2267662.847 | AI47: -2313016.104 | AJ47: -2359276.426 | AK47: -2406461.955 | AL47: -2454591.194 | AM47: -2503683.018 | AN47: -2553756.678 | AO47: =-AO27-AO31 -> -2604831.812 | AP47: -2656928.448 | AQ47: -2710067.017 | AR47: -2764268.357 | AS47: -2819553.725 | AT47: -2875944.799 | AU47: -2933463.695 | AV47: 0 | AW47: 0 | AX47: 0 | AY47: 0 | AZ47: 0 | BA47: 0 | BB47: 0 | BC47: 0 | BD47: 0 | BE47: 0 | BF47: 0 | BG47: 0 | BH47: 0 | BI47: 0 | BJ47: 0
D48: Less: Capital Expenditures | E48: USD | I48: =-I22 -> -17834974.32 | J48: 0 | K48: 0 | L48: 0 | M48: 0 | N48: 0 | O48: 0 | P48: 0 | Q48: 0 | R48: 0 | S48: 0 | T48: 0 | U48: 0 | V48: 0 | W48: 0 | X48: 0 | Y48: 0 | Z48: 0 | AA48: 0 | AB48: 0 | AC48: 0 | AD48: 0 | AE48: 0 | AF48: 0 | AG48: 0 | AH48: 0 | AI48: 0 | AJ48: 0 | AK48: 0 | AL48: 0 | AM48: 0 | AN48: 0 | AO48: =-AO22 -> 0 | AP48: 0 | AQ48: 0 | AR48: 0 | AS48: 0 | AT48: 0 | AU48: 0 | AV48: 0 | AW48: 0 | AX48: 0 | AY48: 0 | AZ48: 0 | BA48: 0 | BB48: 0 | BC48: 0 | BD48: 0 | BE48: 0 | BF48: 0 | BG48: 0 | BH48: 0 | BI48: 0 | BJ48: 0
D49: Add: Incentive Payments | E49: USD | I49: =I35 -> 0 | J49: =J35 -> 0 | K49: 0 | L49: 0 | M49: 0 | N49: 0 | O49: 0 | P49: 0 | Q49: 0 | R49: 0 | S49: 0 | T49: 0 | U49: 0 | V49: 0 | W49: 0 | X49: 0 | Y49: 0 | Z49: 0 | AA49: 0 | AB49: 0 | AC49: 0 | AD49: 0 | AE49: 0 | AF49: 0 | AG49: 0 | AH49: 0 | AI49: 0 | AJ49: 0 | AK49: 0 | AL49: 0 | AM49: 0 | AN49: 0 | AO49: 0 | AP49: 0 | AQ49: 0 | AR49: 0 | AS49: 0 | AT49: 0 | AU49: 0 | AV49: 0 | AW49: 0 | AX49: 0 | AY49: 0 | AZ49: 0 | BA49: 0 | BB49: 0 | BC49: 0 | BD49: 0 | BE49: 0 | BF49: 0 | BG49: 0 | BH49: 0 | BI49: 0 | BJ49: 0
D51: Net Cash Flow | E51: USD | I51: =SUM(I46:I49) -> -17834974.32 | J51: =SUM(J46:J49) -> 1507561.423 | K51: 1479364.329 | L51: 1450603.292 | M51: 1421267.035 | N51: 1391344.053 | O51: 1360822.611 | P51: 1329690.741 | Q51: 1297936.233 | R51: 1265546.635 | S51: 1232509.244 | T51: 1198811.106 | U51: 1164439.006 | V51: 1129379.463 | W51: 1093618.729 | X51: 1057142.781 | Y51: 1019937.314 | Z51: 981987.7373 | AA51: 943279.1692 | AB51: 903796.4297 | AC51: 863524.0355 | AD51: 822446.1933 | AE51: 780546.7944 | AF51: 737809.4074 | AG51: 694217.2727 | AH51: 649753.2953 | AI51: 604400.0383 | AJ51: 558139.7163 | AK51: 510954.1877 | AL51: 462824.9486 | AM51: 413733.1247 | AN51: 363659.4644 | AO51: 312584.3308 | AP51: 260487.6946 | AQ51: 207349.1256 | AR51: 153147.7853 | AS51: 97862.41814 | AT51: 41471.34365 | AU51: -16047.55233 | AV51: 0 | AW51: 0 | AX51: 0 | AY51: 0 | AZ51: 0 | BA51: 0 | BB51: 0 | BC51: 0 | BD51: 0 | BE51: 0 | BF51: 0 | BG51: 0 | BH51: 0 | BI51: 0 | BJ51: 0
D52: IRR | E52: % | F52: =IRR(I51:BJ51) -> 0.05

Sheet Examples of Total CO2
H2: kg/km | I2: kWh/km | K2: Total Km | L2: Total kWh | M2: Total kg | N2: IC Engine g/km | O2: CO2 kg/H2 kg | P2: NG g CO2/kWh | Q2: Coal gNG/kWh | R2: Coal Weight | S2: Total CO2 g
D3: Battery Car from NG Electricity | I3: 0.15 | K3: 25000 | L3: =K3*I3 -> 3750 | P3: =499 -> 499 | Q3: 888 | R3: 0.5 | S3: =(R3*(Q3)+(1-R3)*P3)*L3 -> 2600625
D4: Hydrogen Car from Grey Hydrogen | H4: 0.008 | K4: 25000 | M4: =H4*K4 -> 200 | O4: =8910 -> 8910 | S4: =M4*O4 -> 1782000
D5: Hydrogen Car from Blue Hydrogen | H5: 0.008 | K5: 25000 | M5: =H5*K5 -> 200 | O5: =O4*0.1 -> 891 | S5: =M5*O5 -> 178200
D6: Hydrogen Car from Green Hydrogen | H6: 0.008 | K6: 25000 | M6: =H6*K6 -> 200 | O6: 0 | S6: =M6*O6 -> 0
D7: Gasoline Engine | K7: 25000 | N7: 192 | S7: =N7*K7 -> 4800000
D8: Diesel Engine | K8: 25000 | N8: 172 | S8: =N8*K8 -> 4300000

Sheet Storage of H2 and kWh
R3: Day
P4: kgh Required | R4: 2739.726027
P5: kWh/kg | R5: ='Simple Analysis'!F7 -> 52.078125 | AE5: 100
P6: kWh per Day | R6: =R4*R5 -> 142679.7945 | AE6: 6
AE7: =AE5*AE6 -> 600
P8: Electrolyzer kWh | R8: =R6*2 -> 285359.589 | AE8: 450
P9: Renewable Energy | R9: 0.5 | AE9: =AE8*AE7 -> 270000
P10: Storage kWh | R10: =R8*R9 -> 142679.7945
C11: LCOE | D11: 25 | F11: Cost/kW | G11: 1000 | J11: Capacity Stored - kg | M11: =H21/M12 -> 120.0120012
F12: Efficiency | G12: 0.64 | J12: Energy Conversion - kWh/kg | M12: 33.33 | P12: Hours Stored | R12: 12 | AE12: 33.33
F13: LCOH | J13: Energy Stored | M13: =M11*M12 -> 4000 | P13: Energy Stored - kWh | R13: =R12*R10 -> 1712157.534 | AE13: 0.62
J14: Cost/kg | M14: 1000 | P14: Cost/kWh | R14: 450 | AE14: =AE12/AE13 -> 53.75806452
J15: Total Capital Cost | M15: =M14*M11 -> 120012.0012 | P15: Total Cost | R15: =R13*R14 -> 770470890.4
J16: Life | M16: 20 | P16: Life | R16: 10 | AE16: =AE7/AE14 -> 11.16111611
P17: Discount Rate | R17: 0.05 | AE17: 900
P18: Level Cost | R18: =PMT(R17,R16,-R15) -> 99779505.19 | AE18: =AE16*AE17 -> 10045.0045
F19: Duration | H19: 4
F20: Capacity - kW | H20: 1000 | P20: Cost/kg | R20: 1000
F21: Energy Stored - kWh | H21: =H19*H20 -> 4000 | P21: Total per Day | R21: =R20*R12 -> 12000
C22: LCOE | D22: =D11 -> 25 | F22: Cost/kWh | H22: 450 | P22: Capacity | R22: =R4 -> 2739.726027
F23: Capital Cost | H23: =H20*H19*H22 -> 1800000 | P23: Total Cost | R23: =R22*R21 -> 32876712.33
F24: Life | H24: 12 | P24: Life | R24: 20
P25: Level Cost | R25: =PMT(R17,R24,-R23) -> 2638112.456
P27: H2 Cost/kWh | R27: =R25/R18 -> 0.02643942211
H28: Hydrogen Storage
Z29: Solar | AD29: Storage | AF29: Total
D30: Lose 35% | H30: Cost of Storage | M30: Lose 35% | W30: kW | Z30: 1000 | AB30: kW | AD30: =Z30 -> 1000
W31: CF | Z31: 0.25 | AB31: Hrs | AD31: 12 | AF31: kWh | AG31: =AD34+Z32 -> 6570000
W32: kWh-yr | Z32: =Z30*Z31*8760 -> 2190000 | AB32: kWh-day | AD32: =AD30*AD31 -> 12000
AB33: Cost/kWh | AD33: 450 | AF33: Solar PMT | AG33: =Z37*3 -> 146572.0974
W34: Cost/kW | Z34: 800 | AB34: kWh-yr | AD34: =AD32*365 -> 4380000 | AF34: Solar OM | AG34: =Z39*3 -> 36000
W35: Total Cost | Z35: =Z34*Z30 -> 800000 | AB35: Total Cost | AD35: =AD33*AD32 -> 5400000 | AF35: Battery PMT | AG35: =AD37 -> 699324.7048
W36: Life | Z36: 35 | AB36: Life | AD36: 10 | AF36: Battery OM | AG36: =AD39 -> 54000
W37: PMT | Z37: =PMT(R17,Z36,-Z35) -> 48857.36578 | AB37: PMT | AD37: =PMT(R17,AD36,-AD35) -> 699324.7048
W38: O&M Cost | Z38: 12 | AF38: Total | AG38: =SUM(AG33:AG36) -> 935896.8022
W39: Total O&M | Z39: =Z38*Z30 -> 12000 | AB39: O&M Cost | AD39: =1%*AD35 -> 54000
W40: LCOE | Z40: =(Z37+Z39)/Z32 -> 0.0277887515 | AB40: LCOS | AD40: =(AD39+AD37)/AD34 -> 0.1719919417 | AF40: LCOE | AG40: =AG38/AG31 -> 0.142450046
F41: Battery Storage
E43: Cost of Storage: Lose 5-10%
E59: Hydrogen Storage
I61: Cost of Storage | O61: Need Hydrogen
I62: USD 1,000/kg
F73: Battery Storage
O74: Need Hydrogen
E75: Cost of Battery
E76: USD 400/kWh
C87: Both Cases
C89: Oversize Solar to Provide Storage
C90: Same Size of Electrolizer
C91: Store Electricity or Store Hydrogen

Sheet Emission Working
C3: PEM
C4: Alkaline
C5: SMR 89% Capture
C6: ATR 92% Capture
C8: Ingleside
C9: =(2900-800)/(1.4/0.9*178/365) -> 2768.258427
E11: CI - CO2 kg/H2 kg
E13: CI w/o CCS | I13: Capture Rate - kg CO2/H2 | K13: CI w/ CCS | L13: CI w/ CCS | M13: PTC | N13: Carbon captured per kg H2 | O13: 45Q (PTC Equivalent)
C14: SMR with 72% Capture | E14: 12 | F14: 2.1 | G14: =E14-F14 -> 9.9 | K14: =36/100 -> 0.36 | L14: =E14*K14 -> 4.32 | M14: 0 | N14: =E14-L14 -> 7.68 | O14: 0.7497078488 | P14: 0.72 | Q14: =1-P14 -> 0.28 | R14: 6 | S14: =E14 -> 12 | T14: =R14*P14 -> 4.32 | U14: =P14*G14 -> 7.128
C15: SMR with 90% Capture | E15: 12 | F15: =E15*F17 -> 2.1 | G15: =E15-F15 -> 9.9 | K15: =24/100 -> 0.24 | L15: =E15*K15 -> 2.88 | M15: 0.6 | N15: =E15-L15 -> 9.12 | O15: 0.8902785712 | P15: 0.9 | Q15: =1-P15 -> 0.1 | R15: 6 | S15: =E15 -> 12 | T15: =R15*P15 -> 5.4 | U15: =P15*G15 -> 8.91 | V15: =P15*G15 -> 8.91
C16: Ingleside | E16: 12 | F16: 2.1 | G16: =E16-F16 -> 9.9 | H16: 255 | I16: 8.24 | K16: =(E16-N16)/E16 -> 0.3137254902 | L16: =E16*K16 -> 3.764705882 | M16: 0.6 | N16: =2.1/(255)*1000 -> 8.235294118 | O16: 0.8229219014 | P16: =P15*O16/O15 -> 0.8319078266 | U16: 8.235887484 | V16: =P16*G16 -> 8.235887484
F17: =F16/E16 -> 0.175 | K17: =E16-N16 -> 3.764705882
K18: =E15-L15 -> 9.12 | N18: 2.1 | O18: =N16/E16 -> 0.6862745098
N19: 255
N20: =N18/N19 -> 0.008235294118
E25: IHS - US Texas
E26: Capex (kg/day) | F26: Capex ($/kWh)
C27: PEM | E27: 3851.955231 | F27: 1680.853192
C28: Alkaline | E28: 3405.900898 | F28: 1486.211301
C29: SMR 89% Capture | E29: 2074.622653 | F29: 905.2898848
C30: ATR 92% Capture | E30: 1853.339753 | F30: 808.730074
C32: Ingleside
C33: 2768.258427
C36: H2 Produced (KG) | D36: PTC Ingleside ($/KG) | E36: PTC to be Achieved ($/KG) | F36: Additional PTC | G36: Grey H2 CO2 per kg of H2 (KG) | H36: CO2 Captured Ratio | I36: CO2 Emission (KG) | J36: CO2 Emission to be achieved (KG) | K36: CO2 Emission from RNG (KG) | L36: CO2 Emission from NG (KG) | M36: RNG Blend Ratio | N36: RNG (MMBTU) Used per KG of H2 | O36: Max Premium Paid for RNG per MMBTU
B37: Ingleside + 0% RNG Blend (Status quo) | C37: 1 | D37: 0.8 | E37: 0.8 | F37: =E37-D37 -> 0 | G37: 10 | H37: =8.24/G37 -> 0.824 | I37: =G37*(1-H37) -> 1.76 | J37: =I37 -> 1.76 | K37: =I37-J37 -> 0 | L37: =J37 -> 1.76 | M37: =K37/G37 -> 0 | N37: =0.15*M37 -> 0 | O37: =IFERROR(F37/N37,"na") -> na
B39: Ingleside + $1 PTC | C39: 1 | D39: 0.8 | E39: 1 | F39: =E39-D39 -> 0.2 | G39: 10 | H39: =8.24/G39 -> 0.824 | I39: =G39*(1-H39) -> 1.76 | J39: 1.5 | K39: =(I39-J39)/(1-C35) -> 0.26 | L39: =MAX(I39-K39,0) -> 1.5 | M39: =K39/G39 -> 0.026 | N39: =0.15*M39 -> 0.0039 | O39: =IFERROR(F39/N39,"na") -> 51.28205128
B40: Ingleside + $3 PTC | C40: 1 | D40: 0.8 | E40: 3 | F40: =E40-D40 -> 2.2 | G40: 10 | H40: =8.24/G40 -> 0.824 | I40: =G40*(1-H40) -> 1.76 | J40: 0.45 | K40: =(I40-J40)/(1-C35) -> 1.31 | L40: =MAX(I40-K40,0) -> 0.45 | M40: =K40/G40 -> 0.131 | N40: =0.15*M40 -> 0.01965 | O40: =F40/N40 -> 111.9592875

Sheet Summary
C2: =Inputs!F5 -> SMR - 72% Capture | F2: Case with Flat Tariff for 45Q Credit over Life of Project
C4: Gas Price | D4: =Inputs!$H$99 -> 4
C5: LCOE Without 45Q | D5: =Inputs!F144 -> 1.128577118
C6: LCOE With 45Q | D6: =Inputs!$F$147 -> 1.128577118
D8: =Inputs!F110 -> 0
C11: 45 Q Credit Spread over 10 Years | D11: =Inputs!F149 -> 0
C13: Total Cap Exp | D13: ='Hydrogen Financial Model'!J42 -> 862820863
C14: Debt Financing | D14: ='Hydrogen Financial Model'!J123 -> 0 | E14: =D14/$D$13 -> 0
C15: Equity Financing | D15: ='Hydrogen Financial Model'!J122 -> 862820863 | E15: =D15/D13 -> 1
C17: Tax Rate | D17: =Inputs!F115 -> 0 | F17: Case with Tariff for 45Q during the 10 45Q period
C19: Computed LCOE
C20: NPV Revenues/NPV Production - Real | D20: ='Hydrogen Financial Model'!G254 -> 1.128577118
C21: NPV Revenues/NPV Production - Nominal | D21: ='Hydrogen Financial Model'!G260 -> 1.128577118
C23: NPV Costs/NPV Production - Real | D23: ='Hydrogen Financial Model'!G272 -> 1.128577118
C24: NPV Costs/NPV Production - Nominal | D24: ='Hydrogen Financial Model'!G273 -> 1.128577118
C26: Equity IRR - Case with Spread of 45Q over Life | D26: ='Hydrogen Financial Model'!F174 -> 0.1
C27: Equity IRR - Case with Spread of 45Q over 10 yrs | D27: ='Hydrogen Financial Model'!$F$335 -> 0.1

Sheet Inputs
D2: Scenario | E2: 3
H4: 1 | I4: 2 | J4: 3 | K4: 4 | L4: 5 | M4: 6 | N4: 7 | O4: 8 | P4: 9 | Q4: 10 | R4: 11 | S4: 12 | T4: 13 | U4: 14 | V4: 15 | W4: 16
F5: =INDEX(H5:U5,$E$2) -> SMR - 72% Capture | H5: Green H2 | I5: Grey H2 - IEA | J5: SMR - 72% Capture | K5: SMR - 90% Capture | L5: Ingleside 12 - No RNG | M5: Ingleside 12 - No RNG IHS1 | N5: Ingleside 12 - No RNG IHS2 | O5: Ingleside 12 - No RNG | P5: Ingleside 12 - 15% RNG | Q5: Ingleside 12 - No RNG | R5: Ingleside 10 - No RNG | S5: Ingleside 10 - 15% RNG Blend | T5: Ingleside 10 - 15% RNG Blend | U5: Grey H2 | W5: Blue H2 with RNG | AA5: FALSE | AB5: COMMENT
B6: Operations
C7: H2 Energy Conversions
D8: H2 kWh/kg | E8: kwh/kg | F8: 33.33 | H8: 33.33 | I8: 33.33 | J8: 33.33 | K8: 33.33 | L8: 33.33 | M8: 33.33 | N8: 33.33 | O8: 33.33 | P8: 33.33 | Q8: 33.33 | R8: 33.33 | S8: 33.33 | T8: 33.33 | U8: 33.33 | W8: 33.33
D9: Conversion | E9: BTU/kWh | F9: 3412.14 | H9: 3412.14 | I9: 3412.14 | J9: 3412.14 | K9: 3412.14 | L9: 3412.14 | M9: 3412.14 | N9: 3412.14 | O9: 3412.14 | P9: 3412.14 | Q9: 3412.14 | R9: 3412.14 | S9: 3412.14 | T9: 3412.14 | U9: 3412.14 | W9: 3412.14
D10: H2 BTU/kg | E10: BTU/kWh | F10: =F8*F9 -> 113726.6262 | H10: =H8*H9 -> 113726.6262 | I10: =I8*I9 -> 113726.6262 | J10: =J8*J9 -> 113726.6262 | K10: =K8*K9 -> 113726.6262 | L10: 113726.6262 | M10: =M8*M9 -> 113726.6262 | N10: 113726.6262 | O10: 113726.6262 | P10: =P8*P9 -> 113726.6262 | Q10: 113726.6262 | R10: =R8*R9 -> 113726.6262 | S10: 113726.6262 | T10: =T8*T9 -> 113726.6262 | U10: 113726.6262 | W10: =W8*W9 -> 113726.6262
D11: H2 MMBTU/kg | E11: MMBTU/kWh | F11: =F10/1000000 -> 0.1137266262 | H11: =H10/1000000 -> 0.1137266262 | I11: =I10/1000000 -> 0.1137266262 | J11: =J10/1000000 -> 0.1137266262 | K11: =K10/1000000 -> 0.1137266262 | L11: 0.1137266262 | M11: =M10/1000000 -> 0.1137266262 | N11: 0.1137266262 | O11: 0.1137266262 | P11: =P10/1000000 -> 0.1137266262 | Q11: 0.1137266262 | R11: =R10/1000000 -> 0.1137266262 | S11: 0.1137266262 | T11: =T10/1000000 -> 0.1137266262 | U11: 0.1137266262 | W11: =W10/1000000 -> 0.1137266262
C13: Capacity
D14: Ammonia Production | E14: NH3 tPA | F14: =INDEX(H14:Y14,$E$2) -> 1400000 | H14: =1.4*10^6 -> 1400000 | I14: 1400000 | J14: 1400000 | K14: 1400000 | L14: 1400000 | M14: 1400000 | N14: 1400000 | O14: 1400000 | P14: 1400000 | Q14: 1400000 | R14: 1400000 | S14: 1400000 | T14: 1400000 | U14: 1400000 | W14: =1.4*10^6 -> 1400000
D15: Conversion | E15: H2/NH3 | F15: =INDEX(H15:Y15,$E$2) -> 178 | H15: 178 | I15: 178 | J15: 178 | K15: 178 | L15: 178 | M15: 178 | N15: 178 | O15: 178 | P15: 178 | Q15: 178 | R15: 178 | S15: 178 | T15: 178 | U15: 178 | W15: 178
D16: Capacity H2 | E16: H2 kgy | F16: =INDEX(H16:Y16,$E$2) -> 249200000 | H16: =H14*H15 -> 249200000 | I16: =I14*I15 -> 249200000 | J16: =J14*J15 -> 249200000 | K16: =K14*K15 -> 249200000 | L16: 255500000 | M16: =M14*M15 -> 249200000 | N16: 249200000 | O16: 249200000 | P16: =P14*P15 -> 249200000 | Q16: 249200000 | R16: =R14*R15 -> 249200000 | S16: 249200000 | T16: =T14*T15 -> 249200000 | U16: 249200000 | W16: =W14*W15 -> 249200000
D17: kWh Converstion from Above | E17: H2/kW | F17: =INDEX(H17:Y17,$E$2) -> 33.33 | H17: =H8 -> 33.33 | I17: =I8 -> 33.33 | J17: =J8 -> 33.33 | K17: 33.33 | L17: =L8 -> 33.33 | M17: =M8 -> 33.33 | N17: 33.33 | O17: 33.33 | P17: =P8 -> 33.33 | Q17: 33.33 | R17: =R8 -> 33.33 | S17: 33.33 | T17: =T8 -> 33.33 | U17: 33.33 | W17: =W8 -> 33.33
D18: kWh Capacity per Year of H2 | E18: H2 kWhy | F18: =INDEX(H18:Y18,$E$2) -> 8305836000 | H18: =H16*H17 -> 8305836000 | I18: =I16*I17 -> 8305836000 | J18: =J16*J17 -> 8305836000 | K18: =K16*K17 -> 8305836000 | L18: 8515815000 | M18: =M16*M17 -> 8305836000 | N18: 8305836000 | O18: 8305836000 | P18: =P16*P17 -> 8305836000 | Q18: 8305836000 | R18: =R16*R17 -> 8305836000 | S18: 8305836000 | T18: =T16*T17 -> 8305836000 | U18: 8305836000 | W18: =W16*W17 -> 8305836000
D19: kWh Capacity (Output) per Hour of H2 | E19: H2 kWh | F19: =INDEX(H19:Y19,$E$2) -> 948154.7945 | H19: =H18/8760 -> 948154.7945 | I19: =I18/8760 -> 948154.7945 | J19: =J18/8760 -> 948154.7945 | K19: =K18/8760 -> 948154.7945 | L19: 972125 | M19: =M18/8760 -> 948154.7945 | N19: 948154.7945 | O19: 948154.7945 | P19: =P18/8760 -> 948154.7945 | Q19: 948154.7945 | R19: =R18/8760 -> 948154.7945 | S19: 948154.7945 | T19: =T18/8760 -> 948154.7945 | U19: 948154.7945 | W19: =W18/8760 -> 948154.7945
D21: Availability | E21: % | F21: =INDEX(H21:U21,$E$2) -> 1 | H21: 0.3 | I21: 1 | J21: 1 | K21: 1 | L21: 1 | M21: 1 | N21: 1 | O21: 1 | P21: 1 | Q21: 1 | R21: 1 | S21: 1 | T21: 1 | U21: 1 | W21: 1
D22: H2 Production | E22: H2-kg | L22: =L16*L21 -> 255500000
B24: Efficiency and Energy Production
D25: IEA Efficiency Benchmark | E25: % | F25: =INDEX(H25:U25,$E$2) -> 0.76 | H25: 0.64 | I25: 0.76 | J25: 0.76 | K25: 0.76 | L25: 0.69 | M25: 0.69 | N25: 0.69 | O25: 0.69 | P25: 0.69 | Q25: 0.69 | R25: 0.69 | S25: 0.69 | T25: 0.69 | U25: 0.76 | W25: 0.76
D26: Efficiency Percent Applied | E26: % | F26: =INDEX(H26:U26,$E$2) -> 0.76 | H26: 0.64 | I26: =I11/I28 -> 0.76 | J26: =J11/J28 -> 0.76 | K26: =K11/K28 -> 0.76 | L26: =L11/L28 -> 0.6769442036 | M26: =M11/M28 -> 0.6769442036 | N26: 0.6769442036 | O26: 0.6769442036 | P26: =P11/P28 -> 0.6769442036 | Q26: 0.6769442036 | R26: =R11/R28 -> 0.6769442036 | S26: 0.6769442036 | T26: 0.6769442036 | U26: 0.76 | W26: =W11/W28 -> 0.76
D27: Efficiency - kWh/kg | E27: kWh/kg | F27: =INDEX(H27:U27,$E$2) -> 43.85526316 | H27: =H8/H26 -> 52.078125 | I27: =I8/I26 -> 43.85526316 | J27: =J8/J26 -> 43.85526316 | K27: =K8/K26 -> 43.85526316 | L27: 49.23596335 | M27: =M8/M26 -> 49.23596335 | N27: 49.23596335 | O27: 49.23596335 | P27: =P8/P26 -> 49.23596335 | Q27: 49.23596335 | R27: =R8/R26 -> 49.23596335 | S27: 49.23596335 | T27: =T8/T26 -> 49.23596335 | U27: 43.85526316 | W27: =W8/W26 -> 43.85526316
D28: Efficiency - MMBTU/kg | E28: MMBTU/KG | F28: =INDEX(H28:U28,$E$2) -> 0.1496402976 | H28: =H11/H26 -> 0.1776978534 | I28: =I11/I25 -> 0.1496402976 | J28: =J11/J25 -> 0.1496402976 | K28: =K11/K25 -> 0.1496402976 | L28: 0.168 | M28: 0.168 | N28: 0.168 | O28: 0.168 | P28: 0.168 | Q28: 0.168 | R28: 0.168 | S28: 0.168 | T28: 0.168 | U28: =U11/U25 -> 0.1496402976 | W28: =W11/W25 -> 0.1496402976
D29: kWh Energy Input per Hour | E29: kWhe | F29: =INDEX(H29:U29,$E$2) -> 1247572.098 | H29: =H19/H26 -> 1481491.866 | I29: =I19/I26 -> 1247572.098 | J29: =J19/J26 -> 1247572.098 | K29: =K19/K26 -> 1247572.098 | L29: 1436048.931 | M29: =M19/M26 -> 1400639.505 | N29: 1400639.505 | O29: 1400639.505 | P29: =P19/P26 -> 1400639.505 | Q29: 1400639.505 | R29: =R19/R26 -> 1400639.505 | S29: 1400639.505 | T29: =T19/T26 -> 1400639.505 | U29: 1247572.098 | W29: =W19/W26 -> 1247572.098
D30: Total Gas Consumed | E30: MMBTU | L30: =L28*L22 -> 42924000
D32: Added NG for Synthesyser | E32: % | F32: =INDEX(H32:U32,$E$2) -> 0.06 | H32: 0.06 | I32: 0.06 | J32: 0.06 | K32: 0.06 | L32: 0.06 | M32: 0.06 | N32: 0.06 | O32: 0.06 | P32: 0.06 | Q32: 0.06 | R32: 0.06 | S32: 0.06 | T32: 0.06 | U32: 0.06 | W32: 0.06
C34: Emissions
D35: Percent of Renewable Input | E35: % | H35: 1 | I35: 0 | J35: 0 | K35: 0 | L35: 0 | M35: 0 | N35: 0 | O35: 0 | P35: 0 | Q35: 0 | R35: 0 | S35: 0 | T35: 0 | U35: 0 | W35: 1
D36: Percent of RNG Used | E36: % | J36: 0.1 | K36: 0.1 | W36: 0.2
D38: Emissions per kWh of Electricity - NG | E38: CO2 Tonnes/kWh
D39: Emissions per kWh of Electricity - Coal | E39: CO2 Tonnes/kWh
D40: Percent of Coal Energy | E40: % | L40: 38
D42: RNG Blend | E42: % | L42: 0 | M42: 0 | N42: 0 | O42: 0 | P42: 0.15 | Q42: 0.75 | R42: 0 | S42: 0.14 | T42: 0.75
D43: Added CO2 from Leakage etc. | E43: kg CO2/kg H2 | H43: 0 | I43: 2.1 | J43: 1.33 | K43: 1.33 | L43: =L40/10 -> 3.8 | M43: 1 | N43: 1 | O43: 1 | P43: 1 | Q43: 1 | R43: 1 | S43: 1 | T43: 1 | U43: 2.1 | W43: 2.1
D44: Total kG CO2 per H2 Onsite | E44: kg CO2/kg H2 | H44: =SUM(H43:H43) -> 0 | L44: 10.1
D45: kg CO2/kg H2 at Plant without Capture | E45: kg CO2/kg H2 | H45: =H43+H44 -> 0 | I45: =I43+I44 -> 2.1 | J45: 1.33 | K45: 1.33 | L45: 13.9 | M45: 1 | N45: 1 | O45: 1 | P45: 1 | Q45: 1 | R45: 1 | S45: 1 | T45: 1 | U45: 2.1 | V45: 0 | W45: 2.1
D46: With RNG | L46: =L45*(1-L42) -> 13.9
D47: RNG Reduction | L47: =L45-L46 -> 0
L48: =L44*L50 -> 9.595
D50: Percent CO2 Captured at the Plant | E50: % | I50: 0 | J50: 0.72 | K50: 0.9 | L50: 0.95 | M50: 0.95 | N50: 0.95 | O50: 0.95 | P50: ='Emission Working'!$P$16 -> 0.8319078266 | Q50: ='Emission Working'!$P$16 -> 0.8319078266 | R50: 0.824 | S50: 0.824 | T50: 0.824 | U50: 0 | W50: 0.9
D51: CO2 Capture Rate at the Plant | E51: kg CO2/kg H2 | H51: =H50*H45 -> 0 | I51: =I50*I44 -> 0 | J51: =J50*J44 -> 0 | K51: =K50*K44 -> 0 | L51: =L50*L44 -> 9.595 | M51: =M50*M44 -> 0 | N51: 0 | O51: 0 | P51: =P50*P44 -> 0 | Q51: 0 | R51: =R50*R44 -> 0 | S51: 0 | T51: 0 | U51: 0 | V51: 0 | W51: 0
D52: Remaining Emissions | E52: kg CO2/kg H2 | H52: =H45-H51 -> 0 | I52: =I45-I51 -> 2.1 | J52: =J45-J51 -> 1.33 | K52: =K45-K51 -> 1.33 | L52: =L45-L51 -> 4.305 | M52: =M45-M51 -> 1 | N52: 1 | O52: 1 | P52: =P45-P51 -> 1 | Q52: =Q45-Q51 -> 1 | R52: =R45-R51 -> 1 | S52: =S45-S51+0 -> 1 | T52: =T45-T51 -> 1 | U52: =U45-U51 -> 2.1 | V52: =V45-V51 -> 0 | W52: =W45-W51 -> 2.1
L53: =L52-L47 -> 4.305
D55: PTC from Remaining Emissions | E55: USD/kg | H55: =_xlfn.XLOOKUP(H52,'IEA Hydrogen Data'!50:50,'IEA Hydrogen Data'!54:54,0,-1) -> 3 | I55: =_xlfn.XLOOKUP(I52,'IEA Hydrogen Data'!50:50,'IEA Hydrogen Data'!54:54,0,-1) -> 1 | J55: =_xlfn.XLOOKUP(J52,'IEA Hydrogen Data'!50:50,'IEA Hydrogen Data'!54:54,0,-1) -> 3 | K55: =_xlfn.XLOOKUP(K52,'IEA Hydrogen Data'!50:50,'IEA Hydrogen Data'!54:54,0,-1) -> 3 | L55: =_xlfn.XLOOKUP(L53,'IEA Hydrogen Data'!51:51,'IEA Hydrogen Data'!54:54,0,-1) -> 0 | M55: =_xlfn.XLOOKUP(M52,'IEA Hydrogen Data'!50:50,'IEA Hydrogen Data'!54:54,0,-1) -> 3 | N55: =_xlfn.XLOOKUP(N52,'IEA Hydrogen Data'!50:50,'IEA Hydrogen Data'!54:54,0,-1) -> 3 | O55: =_xlfn.XLOOKUP(O52,'IEA Hydrogen Data'!50:50,'IEA Hydrogen Data'!54:54,0,-1) -> 3 | P55: =_xlfn.XLOOKUP(P52,'IEA Hydrogen Data'!50:50,'IEA Hydrogen Data'!54:54,0,-1) -> 3 | Q55: =_xlfn.XLOOKUP(Q52,'IEA Hydrogen Data'!50:50,'IEA Hydrogen Data'!54:54,0,-1) -> 3 | R55: =_xlfn.XLOOKUP(R52,'IEA Hydrogen Data'!50:50,'IEA Hydrogen Data'!54:54,0,-1) -> 3 | S55: =_xlfn.XLOOKUP(S52,'IEA Hydrogen Data'!50:50,'IEA Hydrogen Data'!54:54,0,-1) -> 3 | T55: =_xlfn.XLOOKUP(T52,'IEA Hydrogen Data'!50:50,'IEA Hydrogen Data'!54:54,0,-1) -> 3 | U55: =_xlfn.XLOOKUP(U52,'IEA Hydrogen Data'!50:50,'IEA Hydrogen Data'!54:54,0,-1,1) -> 1 | V55: =_xlfn.XLOOKUP(V52,'IEA Hydrogen Data'!50:50,'IEA Hydrogen Data'!54:54,0,-1) -> 3 | W55: =_xlfn.XLOOKUP(W52,'IEA Hydrogen Data'!50:50,'IEA Hydrogen Data'!54:54,0,-1) -> 1
D56: Annual PTC | E56: USD
L57: 0.44
L58: =L53-L57 -> 3.865
D60: Value of PTC | L60: =L55*L64 -> 0
D61: Total Gas Cost | L61: =L30*rng*L99 -> 0
D62: PTC Less RNG Cost | L62: =L60-L61 -> 0
D64: Total kg Produced | E64: kG | H64: =H16*H21 -> 74760000 | I64: 249200000 | J64: 249200000 | K64: 249200000 | L64: 255500000 | M64: 249200000 | N64: 249200000 | O64: 249200000 | P64: 249200000 | Q64: 249200000 | R64: 249200000 | S64: 249200000 | T64: 249200000 | U64: 249200000 | W64: =W16*W21 -> 249200000
D65: Total kg Sequestered | E65: kG | H65: =H64*H51 -> 0 | I65: =I64*I51 -> 0 | J65: =J64*J51 -> 0 | K65: =K64*K51 -> 0 | L65: =L64*L51 -> 2451522500 | M65: =M64*M51 -> 0 | N65: 0 | O65: 0 | P65: =P64*P51 -> 0 | Q65: 0 | R65: =R64*R51 -> 0 | S65: 0 | T65: 0 | U65: 0 | W65: =W64*W51 -> 0
D66: Total tons Sequestered | E66: Tonnes | H66: =H65/1000 -> 0 | I66: =I65/1000 -> 0 | J66: =J65/1000 -> 0 | K66: =K65/1000 -> 0 | L66: =L65/1000 -> 2451522.5 | M66: =M65/1000 -> 0 | N66: 0 | O66: 0 | P66: =P65/1000 -> 0 | Q66: 0 | R66: =R65/1000 -> 0 | S66: 0 | T66: =T65/1000 -> 0 | U66: 0 | W66: 0
D69: kg H2 | E69: kgy | H69: =H16 -> 249200000 | I69: 249200000 | J69: 249200000 | K69: 249200000 | L69: 255500000 | M69: 249200000 | N69: 249200000 | O69: 249200000 | P69: 249200000 | Q69: 249200000 | R69: 249200000 | S69: 249200000 | T69: 249200000 | U69: 249200000 | W69: =W16 -> 249200000
D70: kg CO2 | E70: kg
D71: Tons CO2 | E71: Tons p.a. | H71: =H70/1000 -> 0 | I71: =I70/1000 -> 0 | J71: =J70/1000 -> 0 | K71: =K70/1000 -> 0 | L71: 0 | M71: =M70/1000 -> 0 | N71: 0 | O71: 0 | P71: =P70/1000 -> 0 | Q71: 0 | R71: =R70/1000 -> 0 | S71: 0 | T71: =T70/1000 -> 0 | U71: 0 | W71: =W70/1000 -> 0
D72: CO2 Captured | E72: Tons p.a. | H72: =L71-H71 -> 0 | L72: =U71-L71 -> 0 | M72: =V71-M71 -> 0 | N72: 0 | O72: 0 | P72: =I71-P71 -> 0 | Q72: =J71-Q71 -> 0 | R72: =I71-R71 -> 0 | S72: =J71-S71 -> 0 | T72: =K71-T71 -> 0
D74: CO2 Captured | E74: Tons p.a. | F74: =INDEX(H74:U74,$E$2) -> 0 | I74: 0 | J74: 0 | K74: 0 | L74: 2100000 | M74: 2100000 | N74: 2100000 | O74: 2100000 | P74: 2100000 | Q74: 2100000 | R74: 2100000 | S74: 2100000 | T74: 2100000 | U74: 0 | W74: 0
D76: Life time of Project | E76: Years | F76: =INDEX(H76:U76,$E$2) -> 30 | H76: 25 | I76: 30 | J76: 30 | K76: 30 | L76: 30 | M76: 30 | N76: 30 | O76: 30 | P76: 30 | Q76: 30 | R76: 30 | S76: 30 | T76: 30 | U76: 30 | W76: 30
D77: Lifetime of Stack | E77: Hours
D78: Lifetime of Other Equipment | E78: Hours | F78: =INDEX(H78:U78,$E$2) -> 262800 | H78: =H76*8760 -> 219000 | I78: =I76*8760 -> 262800 | J78: =J76*8760 -> 262800 | K78: =K76*8760 -> 262800 | L78: 262800 | M78: =M76*8760 -> 262800 | N78: 262800 | O78: 262800 | P78: =P76*8760 -> 262800 | Q78: 262800 | R78: =R76*8760 -> 262800 | S78: 262800 | T78: =T76*8760 -> 262800 | U78: 262800 | W78: =W76*8760 -> 262800
B82: Free Cash Flow without 45Q
C83: Capital Expenditures
D84: Total Cap Exp | E84: US$ | F84: =INDEX(H84:U84,$E$2) -> 1662820863 | H84: =H86+H85 -> 2133342680 | I84: =I86+I85 -> 1662820863 | J84: =J86+J85 -> 1662820863 | K84: =K86+K85 -> 1662820863 | L84: =2900*10^6 -> 2900000000 | M84: =2900*10^6 -> 2900000000 | N84: 2900000000 | O84: 2900000000 | P84: =2900*10^6 -> 2900000000 | Q84: 2900000000 | R84: =2900*10^6 -> 2900000000 | S84: =2900*10^6 -> 2900000000 | T84: =2900*10^6 -> 2900000000 | U84: =U86+U85 -> 1662820863 | W84: =W86+W85 -> 1662820863
D85: Ammonia Capex | E85: US$ | F85: =INDEX(H85:U85,$E$2) -> 800000000 | H85: 800000000 | I85: 800000000 | J85: 800000000 | K85: 800000000 | L85: 800000000 | M85: 800000000 | N85: 800000000 | O85: 800000000 | P85: 800000000 | Q85: 800000000 | R85: 800000000 | S85: 800000000 | T85: 800000000 | U85: 800000000 | W85: 800000000
D86: H2 Capex | E86: US$ | F86: =INDEX(H86:U86,$E$2) -> 862820863 | H86: =H93*H96 -> 1333342680 | I86: =I91*I19 -> 862820863 | J86: =J91*J19 -> 862820863 | K86: =K91*K19 -> 862820863 | L86: =L84-L85 -> 2100000000 | M86: =M84-M85 -> 2100000000 | N86: 2100000000 | O86: 2100000000 | P86: =P84-P85 -> 2100000000 | Q86: 2100000000 | R86: =R84-R85 -> 2100000000 | S86: =S84-S85 -> 2100000000 | T86: =T84-T85 -> 2100000000 | U86: =U91*U19 -> 862820863 | W86: =W91*W19 -> 862820863
D88: Ammonia CapEx per Ton | E88: USD/Tonne | F88: =INDEX(H88:U88,$E$2) -> 571.4285714 | H88: =H85/H14 -> 571.4285714 | I88: 571.4285714 | J88: 571.4285714 | K88: 571.4285714 | L88: 571.4285714 | M88: 571.4285714 | N88: 571.4285714 | O88: 571.4285714 | P88: 571.4285714 | Q88: 571.4285714 | R88: 571.4285714 | S88: 571.4285714 | T88: 571.4285714 | U88: 571.4285714 | W88: =W85/W14 -> 571.4285714
D90: H2 Cap Exp per kW H2 Output | E90: USD/kWh2 | F90: =INDEX(H90:U90,$E$2) -> 910 | I90: =I86/I19 -> 910 | J90: 910 | K90: 910 | L90: 2160.216022 | M90: 2214.828224 | N90: 2214.828224 | O90: 2214.828224 | P90: 2214.828224 | Q90: 2214.828224 | R90: 2214.828224 | S90: 2214.828224 | T90: 2214.828224 | U90: 910 | W90: =W86/W19 -> 910
D91: H2 Cap Exp per kW H2 Output - IEA Benchmark | E91: USD/kWh2 | F91: =INDEX(H91:U91,$E$2) -> 910 | I91: 910 | J91: 910 | K91: 910 | L91: 1680 | M91: 1680 | N91: 1680 | O91: 1680 | P91: 1680 | Q91: 1680 | R91: 1680 | S91: 1680 | T91: 1680 | U91: 910 | W91: 910
D93: Eqnergy Input | E93: kWh | F93: =INDEX(H93:U93,$E$2) -> 1247572.098 | H93: =H29 -> 1481491.866 | I93: 1247572.098 | J93: 1247572.098 | K93: 1247572.098 | L93: 1436048.931 | M93: 1400639.505 | N93: 1400639.505 | O93: 1400639.505 | P93: 1400639.505 | Q93: 1400639.505 | R93: 1400639.505 | S93: 1400639.505 | T93: 1400639.505 | U93: 1247572.098 | W93: =W29 -> 1247572.098
D94: H2 Cap Exp per kW H2 Input | E94: USD/kWH2 | F94: =INDEX(H94:U94,$E$2) -> 691.6 | H94: =H86/H93 -> 900 | I94: =I86/I93 -> 691.6 | J94: =J86/J93 -> 691.6 | K94: =K86/K93 -> 691.6 | L94: 1462.345714 | M94: =M86/M93 -> 1499.315128 | N94: 1499.315128 | O94: 1499.315128 | P94: =P86/P93 -> 1499.315128 | Q94: 1499.315128 | R94: =R86/R93 -> 1499.315128 | S94: 1499.315128 | T94: =T86/T93 -> 1499.315128 | U94: 691.6 | W94: =W86/W93 -> 691.6
D96: Cap Exp per kWh Input Benchmark | F96: =INDEX(H96:U96,$E$2) -> 0 | H96: 900
C98: Feedstock Cost
D99: NG Price - Non-Renewable | E99: $/MMBTU | F99: =INDEX(H99:U99,$E$2) -> 4 | H99: 4 | I99: =U99 -> 4 | J99: =H99 -> 4 | K99: =L99 -> 4 | L99: =H99 -> 4 | M99: =I99 -> 4 | N99: 4 | O99: 4 | P99: =L99 -> 4 | Q99: =P99 -> 4 | R99: =L99 -> 4 | S99: =P99 -> 4 | T99: =Q99 -> 4 | U99: =L99 -> 4 | W99: =I99 -> 4
D100: Renewable | E100: $/MMBTU | L100: 25
D101: Cost of Fuel | E101: $/KG | F101: =INDEX(H101:U101,$E$2) -> 0.5985611905 | I101: =I99*I28 -> 0.5985611905 | J101: 0.5985611905 | K101: 0.5985611905 | L101: 0.672 | M101: 0.672 | N101: 0.672 | O101: 0.672 | P101: 0.672 | Q101: 0.672 | R101: 0.672 | S101: 0.672 | T101: 0.672 | U101: 0.5985611905 | W101: =W99*W28 -> 0.5985611905
C103: O&M Cost
D104: O&M Pct of Cap Exp - H2 Production | E104: % of Capex | F104: =INDEX(H104:U104,$E$2) -> 0.047 | H104: 0.015 | I104: 0.047 | J104: 0.047 | K104: 0.047 | L104: 0.03 | M104: 0.03 | N104: 0.03 | O104: 0.03 | P104: 0.03 | Q104: 0.03 | R104: 0.03 | S104: 0.03 | T104: 0.03 | U104: 0.047 | W104: 0.047
D105: Total O&M of H2 | E105: $ | F105: =INDEX(H105:U105,$E$2) -> 40552580.56 | H105: =H104*H86 -> 20000140.2 | I105: =I104*I86 -> 40552580.56 | J105: =J104*J86 -> 40552580.56 | K105: =K104*K86 -> 40552580.56 | L105: 63000000 | M105: =M104*M86 -> 63000000 | N105: 63000000 | O105: 63000000 | P105: =P104*P86 -> 63000000 | Q105: 63000000 | R105: =R104*R86 -> 63000000 | S105: 63000000 | T105: =T104*T86 -> 63000000 | U105: 40552580.56 | W105: =W104*W86 -> 40552580.56
D107: O&M Pct of Cap Exp - Ammonia Production | E107: % of Capex | H107: 0.03 | I107: 0.03 | J107: 0.03 | K107: 0.03 | L107: 0.03 | M107: 0.03 | N107: 0.03 | O107: 0.03 | P107: 0.03 | Q107: 0.03 | R107: 0.03 | S107: 0.03 | T107: 0.03 | U107: 0.03 | W107: 0.03
D108: Total O&M of Ammonia | E108: $ | F108: =INDEX(H108:U108,$E$2) -> 24000000 | H108: =H107*H85 -> 24000000 | I108: =I107*I85 -> 24000000 | J108: =J107*J85 -> 24000000 | K108: =K107*K85 -> 24000000 | L108: 24000000 | M108: =M107*M85 -> 24000000 | N108: 24000000 | O108: 24000000 | P108: =P107*P85 -> 24000000 | Q108: 24000000 | R108: =R107*R85 -> 24000000 | S108: 24000000 | T108: =T107*T85 -> 24000000 | U108: 24000000 | W108: =W107*W85 -> 24000000
D110: Inflation Rate | E110: % | F110: =INDEX(H110:U110,$E$2)*F111 -> 0 | H110: 0.02 | I110: 0.02 | J110: 0.02 | K110: 0.02 | L110: 0.02 | M110: 0.02 | N110: 0.02 | O110: 0.02 | P110: 0.02 | Q110: 0.02 | R110: 0.02 | S110: 0.02 | T110: 0.02 | U110: 0.02 | W110: 0.02
D111: Apply Inflation in Prices | E111: Flag | F111: FALSE | H111: =F111 -> FALSE | I111: =U111 -> FALSE | J111: =H111 -> FALSE | K111: =L111 -> FALSE | L111: =H111 -> FALSE | M111: =I111 -> FALSE | N111: FALSE | O111: FALSE | P111: =L111 -> FALSE | Q111: =P111 -> FALSE | R111: =L111 -> FALSE | S111: =P111 -> FALSE | T111: =Q111 -> FALSE | U111: =L111 -> FALSE | W111: =I111 -> FALSE
B113: Taxes and Financing
D115: Tax Rate | E115: % | F115: =INDEX(H115:U115,$E$2) -> 0 | H115: 0 | I115: 0 | J115: 0 | K115: 0 | L115: 0 | M115: 0 | N115: 0 | O115: 0 | P115: 0 | Q115: 0 | R115: 0 | S115: 0 | T115: 0 | U115: 0 | W115: 0
D118: Equity Hurrdle Rate | E118: % | F118: =INDEX(H118:U118,$E$2) -> 0.1 | H118: 0.1 | I118: 0.1 | J118: 0.1 | K118: 0.1 | L118: 0.1 | M118: 0.1 | N118: 0.1 | O118: 0.1 | P118: 0.1 | Q118: 0.1 | R118: 0.1 | S118: 0.1 | T118: 0.1 | U118: 0.1 | W118: 0.1
D119: Real Hurdle Rate | E119: % | F119: =INDEX(H119:U119,$E$2) -> 0.07843137255 | H119: =(1+H118)/(1+H110)-1 -> 0.07843137255 | I119: =(1+I118)/(1+I110)-1 -> 0.07843137255 | J119: =(1+J118)/(1+J110)-1 -> 0.07843137255 | K119: =(1+K118)/(1+K110)-1 -> 0.07843137255 | L119: 0.07843137255 | M119: =(1+M118)/(1+M110)-1 -> 0.07843137255 | N119: 0.07843137255 | O119: 0.07843137255 | P119: =(1+P118)/(1+P110)-1 -> 0.07843137255 | Q119: 0.07843137255 | R119: =(1+R118)/(1+R110)-1 -> 0.07843137255 | S119: 0.07843137255 | T119: =(1+T118)/(1+T110)-1 -> 0.07843137255 | U119: 0.07843137255 | W119: =(1+W118)/(1+W110)-1 -> 0.07843137255
D120: Debt Cost | E120: % | F120: =INDEX(H120:U120,$E$2) -> 0.05 | H120: 0.05 | I120: 0.05 | J120: 0.05 | K120: 0.05 | L120: 0.05 | M120: 0.05 | N120: 0.05 | O120: 0.05 | P120: 0.05 | Q120: 0.05 | R120: 0.05 | S120: 0.05 | T120: 0.05 | U120: 0.05 | W120: 0.05
D121: Real Debt Cost | E121: % | F121: =INDEX(H121:U121,$E$2) -> 0.02941176471 | H121: =(1+H120)/(1+H110)-1 -> 0.02941176471 | I121: =(1+I120)/(1+I110)-1 -> 0.02941176471 | J121: =(1+J120)/(1+J110)-1 -> 0.02941176471 | K121: =(1+K120)/(1+K110)-1 -> 0.02941176471 | L121: 0.02941176471 | M121: =(1+M120)/(1+M110)-1 -> 0.02941176471 | N121: 0.02941176471 | O121: 0.02941176471 | P121: =(1+P120)/(1+P110)-1 -> 0.02941176471 | Q121: 0.02941176471 | R121: =(1+R120)/(1+R110)-1 -> 0.02941176471 | S121: 0.02941176471 | T121: =(1+T120)/(1+T110)-1 -> 0.02941176471 | U121: 0.02941176471 | W121: =(1+W120)/(1+W110)-1 -> 0.02941176471
D122: Real Debt Cost After Tax | E122: % | F122: =INDEX(H122:U122,$E$2) -> 0.02941176471 | H122: =H121*(1-H115) -> 0.02941176471 | I122: =I121*(1-I115) -> 0.02941176471 | J122: =J121*(1-J115) -> 0.02941176471 | K122: =K121*(1-K115) -> 0.02941176471 | L122: 0.02941176471 | M122: =M121*(1-M115) -> 0.02941176471 | N122: 0.02941176471 | O122: 0.02941176471 | P122: =P121*(1-P115) -> 0.02941176471 | Q122: 0.02941176471 | R122: =R121*(1-R115) -> 0.02941176471 | S122: 0.02941176471 | T122: =T121*(1-T115) -> 0.02941176471 | U122: 0.02941176471 | W122: =W121*(1-W115) -> 0.02941176471
D123: Debt/Equity | E123: % | F123: =INDEX(H123:U123,$E$2) -> 0 | H123: =X123/100 -> 0 | I123: =U123 -> 0 | J123: =H123 -> 0 | K123: =L123 -> 0 | L123: =H123 -> 0 | M123: =I123 -> 0 | N123: 0 | O123: 0 | P123: =L123 -> 0 | Q123: =P123 -> 0 | R123: =L123 -> 0 | S123: =P123 -> 0 | T123: =Q123 -> 0 | U123: =L123 -> 0 | W123: =I123 -> 0 | X123: 0
D124: After Tax WACC - Real | E124: % | F124: =INDEX(H124:U124,$E$2) -> 0.07843137255 | H124: =H123*H121+(1-H123)*H119 -> 0.07843137255 | I124: =I123*I121+(1-I123)*I119 -> 0.07843137255 | J124: =J123*J121+(1-J123)*J119 -> 0.07843137255 | K124: =K123*K121+(1-K123)*K119 -> 0.07843137255 | L124: 0.07843137255 | M124: =M123*M121+(1-M123)*M119 -> 0.07843137255 | N124: 0.07843137255 | O124: 0.07843137255 | P124: =P123*P121+(1-P123)*P119 -> 0.07843137255 | Q124: 0.07843137255 | R124: =R123*R121+(1-R123)*R119 -> 0.07843137255 | S124: 0.07843137255 | T124: =T123*T121+(1-T123)*T119 -> 0.07843137255 | U124: 0.07843137255 | W124: =W123*W121+(1-W123)*W119 -> 0.07843137255
D125: After Tax WACC - Nominal | E125: % | F125: =INDEX(H125:U125,$E$2) -> 0.1 | H125: =H118*(1-H123)+H120*H123*(1-H115) -> 0.1 | I125: =I118*(1-I123)+I120*I123*(1-I115) -> 0.1 | J125: =J118*(1-J123)+J120*J123*(1-J115) -> 0.1 | K125: =K118*(1-K123)+K120*K123*(1-K115) -> 0.1 | L125: 0.1 | M125: =M118*(1-M123)+M120*M123*(1-M115) -> 0.1 | N125: 0.1 | O125: 0.1 | P125: =P118*(1-P123)+P120*P123*(1-P115) -> 0.1 | Q125: 0.1 | R125: =R118*(1-R123)+R120*R123*(1-R115) -> 0.1 | S125: 0.1 | T125: =T118*(1-T123)+T120*T123*(1-T115) -> 0.1 | U125: 0.1 | W125: =W118*(1-W123)+W120*W123*(1-W115) -> 0.1
D126: After Tax WACC Applied | E126: % | F126: =INDEX(H126:U126,$E$2) -> 0.1 | H126: =IF(H111,H124,H125) -> 0.1 | I126: =IF(I111,I124,I125) -> 0.1 | J126: =IF(J111,J124,J125) -> 0.1 | K126: =IF(K111,K124,K125) -> 0.1 | L126: 0.1 | M126: =IF(M111,M124,M125) -> 0.1 | N126: 0.1 | O126: 0.1 | P126: =IF(P111,P124,P125) -> 0.1 | Q126: 0.1 | R126: =IF(R111,R124,R125) -> 0.1 | S126: 0.1 | T126: =IF(T111,T124,T125) -> 0.1 | U126: 0.1 | W126: =IF(W111,W124,W125) -> 0.1
D127: Pre Tax WACC | E127: % | F127: =INDEX(H127:U127,$E$2) -> 0.07843137255 | H127: =INDEX(U127:W127,$E$2) -> 0.07843137255 | I127: =I124 -> 0.07843137255 | J127: =J124 -> 0.07843137255 | K127: =K124 -> 0.07843137255 | L127: =L124 -> 0.07843137255 | M127: =M124 -> 0.07843137255 | N127: 0.07843137255 | O127: 0.07843137255 | P127: =P124 -> 0.07843137255 | Q127: 0.07843137255 | R127: =R124 -> 0.07843137255 | S127: 0.07843137255 | T127: 0.07843137255 | U127: 0.07843137255 | W127: =W124 -> 0.07843137255
D129: Apply Straight Line Depreciation | E129: Flag | F129: FALSE
D131: Include 45Q | E131: Flag | F131: =INDEX(H131:U131,$E$2) -> FALSE | H131: TRUE | I131: FALSE | J131: FALSE | K131: FALSE | L131: TRUE | M131: TRUE | N131: TRUE | O131: TRUE | P131: TRUE | Q131: TRUE | R131: TRUE | S131: TRUE | T131: TRUE | U131: FALSE | W131: FALSE
D132: 45Q | E132: $/Ton of CO2 | F132: =INDEX(H132:U132,$E$2) -> 0 | H132: 85 | L132: 85 | M132: 85 | N132: 85 | O132: 85 | P132: 85 | Q132: 85 | R132: 85 | S132: 85 | T132: 85
D133: Term | E133: Years | F133: =INDEX(H133:U133,$E$2) -> 0 | H133: 12 | L133: 12 | M133: 12 | N133: 12 | O133: 12 | P133: 12 | Q133: 12 | R133: 12 | S133: 12 | T133: 12
D134: Annual Value | E134: $ | F134: =INDEX(H134:U134,$E$2) -> 0 | H134: =H132*H74 -> 0 | L134: =L132*L74 -> 178500000 | M134: =M132*M74 -> 178500000 | N134: 178500000 | O134: 178500000 | P134: =P132*P74 -> 178500000 | Q134: 178500000 | R134: =R132*R74 -> 178500000 | S134: =S132*S74 -> 178500000 | T134: =T132*T74 -> 178500000
D135: PV | E135: $ | F135: =INDEX(H135:U135,$E$2) -> 0 | H135: =-PV(H126,H133,H134) -> 0 | L135: =-PV(L126,L133,L134) -> 1216243990 | M135: =-PV(M126,M133,M134) -> 1216243990 | N135: 1216243990 | O135: 1216243990 | P135: =-PV(P126,P133,P134) -> 1216243990 | Q135: 1216243990 | R135: =-PV(R126,R133,R134) -> 1216243990 | S135: =-PV(S126,S133,S134) -> 1216243990 | T135: =-PV(T126,T133,T134) -> 1216243990
B138: Levelised H2 Cost - Without 45 Q
D139: H2 Capex per Kg | E139: $/kg | F139: =INDEX(H139:U139,$E$2) -> 3.462363014 | H139: =H86/H16 -> 5.350492295 | I139: 3.462363014 | J139: 3.462363014 | K139: 3.462363014 | L139: 8.219178082 | M139: 8.426966292 | N139: 8.426966292 | O139: 8.426966292 | P139: 8.426966292 | Q139: 8.426966292 | R139: 8.426966292 | S139: 8.426966292 | T139: 8.426966292 | U139: 3.462363014 | W139: =W86/W16 -> 3.462363014
D141: Levelized Capital Cost | E141: $/kg | F141: =INDEX(H141:U141,$E$2) -> 0.3672848657 | H141: =-PMT(H126,H76,H139) -> 0.5894534214 | I141: =-PMT(I126,I76,I139) -> 0.3672848657 | J141: =-PMT(J126,J76,J139) -> 0.3672848657 | K141: =-PMT(K126,K76,K139) -> 0.3672848657 | L141: =-PMT(L126,L76,L139) -> 0.8718842322 | M141: =-PMT(M126,M76,M139) -> 0.8939262493 | N141: 0.8939262493 | O141: 0.8939262493 | P141: =-PMT(P126,P76,P139) -> 0.8939262493 | Q141: 0.8939262493 | R141: =-PMT(R126,R76,R139) -> 0.8939262493 | S141: 0.8939262493 | T141: =-PMT(T126,T76,T139) -> 0.8939262493 | U141: 0.3672848657 | W141: =-PMT(W126,W76,W139) -> 0.3672848657
D142: O&M Cost | E142: $/kg | F142: =INDEX(H142:U142,$E$2) -> 0.1627310616 | H142: =H105/H16 -> 0.08025738442 | I142: 0.1627310616 | J142: 0.1627310616 | K142: 0.1627310616 | L142: 0.2465753425 | M142: 0.2528089888 | N142: 0.2528089888 | O142: 0.2528089888 | P142: 0.2528089888 | Q142: 0.2528089888 | R142: 0.2528089888 | S142: 0.2528089888 | T142: 0.2528089888 | U142: 0.1627310616 | W142: =W105/W16 -> 0.1627310616
D143: Feedstock Cost | E143: $/kg | F143: =INDEX(H143:U143,$E$2) -> 0.5985611905 | H143: =H101 -> 0 | I143: =I101 -> 0.5985611905 | J143: =J101 -> 0.5985611905 | K143: =K101 -> 0.5985611905 | L143: 0.672 | M143: =M101 -> 0.672 | N143: 0.672 | O143: 0.672 | P143: =P101 -> 0.672 | Q143: 0.672 | R143: =R101 -> 0.672 | S143: 0.672 | T143: =T101 -> 0.672 | U143: 0.5985611905 | W143: =W101 -> 0.5985611905
D144: LCOH without 45 Q Credit | E144: $/kg | F144: =INDEX(H144:U144,$E$2) -> 1.128577118 | H144: =SUM(H141:H143) -> 0.6697108058 | I144: =SUM(I141:I143) -> 1.128577118 | J144: =SUM(J141:J143) -> 1.128577118 | K144: =SUM(K141:K143) -> 1.128577118 | L144: 1.790459575 | M144: =SUM(M141:M143) -> 1.818735238 | N144: 1.818735238 | O144: 1.818735238 | P144: =SUM(P141:P143) -> 1.818735238 | Q144: 1.818735238 | R144: =SUM(R141:R143) -> 1.818735238 | S144: 1.818735238 | T144: =SUM(T141:T143) -> 1.818735238 | U144: 1.128577118 | W144: =SUM(W141:W143) -> 1.128577118
D146: Credit for 45Q over life | E146: $/kg | F146: =INDEX(H146:U146,$E$2) -> 0 | H146: =PMT(H126,H76,H135)/H16*H131 -> 0 | I146: 0 | J146: 0 | K146: 0 | L146: -0.5049637894 | M146: -0.5177297279 | N146: -0.5177297279 | O146: -0.5177297279 | P146: -0.5177297279 | Q146: -0.5177297279 | R146: -0.5177297279 | S146: -0.5177297279 | T146: -0.5177297279 | U146: 0 | W146: =PMT(W126,W76,W135)/W16*W131 -> 0
D147: Levelized Cost with Credit | E147: $/kg | F147: =F144+F146 -> 1.128577118 | H147: =H144+H146 -> 0.6697108058 | I147: =I144+I146 -> 1.128577118 | J147: =J144+J146 -> 1.128577118 | K147: =K144+K146 -> 1.128577118 | L147: 1.285495785 | M147: =M144+M146 -> 1.30100551 | N147: 1.30100551 | O147: 1.30100551 | P147: =P144+P146 -> 1.30100551 | Q147: 1.30100551 | R147: =R144+R146 -> 1.30100551 | S147: 1.30100551 | T147: =T144+T146 -> 1.30100551 | U147: 1.128577118 | W147: =W144+W146 -> 1.128577118
D149: Capacity Charge Credit over 10 Years | E149: $/kg | F149: =INDEX(H149:U149,$E$2) -> 0 | H149: =PMT(H126,H133,-H135)/H16 -> 0 | L149: =PMT(L126,L133,-L135)/L16 -> 0.698630137 | M149: 0.7162921348 | N149: 0.7162921348 | O149: 0.7162921348 | P149: 0.7162921348 | Q149: 0.7162921348 | R149: 0.7162921348 | S149: 0.7162921348 | T149: 0.7162921348
B151: NH2 Synthesyzer Costs
D152: NH3 Capex per Ton | E152: $/Ton | F152: =INDEX(H152:U152,$E$2) -> 0 | L152: =L85/L14 -> 571.4285714 | M152: 571.4285714 | N152: 571.4285714 | O152: 571.4285714 | P152: 571.4285714 | Q152: 571.4285714 | R152: 571.4285714 | S152: 571.4285714 | T152: 571.4285714
D154: Added Levelized Cost | E154: $/Ton
D155: Levelized Cost of Hydrogen | E155: $/Ton
D156: Added O&M Cost
D157: Added Feedstock Cost
K169: Leakage | L169: =L43 -> 3.8
J172: =L62 -> 0 | K172: 20 | L172: 30 | M172: =L172+10 -> 40 | N172: =M172+10 -> 50 | O172: 60
J173: 0 | K173: 0 | L173: 0 | M173: 0 | N173: 0 | O173: 0
J174: 0.05 | K174: 144715200 | L174: 144715200 | M174: 144715200 | N174: 144715200 | O174: 144715200
J175: =J174+5% -> 0.1 | K175: 136130400 | L175: 136130400 | M175: 136130400 | N175: 136130400 | O175: 136130400
I176: RNG Blend | J176: =J175+5% -> 0.15 | K176: 165870600 | L176: 165870600 | M176: 165870600 | N176: 165870600 | O176: 165870600
J177: 0.2 | K177: 157285800 | L177: 157285800 | M177: 157285800 | N177: 157285800 | O177: 157285800
J178: 0.25 | K178: 212576000 | L178: 212576000 | M178: 212576000 | N178: 212576000 | O178: 212576000
J179: 0.3 | K179: 714991200 | L179: 714991200 | M179: 714991200 | N179: 714991200 | O179: 714991200
J180: 0.35 | K180: -60093600 | L180: -60093600 | M180: -60093600 | N180: -60093600 | O180: -60093600

Sheet IRA Inputs
B1: =RIGHT(CELL("filename", B1), LEN(CELL("filename", B1)) - SEARCH("]", CELL("filename", B1))) -> IRA Inputs
B5: Tax Depreciation
C7: Bonus Depreciation - Solar
D8: Calendar Year | F8: 2018 | G8: 2023 | H8: 2024 | I8: 2025 | J8: 2026 | K8: 2027
D9: Percent Bonus Depreciation | E9: % | F9: 1 | G9: 0.8 | H9: 0.6 | I9: 0.4 | J9: 0.2 | K9: 0
D10: Remainin MACRS | E10: % | F10: 0 | G10: 0.2 | H10: 0.4 | I10: 0.6 | J10: 0.8 | K10: 1
D12: A business with a solar PV system placed in service between January 1, 2018, and December 31, 2022, can elect to claim a 100% bonus depreciation.
D13: Starting in 2023, the percentage of capital equipment that can be expensed immediately drops 20% per year (e.g., 80% in 2023 and 60% in 2024) until the provision drops to 0% in 2027.[34]
C15: Bonus Depreciation - Energy Efficiency | E15: % | F15: 1 | G15: 0.8 | H15: 0.6 | I15: 0.4 | J15: 0.2 | K15: 0
B17: MACRS Depreciation
C18: Depreciation Life | E18: Years | F18: 5
C19: Apply 1/2 Year | E19: Flag | F19: TRUE
C21: ITC Reduction to Base for Depreciation | E21: % | F21: 0.5
C23: Year | F23: 0 | G23: 1 | H23: 2 | I23: 3 | J23: 4 | K23: 5 | L23: 6 | M23: 7
D24: Declining Balance | E24: 2 | G24: 0.4 | H24: 0.24 | I24: 0.144 | J24: 0.108 | K24: 0.108
D25: 1/2 Year | G25: 0.2 | H25: 0.32 | I25: 0.192 | J25: 0.126 | K25: 0.108 | L25: 0.054
D27: Date of Solar Operation | F27: 2024-09-01
D28: Apply 1/2 Year | F28: FALSE
D30: Depreciation Rate Applied | G30: 0.4 | H30: 0.24 | I30: 0.144 | J30: 0.108 | K30: 0.108 | L30: 0
C32: Straight Line Depreciation for Building Modifications | F32: 39
B34: Solar Flags - ITC
C35: ITC Flag (ITC is TRUE; PTC is FALSE) | F35: TRUE
C37: Meets Labor Requirements | F37: TRUE
C38: Does not Meet Labor Requirement | F38: FALSE
C40: Domestic Content Bonus | F40: TRUE
C41: Energy Community Bonus | F41: TRUE
C43: Less than 5 MW in LMI Community | F43: TRUE
C44: Indian Land | F44: TRUE
C46: Qualified Low-income Residential | F46: FALSE
C47: Qualified Low-income Economic Benefit | F47: FALSE
C49: Total ITC
F51: Start of Construction
B53: ITC | F53: 2019 | G53: 2020 | H53: 2021 | I53: 2022 | J53: 2023 | K53: 2034 | L53: 2035 | M53: 2036
C55: Meets Labor Requirement
D56: Base Credit | F56: 0.3 | G56: 0.26 | H56: 0.3 | I56: 0.3 | J56: 0.3 | K56: 0.225 | L56: 0.15 | M56: 0
D57: Domestic Content Bonus | J57: 0.1 | K57: 0.075 | L57: 0.05 | M57: 0
D58: Energy Community Bonus | J58: 0.1 | K58: 0.075 | L58: 0.05 | M58: 0
C60: Does Not Meet Labor Requirement
D61: Base Credit | F61: 0.3 | G61: 0.26 | H61: 0.06 | I61: 0.045 | J61: 0.03 | K61: 0 | L61: 0.15 | M61: 0
D62: Domestic Content Bonus | J62: 0.02 | K62: 0.015 | L62: 0.01 | M62: 0
D63: Energy Community Bonus | J63: 0.02 | K63: 0.015 | L63: 0.01 | M63: 0
C65: Low Income Bonus
D66: Less than 5 MW in LMI Community | I66: 0.1 | J66: 0.1 | K66: 0.1 | L66: 0.1 | M66: 0.1
D67: Qualified Low-income Economic Benefit | I67: 0.2 | J67: 0.2 | K67: 0.2 | L67: 0.2 | M67: 0.2
B70: PTC - Cents/kWh 2022 | H70: 2021 | I70: 2022 | J70: 2023 | K70: 2034 | L70: 2035 | M70: 2036
C72: Meets Labor Requirement
D73: Base Credit | I73: 2.6 | J73: 2.6 | K73: 2 | L73: 1.3 | M73: 0
D74: Domestic Content Bonus | J74: 0.3 | K74: 0.2 | L74: 0.1 | M74: 0
D75: Energy Community Bonus | J75: 0.3 | K75: 0.2 | L75: 0.1 | M75: 0
C77: Does Not Meet Labor Requirement
D78: Base Credit | I78: 0.5 | J78: 0.5 | K78: 0.4 | L78: 0.3 | M78: 0
D79: Domestic Content Bonus | J79: 0.1 | K79: 0 | L79: 0 | M79: 0
D80: Energy Community Bonus | J80: 0.1 | K80: 0.1 | L80: 0.1 | M80: 0
H82: 2021 | I82: 2022 | J82: 2023 | K82: 2034 | L82: 2035 | M82: 2036
D83: PTC Inflation per Year | H83: 0.01 | I83: 0.05 | J83: 0.03 | K83: 0.02 | L83: 0.02 | M83: 0.02
D85: PTC Inflation Month | E85: 2020-01-01 | F85: January | G85: 1
B87: Hydrogen - USD/kg
B90: United States
C93: The IRA creates a new tax credit (26 USC 45V – 45V in what follows) to subsidize the production of “clean” hydrogen.
C95: Hydrogen producers have the option of either
D96: receiving a credit equal to a specified dollar value per kilogram of hydrogen produced (a production tax credit; PTC)
D97: or a tax credit equal to a specified fraction of their capital expenses (an investment tax credit; ITC).
C99: These values depend on the life cycle greenhouse gas emissions associated with the hydrogen production
C100: and whether or not the hydrogen producer complies with the prevailing wage and apprenticeship requirements in the bill.
J104: Term of PTC | K104: 10 | L104: Years
K106: High | L106: Low | M106: ITC | N106: PTC
K107: kg CO2 | L107: kg CO2 | M107: % | N107: USD/kg
J109: kg CO2/kgH2 | K109: 4 | L109: 2.5 | M109: 0.06 | N109: 0.6
J111: kg CO2/kgH2 | K111: 2.5 | L111: 1.5 | M111: 0.075 | N111: 0.75
J113: kg CO2/kgH2 | K113: 1.5 | L113: 0.45 | M113: 0.1 | N113: 1
J115: kg CO2/kgH2 | K115: 0.45 | L115: 0 | M115: 0.3 | N115: 3
C118: 45Q | J118: Term of 45Q | M118: 12 | N118: Years
C120: $85/tonne for sequestered carbon dioxide and $60/tonne for utilized carbon dioxide, including for EOR | J120: USD per Metric Tonnes Squestered | M120: 85
J121: Tonnes/kg | M121: 1000
J122: USD per kg sequestered | M122: =M120/M121 -> 0.085
C123: A direct air capture facility must capture at least 1,000 metric tonnes per year.
C124: An electric generator must capture at least 18,750 metric tonnes per year and have a designed capture rate of at least 75 percent with respect to a baseline.
C125: Any other facility must capture at least 12,500 metric tonnes per year.
C127: The same reductions for tax-exempt bonds as for the 45V PTC and the same provisions that allow direct payments also apply to the 45Q credit.
B165: Building Perspective
F168: https://www.energy.gov/sites/default/files/2022-10/Comparison-ITC-PTC-w-bonus-depreciation-Chart.png
F170: https://www.energy.gov/sites/default/files/2022-10/
F172: https://www.energy.gov/eere/solar/federal-solar-tax-credits-businesses
C174: Solar systems that are placed in service in 2022 or later and begin construction before 2033 are eligible for a 30% ITC or a 2.6 ¢/kWh[3]
C175: PTC if they meet labor requirements issued by the Treasury Department[4] or are under 1 megawatt (MW)[5] in size.
N184: Start of Construction
N186: 2019 | O186: 2020 | P186: 2021 | Q186: 2022 | R186: 2023 | S186: 2034 | T186: 2035 | U186: 2036
L188: Base Credit | N188: 0.3 | O188: 0.26 | P188: 0.3 | Q188: 0.3 | R188: 0.3 | S188: 0.225 | T188: 0.15 | U188: 0
L190: Domestic Content Bonus | R190: 0.1 | S190: 0.075 | T190: 0.05 | U190: 0
L192: Energy Community Bonus | R192: 0.1 | S192: 0.075 | T192: 0.05 | U192: 0
L194: Base Credit | N194: 0.3 | O194: 0.26 | P194: 0.06 | Q194: 0.045 | R194: 0.03 | S194: 0 | T194: 0.15 | U194: 0
L196: Domestic Content Bonus | R196: 0.02 | S196: 0.015 | T196: 0.01 | U196: 0
L198: Energy Community Bonus | R198: 0.02 | S198: 0.015 | T198: 0.01 | U198: 0
L200: Cap per Year | N200: 1800 | O200: MWH
L201: Less than 5 MW in LMI Community | Q201: 0.1 | R201: 0.1 | S201: 0.1 | T201: 0.1 | U201: 0.1
L206: Qualified Low-income Economic Benefit | Q206: 0.2 | R206: 0.2 | S206: 0.2 | T206: 0.2 | U206: 0.2
L210: Base Credit | Q210: 2.6 | R210: 2.6 | S210: 2 | T210: 1.3 | U210: 0
L212: Domestic Content Bonus | R212: 0.3 | S212: 0.2 | T212: 0.1 | U212: 0
L214: Energy Community Bonus | R214: 0.3 | S214: 0.2 | T214: 0.1 | U214: 0
L216: Base Credit | Q216: 0.5 | R216: 0.5 | S216: 0.4 | T216: 0.3 | U216: 0
L218: Domestic Content Bonus | R218: 0.1 | S218: 0 | T218: 0 | U218: 0
L220: Energy Community Bonus | R220: 0.1 | S220: 0.1 | T220: 0.1 | U220: 0
D228: To calculate the ITC, you multiply the applicable tax credit percentage by the “tax basis,” or the amount spent on eligible property. Eligible property includes the following:
D230: Solar PV panels, inverters, racking, balance-of-system equipment, and sales and use taxes on the equipment;
D231: CSP equipment necessary to generate electricity, heat or cool a structure, or to provide solar process heat;
D232: Installation costs and certain prorated indirect costs;
D233: Step-up transformers, circuit breakers, and surge arrestors;
D234: Energy storage devices that have a capacity rating of 5 kilowatt hours or greater (even if not charged with solar)[9]
D235: For projects 5 MW or less, the tax basis can include the interconnection property costs spent by the project owner to
D236: enable distribution and transmission of the electricity produced or stored by the system—this can include costs that
D237: are incurred beyond the point at which the energy property interconnects to the distribution or transmission systems. [10]
D239: Most taxpayers who claim the business solar ITC can use an accelerated depreciation schedule[29], which allows for a greater depreciation expense in the early years of the life of an asset, and effectively
D240: reducing the overall cost of a solar installation.[30] Depreciation is considered an expense, so having a larger amount to depreciate during the tax year results in a smaller overall tax liability.
D243: Note that while the ITC is a tax credit—a dollar-for-dollar reduction in taxes owed—depreciation is a deduction, meaning it only reduces a business’s taxes by the depreciation amount
D244: multiplied by the business’s tax rate (see below for an example).
D245: When the business ITC is claimed, accelerated depreciation rules allow the full tax basis minus half the ITC[31] to be depreciated over a five-year depreciation schedule using a half-year convention.[32]
D246: Any unused depreciation can be carried forward indefinitely.[33] Under the rules of this depreciation schedule, taxpayers are allowed to deduct a larger portion of this amount in earlier years,
D247: giving them the benefit of a greater immediate reduction in federal tax liability.
D250: The production tax credit (PTC) is a per kilowatt-hour (kWh) tax credit for electricity generated by solar and other qualifying technologies for the first 10 years of a system’s operation.
D251: It reduces the federal income tax liability and is adjusted annually for inflation.[2]
D253: Generally, project owners cannot claim both the ITC and the PTC for the same property, although they could claim different credits for co-located systems, like solar and storage,
D254: depending on what further guidance is issued by the IRS. Other types of renewable energy and storage technologies are also eligible for the ITC but are beyond the scope of this webpage.
D256: Solar systems that are placed in service in 2022 or later and begin construction before 2033 are eligible for a 30% ITC
D257: or a 2.6 ¢/kWh[3] PTC if they meet labor requirements issued by the Treasury Department[4] or are under 1 megawatt (MW)[5] in size.
D259: The PTC, as written, has a full value of 1.5 ¢/kWh in 1992 dollars, but is adjusted each year using “GDP implicit price deflator” published by the Department of Commerce.
D260: The reduced “base rate” offered to solar systems that do not meet the prevailing wage and apprenticeship requirements has a value of 0.3 ¢/kWh in 1992 dollars. In the event of rounding,
D261: the 1.5 ¢/kWh rate is rounded to the nearest 0.1 cent, while the 0.3 ¢/kWh is rounded to the nearest 0.05 cent.
D262: The Internal Revenue Service publish a 2022 value of 2.6 ¢/kWh in May. Some have argued that with the passage of IRA,
D263: this value should be increased, however Treasury has yet to issue additional guidance.

Sheet IEA Hydrogen Data
M18: kWh/kg | N18: 33.33
M19: Effeciancy | N19: 0.64
M20: kWh/kg | N20: =N18/N19 -> 52.078125
N22: H2 kWh/kg | O22: kwh/kg | P22: 33.33
N23: Conversion | O23: BTU/kWh | P23: 3412.14
N24: H2 BTU/kg | O24: BTU/kWh | P24: =P22*P23 -> 113726.6262
N25: H2 MMBTU/kg | O25: MMBTU/kWh | P25: =P24/1000000 -> 0.1137266262
N27: Conversion | O27: BTU/kWh | P27: =P23/1000000 -> 0.00341214
D28: Term of PTC | E28: 10 | F28: Years
E30: High | F30: Low | G30: ITC | H30: PTC
E31: kg CO2 | F31: kg CO2 | G31: % | H31: USD/kg
D33: kg CO2/kgH2 | E33: 4 | F33: 2.5 | G33: 0.06 | H33: 0.6
D35: kg CO2/kgH2 | E35: 2.5 | F35: 1.5 | G35: 0.075 | H35: 0.75
D37: kg CO2/kgH2 | E37: 1.5 | F37: 0.45 | G37: 0.1 | H37: 1
D39: kg CO2/kgH2 | E39: 0.45 | F39: 0 | G39: 0.3 | H39: 3
D42: Term of 45Q | G42: 12 | H42: Years
D44: USD per Metric Tonnes Squestered | G44: 85 | L44: 1.5
D45: Tonnes/kg | G45: 1000 | L45: =_xlfn.XLOOKUP(L44,50:50,54:54,0,-1) -> 1 | M45: =_xlfn.FORMULATEXT(L45) -> =XLOOKUP(L44,50:50,54:54,0,-1)
D46: USD per kg sequestered | G46: =G44/G45 -> 0.085
N49: Level total Rate
D50: High | E50: 4 | F50: 4 | G50: 2.5 | H50: 1.5 | I50: 0.45 | J50: 0 | N50: Bottoms Up Rate
D51: Low - CO2 kg/H2/hg | E51: 4 | F51: 2.5 | G51: 1.5 | H51: 0.45 | I51: =F39 -> 0 | J51: 0 | N51: Inflation Rate
N52: 3 Part Rate
D53: ITC | E53: 0 | F53: =G33 -> 0.06 | G53: 0.075 | H53: 0.1 | I53: 0.3 | J53: 0.3
D54: PTC | E54: 0 | F54: =H33 -> 0.6 | G54: 0.75 | H54: 1 | I54: 3 | J54: 3
N55: LCOH
N56: WACC and Target ROE
F57: 1.49
F58: =_xlfn.XLOOKUP(F57,50:50,54:54,0,-1) -> 3

Sheet Hydrogen Financial Model
D1: =Inputs!F5 -> SMR - 72% Capture
D2: Year | F2: Constant | G2: Constant | I2: Sum | J2: 0 | K2: 1 | L2: 2 | M2: 3 | N2: 4 | O2: 5 | P2: 6 | Q2: 7 | R2: 8 | S2: 9 | T2: 10 | U2: 11 | V2: 12 | W2: 13 | X2: 14 | Y2: 15 | Z2: 16 | AA2: 17 | AB2: 18 | AC2: 19 | AD2: 20 | AE2: 21 | AF2: 22 | AG2: 23 | AH2: 24 | AI2: 25 | AJ2: 26 | AK2: 27 | AL2: 28 | AM2: 29 | AN2: 30 | AO2: 31 | AP2: 32 | AQ2: 33 | AR2: 34 | AS2: 35 | AT2: 36 | AU2: 37 | AV2: 38 | AW2: 39 | AX2: 40 | AY2: 41
D3: Construction Period | F3: 0 | J3: =(J2=$F$3)*1 -> 1 | K3: 0 | L3: 0 | M3: 0 | N3: 0 | O3: 0 | P3: 0 | Q3: 0 | R3: 0 | S3: 0 | T3: 0 | U3: 0 | V3: 0 | W3: 0 | X3: 0 | Y3: 0 | Z3: 0 | AA3: 0 | AB3: 0 | AC3: 0 | AD3: 0 | AE3: 0 | AF3: 0 | AG3: 0 | AH3: 0 | AI3: 0 | AJ3: 0 | AK3: 0 | AL3: 0 | AM3: 0 | AN3: 0 | AO3: =(AO2=$F$3)*1 -> 0 | AP3: 0 | AQ3: 0 | AR3: 0 | AS3: 0 | AT3: 0 | AU3: 0 | AV3: 0 | AW3: 0 | AX3: 0 | AY3: 0
D4: Operation Period | F4: =Inputs!F76 -> 30 | J4: =(AND(NOT(J3),J2<=$F$4))*1 -> 0 | K4: =(AND(NOT(K3),K2<=$F$4))*1 -> 1 | L4: 1 | M4: 1 | N4: 1 | O4: 1 | P4: 1 | Q4: 1 | R4: 1 | S4: 1 | T4: 1 | U4: 1 | V4: 1 | W4: 1 | X4: 1 | Y4: 1 | Z4: 1 | AA4: 1 | AB4: 1 | AC4: 1 | AD4: 1 | AE4: 1 | AF4: 1 | AG4: 1 | AH4: 1 | AI4: 1 | AJ4: 1 | AK4: 1 | AL4: 1 | AM4: 1 | AN4: 1 | AO4: =(AND(NOT(AO3),AO2<=$F$4))*1 -> 0 | AP4: 0 | AQ4: 0 | AR4: 0 | AS4: 0 | AT4: 0 | AU4: 0 | AV4: 0 | AW4: 0 | AX4: 0 | AY4: 0
D5: Term of 45Q | F5: =Inputs!L133 -> 12 | K5: =(K$2<=$F5)*1 -> 1 | L5: =(L$2<=$F5)*1 -> 1 | M5: 1 | N5: 1 | O5: 1 | P5: 1 | Q5: 1 | R5: 1 | S5: 1 | T5: 1 | U5: 1 | V5: 1 | W5: 0 | X5: 0 | Y5: 0 | Z5: 0 | AA5: 0 | AB5: 0 | AC5: 0 | AD5: 0 | AE5: 0 | AF5: 0 | AG5: 0 | AH5: 0 | AI5: 0 | AJ5: 0 | AK5: 0 | AL5: 0 | AM5: 0 | AN5: 0 | AO5: 0 | AP5: 0 | AQ5: 0 | AR5: 0 | AS5: 0 | AT5: 0 | AU5: 0 | AV5: 0 | AW5: 0 | AX5: 0 | AY5: 0
D6: Stack Replacement Period
B8: Production
D9: H2 Capacity | E9: kgy | F9: =Inputs!F16 -> 249200000 | J9: =$F$9*J4 -> 0 | K9: =$F$9*K4 -> 249200000 | L9: 249200000 | M9: 249200000 | N9: 249200000 | O9: 249200000 | P9: 249200000 | Q9: 249200000 | R9: 249200000 | S9: 249200000 | T9: 249200000 | U9: 249200000 | V9: 249200000 | W9: 249200000 | X9: 249200000 | Y9: 249200000 | Z9: 249200000 | AA9: 249200000 | AB9: 249200000 | AC9: 249200000 | AD9: 249200000 | AE9: 249200000 | AF9: 249200000 | AG9: 249200000 | AH9: 249200000 | AI9: 249200000 | AJ9: 249200000 | AK9: 249200000 | AL9: 249200000 | AM9: 249200000 | AN9: 249200000 | AO9: 0 | AP9: 0 | AQ9: 0 | AR9: 0 | AS9: 0 | AT9: 0 | AU9: 0 | AV9: 0 | AW9: 0 | AX9: 0 | AY9: 0
D10: Availability | E10: % | F10: =Inputs!F21 -> 1 | J10: =$F$10*J4 -> 0 | K10: =$F$10*K4 -> 1 | L10: 1 | M10: 1 | N10: 1 | O10: 1 | P10: 1 | Q10: 1 | R10: 1 | S10: 1 | T10: 1 | U10: 1 | V10: 1 | W10: 1 | X10: 1 | Y10: 1 | Z10: 1 | AA10: 1 | AB10: 1 | AC10: 1 | AD10: 1 | AE10: 1 | AF10: 1 | AG10: 1 | AH10: 1 | AI10: 1 | AJ10: 1 | AK10: 1 | AL10: 1 | AM10: 1 | AN10: 1 | AO10: 0 | AP10: 0 | AQ10: 0 | AR10: 0 | AS10: 0 | AT10: 0 | AU10: 0 | AV10: 0 | AW10: 0 | AX10: 0 | AY10: 0
D11: H2 Production | E11: kgy | J11: =J9*J10 -> 0 | K11: =K9*K10 -> 249200000 | L11: 249200000 | M11: 249200000 | N11: 249200000 | O11: 249200000 | P11: 249200000 | Q11: 249200000 | R11: 249200000 | S11: 249200000 | T11: 249200000 | U11: 249200000 | V11: 249200000 | W11: 249200000 | X11: 249200000 | Y11: 249200000 | Z11: 249200000 | AA11: 249200000 | AB11: 249200000 | AC11: 249200000 | AD11: 249200000 | AE11: 249200000 | AF11: 249200000 | AG11: 249200000 | AH11: 249200000 | AI11: 249200000 | AJ11: 249200000 | AK11: 249200000 | AL11: 249200000 | AM11: 249200000 | AN11: 249200000 | AO11: 0 | AP11: 0 | AQ11: 0 | AR11: 0 | AS11: 0 | AT11: 0 | AU11: 0 | AV11: 0 | AW11: 0 | AX11: 0 | AY11: 0
D13: Efficiency | E13: MMBTU/kg | F13: =Inputs!F28 -> 0.1496402976 | K13: =$F13 -> 0.1496402976 | L13: =$F13 -> 0.1496402976 | M13: 0.1496402976 | N13: 0.1496402976 | O13: 0.1496402976 | P13: 0.1496402976 | Q13: 0.1496402976 | R13: 0.1496402976 | S13: 0.1496402976 | T13: 0.1496402976 | U13: 0.1496402976 | V13: 0.1496402976 | W13: 0.1496402976 | X13: 0.1496402976 | Y13: 0.1496402976 | Z13: 0.1496402976 | AA13: 0.1496402976 | AB13: 0.1496402976 | AC13: 0.1496402976 | AD13: 0.1496402976 | AE13: 0.1496402976 | AF13: 0.1496402976 | AG13: 0.1496402976 | AH13: 0.1496402976 | AI13: 0.1496402976 | AJ13: 0.1496402976 | AK13: 0.1496402976 | AL13: 0.1496402976 | AM13: 0.1496402976 | AN13: 0.1496402976 | AO13: =$F13 -> 0.1496402976 | AP13: 0.1496402976 | AQ13: 0.1496402976 | AR13: 0.1496402976 | AS13: 0.1496402976 | AT13: 0.1496402976 | AU13: 0.1496402976 | AV13: 0.1496402976 | AW13: 0.1496402976 | AX13: 0.1496402976 | AY13: 0.1496402976
D14: NG Purchased | E14: MMBTU | K14: =K11*K13 -> 37290362.17 | L14: 37290362.17 | M14: 37290362.17 | N14: 37290362.17 | O14: 37290362.17 | P14: 37290362.17 | Q14: 37290362.17 | R14: 37290362.17 | S14: 37290362.17 | T14: 37290362.17 | U14: 37290362.17 | V14: 37290362.17 | W14: 37290362.17 | X14: 37290362.17 | Y14: 37290362.17 | Z14: 37290362.17 | AA14: 37290362.17 | AB14: 37290362.17 | AC14: 37290362.17 | AD14: 37290362.17 | AE14: 37290362.17 | AF14: 37290362.17 | AG14: 37290362.17 | AH14: 37290362.17 | AI14: 37290362.17 | AJ14: 37290362.17 | AK14: 37290362.17 | AL14: 37290362.17 | AM14: 37290362.17 | AN14: 37290362.17 | AO14: 0 | AP14: 0 | AQ14: 0 | AR14: 0 | AS14: 0 | AT14: 0 | AU14: 0 | AV14: 0 | AW14: 0 | AX14: 0 | AY14: 0
D16: Efficiency Before Degradation | E16: kWh/kg
D17: Degradation | E17: % p.a.
D18: Degradation Re-set | E18: Flag
D19: Degradation Index | E19: Index
D20: Final Efficiency | E20: kWh/kg
D21: Electricity Purchased | E21: kWh
B23: Pre-tax without 45Q
C24: Levelized Price without 45Q
D25: H2 Price | E25: $/kg | F25: =Inputs!F144 -> 1.128577118 | K25: =$F25 -> 1.128577118 | L25: 1.128577118 | M25: 1.128577118 | N25: 1.128577118 | O25: 1.128577118 | P25: 1.128577118 | Q25: 1.128577118 | R25: 1.128577118 | S25: 1.128577118 | T25: 1.128577118 | U25: 1.128577118 | V25: 1.128577118 | W25: 1.128577118 | X25: 1.128577118 | Y25: 1.128577118 | Z25: 1.128577118 | AA25: 1.128577118 | AB25: 1.128577118 | AC25: 1.128577118 | AD25: 1.128577118 | AE25: 1.128577118 | AF25: 1.128577118 | AG25: 1.128577118 | AH25: 1.128577118 | AI25: 1.128577118 | AJ25: 1.128577118 | AK25: 1.128577118 | AL25: 1.128577118 | AM25: 1.128577118 | AN25: 1.128577118 | AO25: 1.128577118 | AP25: 1.128577118 | AQ25: 1.128577118 | AR25: 1.128577118 | AS25: 1.128577118 | AT25: 1.128577118 | AU25: 1.128577118 | AV25: 1.128577118 | AW25: 1.128577118 | AX25: 1.128577118 | AY25: 1.128577118
D26: Inflation | E26: % | F26: =Inputs!L110 -> 0.02 | K26: =$F$26 -> 0.02 | L26: 0.02 | M26: 0.02 | N26: 0.02 | O26: 0.02 | P26: 0.02 | Q26: 0.02 | R26: 0.02 | S26: 0.02 | T26: 0.02 | U26: 0.02 | V26: 0.02 | W26: 0.02 | X26: 0.02 | Y26: 0.02 | Z26: 0.02 | AA26: 0.02 | AB26: 0.02 | AC26: 0.02 | AD26: 0.02 | AE26: 0.02 | AF26: 0.02 | AG26: 0.02 | AH26: 0.02 | AI26: 0.02 | AJ26: 0.02 | AK26: 0.02 | AL26: 0.02 | AM26: 0.02 | AN26: 0.02 | AO26: 0.02 | AP26: 0.02 | AQ26: 0.02 | AR26: 0.02 | AS26: 0.02 | AT26: 0.02 | AU26: 0.02 | AV26: 0.02 | AW26: 0.02 | AX26: 0.02 | AY26: 0.02
D27: Inflation Index | E27: Index | J27: 1 | K27: =J27*(1+K26) -> 1.02 | L27: =K27*(1+L26) -> 1.0404 | M27: 1.061208 | N27: 1.08243216 | O27: 1.104080803 | P27: 1.126162419 | Q27: 1.148685668 | R27: 1.171659381 | S27: 1.195092569 | T27: 1.21899442 | U27: 1.243374308 | V27: 1.268241795 | W27: 1.29360663 | X27: 1.319478763 | Y27: 1.345868338 | Z27: 1.372785705 | AA27: 1.400241419 | AB27: 1.428246248 | AC27: 1.456811173 | AD27: 1.485947396 | AE27: 1.515666344 | AF27: 1.545979671 | AG27: 1.576899264 | AH27: 1.608437249 | AI27: 1.640605994 | AJ27: 1.673418114 | AK27: 1.706886477 | AL27: 1.741024206 | AM27: 1.77584469 | AN27: 1.811361584 | AO27: =AN27*(1+AO26) -> 1.847588816 | AP27: 1.884540592 | AQ27: 1.922231404 | AR27: 1.960676032 | AS27: 1.999889553 | AT27: 2.039887344 | AU27: 2.080685091 | AV27: 2.122298792 | AW27: 2.164744768 | AX27: 2.208039664 | AY27: 2.252200457
D28: Inflation Index Applied | E28: Index | F28: =Inputs!F111 -> FALSE | K28: =IF($F$28,K27,1) -> 1 | L28: 1 | M28: 1 | N28: 1 | O28: 1 | P28: 1 | Q28: 1 | R28: 1 | S28: 1 | T28: 1 | U28: 1 | V28: 1 | W28: 1 | X28: 1 | Y28: 1 | Z28: 1 | AA28: 1 | AB28: 1 | AC28: 1 | AD28: 1 | AE28: 1 | AF28: 1 | AG28: 1 | AH28: 1 | AI28: 1 | AJ28: 1 | AK28: 1 | AL28: 1 | AM28: 1 | AN28: 1 | AO28: 1 | AP28: 1 | AQ28: 1 | AR28: 1 | AS28: 1 | AT28: 1 | AU28: 1 | AV28: 1 | AW28: 1 | AX28: 1 | AY28: 1
D30: Revenues without Inflatoin | E30: USD | I30: =SUM(K30:XFD30) -> 8437242533 | K30: =K25*K11 -> 281241417.8 | L30: 281241417.8 | M30: 281241417.8 | N30: 281241417.8 | O30: 281241417.8 | P30: 281241417.8 | Q30: 281241417.8 | R30: 281241417.8 | S30: 281241417.8 | T30: 281241417.8 | U30: 281241417.8 | V30: 281241417.8 | W30: 281241417.8 | X30: 281241417.8 | Y30: 281241417.8 | Z30: 281241417.8 | AA30: 281241417.8 | AB30: 281241417.8 | AC30: 281241417.8 | AD30: 281241417.8 | AE30: 281241417.8 | AF30: 281241417.8 | AG30: 281241417.8 | AH30: 281241417.8 | AI30: 281241417.8 | AJ30: 281241417.8 | AK30: 281241417.8 | AL30: 281241417.8 | AM30: 281241417.8 | AN30: 281241417.8 | AO30: 0 | AP30: 0 | AQ30: 0 | AR30: 0 | AS30: 0 | AT30: 0 | AU30: 0 | AV30: 0 | AW30: 0 | AX30: 0 | AY30: 0
D31: Revenues Inflation | E31: USD | I31: =SUM(K31:XFD31) -> 8437242533 | K31: =K28*K30 -> 281241417.8 | L31: 281241417.8 | M31: 281241417.8 | N31: 281241417.8 | O31: 281241417.8 | P31: 281241417.8 | Q31: 281241417.8 | R31: 281241417.8 | S31: 281241417.8 | T31: 281241417.8 | U31: 281241417.8 | V31: 281241417.8 | W31: 281241417.8 | X31: 281241417.8 | Y31: 281241417.8 | Z31: 281241417.8 | AA31: 281241417.8 | AB31: 281241417.8 | AC31: 281241417.8 | AD31: 281241417.8 | AE31: 281241417.8 | AF31: 281241417.8 | AG31: 281241417.8 | AH31: 281241417.8 | AI31: 281241417.8 | AJ31: 281241417.8 | AK31: 281241417.8 | AL31: 281241417.8 | AM31: 281241417.8 | AN31: 281241417.8 | AO31: 0 | AP31: 0 | AQ31: 0 | AR31: 0 | AS31: 0 | AT31: 0 | AU31: 0 | AV31: 0 | AW31: 0 | AX31: 0 | AY31: 0
D33: Gas Price | E33: $/MMBTU | F33: =Inputs!F99 -> 4 | K33: =$F33*K28 -> 4 | L33: 4 | M33: 4 | N33: 4 | O33: 4 | P33: 4 | Q33: 4 | R33: 4 | S33: 4 | T33: 4 | U33: 4 | V33: 4 | W33: 4 | X33: 4 | Y33: 4 | Z33: 4 | AA33: 4 | AB33: 4 | AC33: 4 | AD33: 4 | AE33: 4 | AF33: 4 | AG33: 4 | AH33: 4 | AI33: 4 | AJ33: 4 | AK33: 4 | AL33: 4 | AM33: 4 | AN33: 4 | AO33: 4 | AP33: 4 | AQ33: 4 | AR33: 4 | AS33: 4 | AT33: 4 | AU33: 4 | AV33: 4 | AW33: 4 | AX33: 4 | AY33: 4
D34: Gas Cost | E34: USD | I34: =SUM(K34:XFD34) -> 4474843460 | K34: =K14*K33 -> 149161448.7 | L34: 149161448.7 | M34: 149161448.7 | N34: 149161448.7 | O34: 149161448.7 | P34: 149161448.7 | Q34: 149161448.7 | R34: 149161448.7 | S34: 149161448.7 | T34: 149161448.7 | U34: 149161448.7 | V34: 149161448.7 | W34: 149161448.7 | X34: 149161448.7 | Y34: 149161448.7 | Z34: 149161448.7 | AA34: 149161448.7 | AB34: 149161448.7 | AC34: 149161448.7 | AD34: 149161448.7 | AE34: 149161448.7 | AF34: 149161448.7 | AG34: 149161448.7 | AH34: 149161448.7 | AI34: 149161448.7 | AJ34: 149161448.7 | AK34: 149161448.7 | AL34: 149161448.7 | AM34: 149161448.7 | AN34: 149161448.7 | AO34: 0 | AP34: 0 | AQ34: 0 | AR34: 0 | AS34: 0 | AT34: 0 | AU34: 0 | AV34: 0 | AW34: 0 | AX34: 0 | AY34: 0
D36: Electricity Price | E36: $/kWh
D37: Electricity Cost | E37: USD
D39: Other Operating Cost | E39: USD | F39: =Inputs!F105 -> 40552580.56 | I39: =SUM(K39:XFD39) -> 1216577417 | K39: =$F39*K28*K4 -> 40552580.56 | L39: 40552580.56 | M39: 40552580.56 | N39: 40552580.56 | O39: 40552580.56 | P39: 40552580.56 | Q39: 40552580.56 | R39: 40552580.56 | S39: 40552580.56 | T39: 40552580.56 | U39: 40552580.56 | V39: 40552580.56 | W39: 40552580.56 | X39: 40552580.56 | Y39: 40552580.56 | Z39: 40552580.56 | AA39: 40552580.56 | AB39: 40552580.56 | AC39: 40552580.56 | AD39: 40552580.56 | AE39: 40552580.56 | AF39: 40552580.56 | AG39: 40552580.56 | AH39: 40552580.56 | AI39: 40552580.56 | AJ39: 40552580.56 | AK39: 40552580.56 | AL39: 40552580.56 | AM39: 40552580.56 | AN39: 40552580.56 | AO39: 0 | AP39: 0 | AQ39: 0 | AR39: 0 | AS39: 0 | AT39: 0 | AU39: 0 | AV39: 0 | AW39: 0 | AX39: 0 | AY39: 0
D40: Total Operation Cost | E40: USD
D42: Capital Expenditure | E42: USD | F42: =Inputs!F86 -> 862820863 | I42: =SUM(J42:XFD42) -> 862820863 | J42: =F42 -> 862820863
D44: Pre-tax Free Cash Flow | E44: $ | I44: =SUM(J44:XFD44) -> 1883000793 | J44: =J31-J34-J39-J42 -> -862820863 | K44: 91527388.53 | L44: 91527388.53 | M44: 91527388.53 | N44: 91527388.53 | O44: 91527388.53 | P44: 91527388.53 | Q44: 91527388.53 | R44: 91527388.53 | S44: 91527388.53 | T44: 91527388.53 | U44: 91527388.53 | V44: 91527388.53 | W44: 91527388.53 | X44: 91527388.53 | Y44: 91527388.53 | Z44: 91527388.53 | AA44: 91527388.53 | AB44: 91527388.53 | AC44: 91527388.53 | AD44: 91527388.53 | AE44: 91527388.53 | AF44: 91527388.53 | AG44: 91527388.53 | AH44: 91527388.53 | AI44: 91527388.53 | AJ44: 91527388.53 | AK44: 91527388.53 | AL44: 91527388.53 | AM44: 91527388.53 | AN44: 91527388.53 | AO44: 0 | AP44: 0 | AQ44: 0 | AR44: 0 | AS44: 0 | AT44: 0 | AU44: 0 | AV44: 0 | AW44: 0 | AX44: 0 | AY44: 0
D45: Pre-tax IRR Check | E45: % | F45: =IRR(J44:AY44) -> 0.1
C47: Financial Statements with Tax without 45Q
D48: Financing Requirement | E48: $
D49: Debt Issue | E49: $
D50: Equity Issue | E50: $
D52: Opening Balance | E52: $
D53: Add: Draws | E53: $
D54: Less: Repayments | E54: $
D55: Closing Balance | E55: $
D56: Interest | E56: $ | F56: =Inputs!F120 -> 0.05
D58: EBITDA | E58: $ | K58: =K31-K34-K39 -> 91527388.53 | L58: =L31-L34-L39 -> 91527388.53 | M58: 91527388.53 | N58: 91527388.53 | O58: 91527388.53 | P58: 91527388.53 | Q58: 91527388.53 | R58: 91527388.53 | S58: 91527388.53 | T58: 91527388.53 | U58: 91527388.53 | V58: 91527388.53 | W58: 91527388.53 | X58: 91527388.53 | Y58: 91527388.53 | Z58: 91527388.53 | AA58: 91527388.53 | AB58: 91527388.53 | AC58: 91527388.53 | AD58: 91527388.53 | AE58: 91527388.53 | AF58: 91527388.53 | AG58: 91527388.53 | AH58: 91527388.53 | AI58: 91527388.53 | AJ58: 91527388.53 | AK58: 91527388.53 | AL58: 91527388.53 | AM58: 91527388.53 | AN58: 91527388.53 | AO58: 0 | AP58: 0 | AQ58: 0 | AR58: 0 | AS58: 0 | AT58: 0 | AU58: 0 | AV58: 0 | AW58: 0 | AX58: 0 | AY58: 0
D59: Less: Depreciation | E59: $ | F59: =F42 -> 862820863 | G59: =F4 -> 30 | K59: =$F$59/$G$59*K4 -> 28760695.43 | L59: =$F$59/$G$59*L4 -> 28760695.43 | M59: 28760695.43 | N59: 28760695.43 | O59: 28760695.43 | P59: 28760695.43 | Q59: 28760695.43 | R59: 28760695.43 | S59: 28760695.43 | T59: 28760695.43 | U59: 28760695.43 | V59: 28760695.43 | W59: 28760695.43 | X59: 28760695.43 | Y59: 28760695.43 | Z59: 28760695.43 | AA59: 28760695.43 | AB59: 28760695.43 | AC59: 28760695.43 | AD59: 28760695.43 | AE59: 28760695.43 | AF59: 28760695.43 | AG59: 28760695.43 | AH59: 28760695.43 | AI59: 28760695.43 | AJ59: 28760695.43 | AK59: 28760695.43 | AL59: 28760695.43 | AM59: 28760695.43 | AN59: 28760695.43 | AO59: 0 | AP59: 0 | AQ59: 0 | AR59: 0 | AS59: 0 | AT59: 0 | AU59: 0 | AV59: 0 | AW59: 0 | AX59: 0 | AY59: 0
D60: EBIT | E60: $ | K60: =K58-K59 -> 62766693.09 | L60: =L58-L59 -> 62766693.09 | M60: 62766693.09 | N60: 62766693.09 | O60: 62766693.09 | P60: 62766693.09 | Q60: 62766693.09 | R60: 62766693.09 | S60: 62766693.09 | T60: 62766693.09 | U60: 62766693.09 | V60: 62766693.09 | W60: 62766693.09 | X60: 62766693.09 | Y60: 62766693.09 | Z60: 62766693.09 | AA60: 62766693.09 | AB60: 62766693.09 | AC60: 62766693.09 | AD60: 62766693.09 | AE60: 62766693.09 | AF60: 62766693.09 | AG60: 62766693.09 | AH60: 62766693.09 | AI60: 62766693.09 | AJ60: 62766693.09 | AK60: 62766693.09 | AL60: 62766693.09 | AM60: 62766693.09 | AN60: 62766693.09 | AO60: 0 | AP60: 0 | AQ60: 0 | AR60: 0 | AS60: 0 | AT60: 0 | AU60: 0 | AV60: 0 | AW60: 0 | AX60: 0 | AY60: 0
D61: Less: Interest | E61: $
D62: EBT | E62: $ | K62: =K60-K61 -> 62766693.09 | L62: =L60-L61 -> 62766693.09 | M62: 62766693.09 | N62: 62766693.09 | O62: 62766693.09 | P62: 62766693.09 | Q62: 62766693.09 | R62: 62766693.09 | S62: 62766693.09 | T62: 62766693.09 | U62: 62766693.09 | V62: 62766693.09 | W62: 62766693.09 | X62: 62766693.09 | Y62: 62766693.09 | Z62: 62766693.09 | AA62: 62766693.09 | AB62: 62766693.09 | AC62: 62766693.09 | AD62: 62766693.09 | AE62: 62766693.09 | AF62: 62766693.09 | AG62: 62766693.09 | AH62: 62766693.09 | AI62: 62766693.09 | AJ62: 62766693.09 | AK62: 62766693.09 | AL62: 62766693.09 | AM62: 62766693.09 | AN62: 62766693.09 | AO62: 0 | AP62: 0 | AQ62: 0 | AR62: 0 | AS62: 0 | AT62: 0 | AU62: 0 | AV62: 0 | AW62: 0 | AX62: 0 | AY62: 0
D63: Less Taxes | E63: $ | F63: =Inputs!F115 -> 0 | K63: =K62*$F$63 -> 0 | L63: =L62*$F$63 -> 0 | M63: 0 | N63: 0 | O63: 0 | P63: 0 | Q63: 0 | R63: 0 | S63: 0 | T63: 0 | U63: 0 | V63: 0 | W63: 0 | X63: 0 | Y63: 0 | Z63: 0 | AA63: 0 | AB63: 0 | AC63: 0 | AD63: 0 | AE63: 0 | AF63: 0 | AG63: 0 | AH63: 0 | AI63: 0 | AJ63: 0 | AK63: 0 | AL63: 0 | AM63: 0 | AN63: 0 | AO63: 0 | AP63: 0 | AQ63: 0 | AR63: 0 | AS63: 0 | AT63: 0 | AU63: 0 | AV63: 0 | AW63: 0 | AX63: 0 | AY63: 0
D64: Net Income | E64: $ | K64: =K62-K63 -> 62766693.09 | L64: =L62-L63 -> 62766693.09 | M64: 62766693.09 | N64: 62766693.09 | O64: 62766693.09 | P64: 62766693.09 | Q64: 62766693.09 | R64: 62766693.09 | S64: 62766693.09 | T64: 62766693.09 | U64: 62766693.09 | V64: 62766693.09 | W64: 62766693.09 | X64: 62766693.09 | Y64: 62766693.09 | Z64: 62766693.09 | AA64: 62766693.09 | AB64: 62766693.09 | AC64: 62766693.09 | AD64: 62766693.09 | AE64: 62766693.09 | AF64: 62766693.09 | AG64: 62766693.09 | AH64: 62766693.09 | AI64: 62766693.09 | AJ64: 62766693.09 | AK64: 62766693.09 | AL64: 62766693.09 | AM64: 62766693.09 | AN64: 62766693.09 | AO64: 0 | AP64: 0 | AQ64: 0 | AR64: 0 | AS64: 0 | AT64: 0 | AU64: 0 | AV64: 0 | AW64: 0 | AX64: 0 | AY64: 0
D66: EBITDA | E66: $ | K66: =K58 -> 91527388.53 | L66: =L58 -> 91527388.53 | M66: 91527388.53 | N66: 91527388.53 | O66: 91527388.53 | P66: 91527388.53 | Q66: 91527388.53 | R66: 91527388.53 | S66: 91527388.53 | T66: 91527388.53 | U66: 91527388.53 | V66: 91527388.53 | W66: 91527388.53 | X66: 91527388.53 | Y66: 91527388.53 | Z66: 91527388.53 | AA66: 91527388.53 | AB66: 91527388.53 | AC66: 91527388.53 | AD66: 91527388.53 | AE66: 91527388.53 | AF66: 91527388.53 | AG66: 91527388.53 | AH66: 91527388.53 | AI66: 91527388.53 | AJ66: 91527388.53 | AK66: 91527388.53 | AL66: 91527388.53 | AM66: 91527388.53 | AN66: 91527388.53 | AO66: 0 | AP66: 0 | AQ66: 0 | AR66: 0 | AS66: 0 | AT66: 0 | AU66: 0 | AV66: 0 | AW66: 0 | AX66: 0 | AY66: 0
D67: Less: Tax | E67: $ | K67: =K63 -> 0 | L67: =L63 -> 0 | M67: 0 | N67: 0 | O67: 0 | P67: 0 | Q67: 0 | R67: 0 | S67: 0 | T67: 0 | U67: 0 | V67: 0 | W67: 0 | X67: 0 | Y67: 0 | Z67: 0 | AA67: 0 | AB67: 0 | AC67: 0 | AD67: 0 | AE67: 0 | AF67: 0 | AG67: 0 | AH67: 0 | AI67: 0 | AJ67: 0 | AK67: 0 | AL67: 0 | AM67: 0 | AN67: 0 | AO67: 0 | AP67: 0 | AQ67: 0 | AR67: 0 | AS67: 0 | AT67: 0 | AU67: 0 | AV67: 0 | AW67: 0 | AX67: 0 | AY67: 0
D68: Operating Cash Flow | E68: $ | K68: =K66-K67 -> 91527388.53 | L68: =L66-L67 -> 91527388.53 | M68: 91527388.53 | N68: 91527388.53 | O68: 91527388.53 | P68: 91527388.53 | Q68: 91527388.53 | R68: 91527388.53 | S68: 91527388.53 | T68: 91527388.53 | U68: 91527388.53 | V68: 91527388.53 | W68: 91527388.53 | X68: 91527388.53 | Y68: 91527388.53 | Z68: 91527388.53 | AA68: 91527388.53 | AB68: 91527388.53 | AC68: 91527388.53 | AD68: 91527388.53 | AE68: 91527388.53 | AF68: 91527388.53 | AG68: 91527388.53 | AH68: 91527388.53 | AI68: 91527388.53 | AJ68: 91527388.53 | AK68: 91527388.53 | AL68: 91527388.53 | AM68: 91527388.53 | AN68: 91527388.53 | AO68: 0 | AP68: 0 | AQ68: 0 | AR68: 0 | AS68: 0 | AT68: 0 | AU68: 0 | AV68: 0 | AW68: 0 | AX68: 0 | AY68: 0
D70: Less: Investing Cash Flow | E70: $ | J70: =-J42 -> -862820863 | K70: =-K42 -> 0 | L70: 0 | M70: 0 | N70: 0 | O70: 0 | P70: 0 | Q70: 0 | R70: 0 | S70: 0 | T70: 0 | U70: 0 | V70: 0 | W70: 0 | X70: 0 | Y70: 0 | Z70: 0 | AA70: 0 | AB70: 0 | AC70: 0 | AD70: 0 | AE70: 0 | AF70: 0 | AG70: 0 | AH70: 0 | AI70: 0 | AJ70: 0 | AK70: 0 | AL70: 0 | AM70: 0 | AN70: 0 | AO70: 0 | AP70: 0 | AQ70: 0 | AR70: 0 | AS70: 0 | AT70: 0 | AU70: 0 | AV70: 0 | AW70: 0 | AX70: 0 | AY70: 0
D72: Debt Issued | E72: $ | F72: =Inputs!F123 -> 0 | J72: =$F72*J$70*-1 -> 0 | K72: =$F72*K$70*-1 -> 0 | L72: 0 | M72: 0 | N72: 0 | O72: 0 | P72: 0 | Q72: 0 | R72: 0 | S72: 0 | T72: 0 | U72: 0 | V72: 0 | W72: 0 | X72: 0 | Y72: 0 | Z72: 0 | AA72: 0 | AB72: 0 | AC72: 0 | AD72: 0 | AE72: 0 | AF72: 0 | AG72: 0 | AH72: 0 | AI72: 0 | AJ72: 0 | AK72: 0 | AL72: 0 | AM72: 0 | AN72: 0 | AO72: 0 | AP72: 0 | AQ72: 0 | AR72: 0 | AS72: 0 | AT72: 0 | AU72: 0 | AV72: 0 | AW72: 0 | AX72: 0 | AY72: 0
D73: Equity Issued | E73: $ | F73: =1-F72 -> 1 | J73: =$F73*J$70*-1 -> 862820863 | K73: 0 | L73: 0 | M73: 0 | N73: 0 | O73: 0 | P73: 0 | Q73: 0 | R73: 0 | S73: 0 | T73: 0 | U73: 0 | V73: 0 | W73: 0 | X73: 0 | Y73: 0 | Z73: 0 | AA73: 0 | AB73: 0 | AC73: 0 | AD73: 0 | AE73: 0 | AF73: 0 | AG73: 0 | AH73: 0 | AI73: 0 | AJ73: 0 | AK73: 0 | AL73: 0 | AM73: 0 | AN73: 0 | AO73: 0 | AP73: 0 | AQ73: 0 | AR73: 0 | AS73: 0 | AT73: 0 | AU73: 0 | AV73: 0 | AW73: 0 | AX73: 0 | AY73: 0
D74: Less: Interest Expense | E74: $
D75: Less: Repayment | E75: $
D76: Less: Dividends | E76: $
D77: Total Financing Cash Flow | E77: $
C79: Balance Sheet
D80: Assets | E80: $
D81: Gross Plant | E81: $
D82: Less: Accumulated Depreciation | E82: $
D83: Net Plant | E83: $
D85: Liabilites and Equity | E85: $
D86: Total Debt | E86: $
D88: Opening Equity Balance | E88: $
D89: Add: Equity Issues | E89: $
D90: Add: Net Income | E90: $
D91: Less: Dividends | E91: $
D92: Closing Balance | E92: $
D93: Total Liabilities and Equity | E93: $
D95: Difference
D96: Test
D98: Return on Equity
B102: Analysis with CO2 Sequester and 45Q Credit -- Charge Spread over Life of Project
D103: CO2 Sequested | F103: =Inputs!F74 -> 0 | K103: =$F103 -> 0 | L103: 0 | M103: 0 | N103: 0 | O103: 0 | P103: 0 | Q103: 0 | R103: 0 | S103: 0 | T103: 0 | U103: 0 | V103: 0 | W103: 0 | X103: 0 | Y103: 0 | Z103: 0 | AA103: 0 | AB103: 0 | AC103: 0 | AD103: 0 | AE103: 0 | AF103: 0 | AG103: 0 | AH103: 0 | AI103: 0 | AJ103: 0 | AK103: 0 | AL103: 0 | AM103: 0 | AN103: 0 | AO103: 0 | AP103: 0 | AQ103: 0 | AR103: 0 | AS103: 0 | AT103: 0 | AU103: 0 | AV103: 0 | AW103: 0 | AX103: 0 | AY103: 0
D104: 45Q Incentive without Inflation | F104: =Inputs!L132 -> 85 | K104: =$F104*K$5*K28 -> 85 | L104: =$F104*L$5*L28 -> 85 | M104: 85 | N104: 85 | O104: 85 | P104: 85 | Q104: 85 | R104: 85 | S104: 85 | T104: 85 | U104: 85 | V104: 85 | W104: 0 | X104: 0 | Y104: 0 | Z104: 0 | AA104: 0 | AB104: 0 | AC104: 0 | AD104: 0 | AE104: 0 | AF104: 0 | AG104: 0 | AH104: 0 | AI104: 0 | AJ104: 0 | AK104: 0 | AL104: 0 | AM104: 0 | AN104: 0 | AO104: 0 | AP104: 0 | AQ104: 0 | AR104: 0 | AS104: 0 | AT104: 0 | AU104: 0 | AV104: 0 | AW104: 0 | AX104: 0 | AY104: 0
D105: Inflation Index
D106: 45Q Incentive with Inflation
D108: 45Q Cash Flow | F108: =Inputs!L131 -> TRUE | K108: =K104*K103*$F$108 -> 0 | L108: 0 | M108: 0 | N108: 0 | O108: 0 | P108: 0 | Q108: 0 | R108: 0 | S108: 0 | T108: 0 | U108: 0 | V108: 0 | W108: 0 | X108: 0 | Y108: 0 | Z108: 0 | AA108: 0 | AB108: 0 | AC108: 0 | AD108: 0 | AE108: 0 | AF108: 0 | AG108: 0 | AH108: 0 | AI108: 0 | AJ108: 0 | AK108: 0 | AL108: 0 | AM108: 0 | AN108: 0 | AO108: 0 | AP108: 0 | AQ108: 0 | AR108: 0 | AS108: 0 | AT108: 0 | AU108: 0 | AV108: 0 | AW108: 0 | AX108: 0 | AY108: 0
D110: Levelized Cost with 45Q | E110: $/kg | F110: =Inputs!$F$147 -> 1.128577118 | K110: =$F$110*K28 -> 1.128577118 | L110: 1.128577118 | M110: 1.128577118 | N110: 1.128577118 | O110: 1.128577118 | P110: 1.128577118 | Q110: 1.128577118 | R110: 1.128577118 | S110: 1.128577118 | T110: 1.128577118 | U110: 1.128577118 | V110: 1.128577118 | W110: 1.128577118 | X110: 1.128577118 | Y110: 1.128577118 | Z110: 1.128577118 | AA110: 1.128577118 | AB110: 1.128577118 | AC110: 1.128577118 | AD110: 1.128577118 | AE110: 1.128577118 | AF110: 1.128577118 | AG110: 1.128577118 | AH110: 1.128577118 | AI110: 1.128577118 | AJ110: 1.128577118 | AK110: 1.128577118 | AL110: 1.128577118 | AM110: 1.128577118 | AN110: 1.128577118 | AO110: 1.128577118 | AP110: 1.128577118 | AQ110: 1.128577118 | AR110: 1.128577118 | AS110: 1.128577118 | AT110: 1.128577118 | AU110: 1.128577118 | AV110: 1.128577118 | AW110: 1.128577118 | AX110: 1.128577118 | AY110: 1.128577118
D112: Revenues with 45Q Credit | E112: $ | K112: =K110*K11 -> 281241417.8 | L112: 281241417.8 | M112: 281241417.8 | N112: 281241417.8 | O112: 281241417.8 | P112: 281241417.8 | Q112: 281241417.8 | R112: 281241417.8 | S112: 281241417.8 | T112: 281241417.8 | U112: 281241417.8 | V112: 281241417.8 | W112: 281241417.8 | X112: 281241417.8 | Y112: 281241417.8 | Z112: 281241417.8 | AA112: 281241417.8 | AB112: 281241417.8 | AC112: 281241417.8 | AD112: 281241417.8 | AE112: 281241417.8 | AF112: 281241417.8 | AG112: 281241417.8 | AH112: 281241417.8 | AI112: 281241417.8 | AJ112: 281241417.8 | AK112: 281241417.8 | AL112: 281241417.8 | AM112: 281241417.8 | AN112: 281241417.8 | AO112: 0 | AP112: 0 | AQ112: 0 | AR112: 0 | AS112: 0 | AT112: 0 | AU112: 0 | AV112: 0 | AW112: 0 | AX112: 0 | AY112: 0
D113: Operating Expenses | E113: $ | K113: =K34+K39 -> 189714029.2 | L113: 189714029.2 | M113: 189714029.2 | N113: 189714029.2 | O113: 189714029.2 | P113: 189714029.2 | Q113: 189714029.2 | R113: 189714029.2 | S113: 189714029.2 | T113: 189714029.2 | U113: 189714029.2 | V113: 189714029.2 | W113: 189714029.2 | X113: 189714029.2 | Y113: 189714029.2 | Z113: 189714029.2 | AA113: 189714029.2 | AB113: 189714029.2 | AC113: 189714029.2 | AD113: 189714029.2 | AE113: 189714029.2 | AF113: 189714029.2 | AG113: 189714029.2 | AH113: 189714029.2 | AI113: 189714029.2 | AJ113: 189714029.2 | AK113: 189714029.2 | AL113: 189714029.2 | AM113: 189714029.2 | AN113: 189714029.2 | AO113: 0 | AP113: 0 | AQ113: 0 | AR113: 0 | AS113: 0 | AT113: 0 | AU113: 0 | AV113: 0 | AW113: 0 | AX113: 0 | AY113: 0
D114: Add: 45Q Tax Credit | E114: $ | K114: =K108 -> 0 | L114: =L108 -> 0 | M114: 0 | N114: 0 | O114: 0 | P114: 0 | Q114: 0 | R114: 0 | S114: 0 | T114: 0 | U114: 0 | V114: 0 | W114: 0 | X114: 0 | Y114: 0 | Z114: 0 | AA114: 0 | AB114: 0 | AC114: 0 | AD114: 0 | AE114: 0 | AF114: 0 | AG114: 0 | AH114: 0 | AI114: 0 | AJ114: 0 | AK114: 0 | AL114: 0 | AM114: 0 | AN114: 0 | AO114: 0 | AP114: 0 | AQ114: 0 | AR114: 0 | AS114: 0 | AT114: 0 | AU114: 0 | AV114: 0 | AW114: 0 | AX114: 0 | AY114: 0
D115: Operating Cash Flow | E115: $ | K115: =K112-K113+K114 -> 91527388.53 | L115: =L112-L113+L114 -> 91527388.53 | M115: 91527388.53 | N115: 91527388.53 | O115: 91527388.53 | P115: 91527388.53 | Q115: 91527388.53 | R115: 91527388.53 | S115: 91527388.53 | T115: 91527388.53 | U115: 91527388.53 | V115: 91527388.53 | W115: 91527388.53 | X115: 91527388.53 | Y115: 91527388.53 | Z115: 91527388.53 | AA115: 91527388.53 | AB115: 91527388.53 | AC115: 91527388.53 | AD115: 91527388.53 | AE115: 91527388.53 | AF115: 91527388.53 | AG115: 91527388.53 | AH115: 91527388.53 | AI115: 91527388.53 | AJ115: 91527388.53 | AK115: 91527388.53 | AL115: 91527388.53 | AM115: 91527388.53 | AN115: 91527388.53 | AO115: 0 | AP115: 0 | AQ115: 0 | AR115: 0 | AS115: 0 | AT115: 0 | AU115: 0 | AV115: 0 | AW115: 0 | AX115: 0 | AY115: 0
D117: Pre-tax Cash Flow with 45Q Credit | E117: $ | J117: =J112-J39-J34+J108-J42 -> -862820863 | K117: =K112-K39-K34+K108 -> 91527388.53 | L117: 91527388.53 | M117: 91527388.53 | N117: 91527388.53 | O117: 91527388.53 | P117: 91527388.53 | Q117: 91527388.53 | R117: 91527388.53 | S117: 91527388.53 | T117: 91527388.53 | U117: 91527388.53 | V117: 91527388.53 | W117: 91527388.53 | X117: 91527388.53 | Y117: 91527388.53 | Z117: 91527388.53 | AA117: 91527388.53 | AB117: 91527388.53 | AC117: 91527388.53 | AD117: 91527388.53 | AE117: 91527388.53 | AF117: 91527388.53 | AG117: 91527388.53 | AH117: 91527388.53 | AI117: 91527388.53 | AJ117: 91527388.53 | AK117: 91527388.53 | AL117: 91527388.53 | AM117: 91527388.53 | AN117: 91527388.53 | AO117: 0 | AP117: 0 | AQ117: 0 | AR117: 0 | AS117: 0 | AT117: 0 | AU117: 0 | AV117: 0 | AW117: 0 | AX117: 0 | AY117: 0
D118: Pre-tax IRR | F118: =IRR(J117:AY117) -> 0.1
C120: Financing Cash Flow
D121: Financing Requirements | E121: $ | J121: =J42 -> 862820863 | K121: =K42 -> 0 | L121: 0 | M121: 0 | N121: 0 | O121: 0 | P121: 0 | Q121: 0 | R121: 0 | S121: 0 | T121: 0 | U121: 0 | V121: 0 | W121: 0 | X121: 0 | Y121: 0 | Z121: 0 | AA121: 0 | AB121: 0 | AC121: 0 | AD121: 0 | AE121: 0 | AF121: 0 | AG121: 0 | AH121: 0 | AI121: 0 | AJ121: 0 | AK121: 0 | AL121: 0 | AM121: 0 | AN121: 0 | AO121: 0 | AP121: 0 | AQ121: 0 | AR121: 0 | AS121: 0 | AT121: 0 | AU121: 0 | AV121: 0 | AW121: 0 | AX121: 0 | AY121: 0
D122: Equity Financing of Capital Expenditures | E122: $ | F122: =1-Inputs!F123 -> 1 | J122: =$F$122*J42 -> 862820863 | K122: =$F$122*K42 -> 0 | L122: 0 | M122: 0 | N122: 0 | O122: 0 | P122: 0 | Q122: 0 | R122: 0 | S122: 0 | T122: 0 | U122: 0 | V122: 0 | W122: 0 | X122: 0 | Y122: 0 | Z122: 0 | AA122: 0 | AB122: 0 | AC122: 0 | AD122: 0 | AE122: 0 | AF122: 0 | AG122: 0 | AH122: 0 | AI122: 0 | AJ122: 0 | AK122: 0 | AL122: 0 | AM122: 0 | AN122: 0 | AO122: 0 | AP122: 0 | AQ122: 0 | AR122: 0 | AS122: 0 | AT122: 0 | AU122: 0 | AV122: 0 | AW122: 0 | AX122: 0 | AY122: 0
D123: Debt Financing of Capital Expenditures | E123: $ | F123: =1-F122 -> 0 | J123: =J121*$F$123 -> 0 | K123: =K121*$F$123 -> 0 | L123: 0 | M123: 0 | N123: 0 | O123: 0 | P123: 0 | Q123: 0 | R123: 0 | S123: 0 | T123: 0 | U123: 0 | V123: 0 | W123: 0 | X123: 0 | Y123: 0 | Z123: 0 | AA123: 0 | AB123: 0 | AC123: 0 | AD123: 0 | AE123: 0 | AF123: 0 | AG123: 0 | AH123: 0 | AI123: 0 | AJ123: 0 | AK123: 0 | AL123: 0 | AM123: 0 | AN123: 0 | AO123: 0 | AP123: 0 | AQ123: 0 | AR123: 0 | AS123: 0 | AT123: 0 | AU123: 0 | AV123: 0 | AW123: 0 | AX123: 0 | AY123: 0
D125: Straight Line Depreciation | E125: $ | F125: =F42 -> 862820863 | G125: =F4 -> 30 | K125: =$F$125/$G$125*K4 -> 28760695.43 | L125: 28760695.43 | M125: 28760695.43 | N125: 28760695.43 | O125: 28760695.43 | P125: 28760695.43 | Q125: 28760695.43 | R125: 28760695.43 | S125: 28760695.43 | T125: 28760695.43 | U125: 28760695.43 | V125: 28760695.43 | W125: 28760695.43 | X125: 28760695.43 | Y125: 28760695.43 | Z125: 28760695.43 | AA125: 28760695.43 | AB125: 28760695.43 | AC125: 28760695.43 | AD125: 28760695.43 | AE125: 28760695.43 | AF125: 28760695.43 | AG125: 28760695.43 | AH125: 28760695.43 | AI125: 28760695.43 | AJ125: 28760695.43 | AK125: 28760695.43 | AL125: 28760695.43 | AM125: 28760695.43 | AN125: 28760695.43 | AO125: 0 | AP125: 0 | AQ125: 0 | AR125: 0 | AS125: 0 | AT125: 0 | AU125: 0 | AV125: 0 | AW125: 0 | AX125: 0 | AY125: 0
D126: Value Change in Plant | E126: $ | F126: =Inputs!F125 -> 0.1 | J126: =NPV($F$126,K117:AY117) -> 862820863 | K126: 857575560.8 | L126: 851805728.3 | M126: 845458912.7 | N126: 838477415.4 | O126: 830797768.4 | P126: 822350156.7 | Q126: 813057783.9 | R126: 802836173.7 | S126: 791592402.6 | T126: 779224254.3 | U126: 765619291.2 | V126: 750653831.8 | W126: 734191826.5 | X126: 716083620.6 | Y126: 696164594.1 | Z126: 674253665 | AA126: 650151643 | AB126: 623639418.8 | AC126: 594475972.1 | AD126: 562396180.8 | AE126: 527108410.4 | AF126: 488291862.9 | AG126: 445593660.6 | AH126: 398625638.2 | AI126: 346960813.5 | AJ126: 290129506.3 | AK126: 227615068.4 | AL126: 158849186.7 | AM126: 83206716.84 | AN126: 0 | AO126: 0 | AP126: 0 | AQ126: 0 | AR126: 0 | AS126: 0 | AT126: 0 | AU126: 0 | AV126: 0 | AW126: 0 | AX126: 0 | AY126: 0
D127: Economic Depreciation | E127: $ | K127: =J126-K126 -> 5245302.224 | L127: =K126-L126 -> 5769832.446 | M127: 6346815.691 | N127: 6981497.26 | O127: 7679646.986 | P127: 8447611.684 | Q127: 9292372.853 | R127: 10221610.14 | S127: 11243771.15 | T127: 12368148.27 | U127: 13604963.09 | V127: 14965459.4 | W127: 16462005.34 | X127: 18108205.88 | Y127: 19919026.47 | Z127: 21910929.11 | AA127: 24102022.02 | AB127: 26512224.23 | AC127: 29163446.65 | AD127: 32079791.31 | AE127: 35287770.44 | AF127: 38816547.49 | AG127: 42698202.24 | AH127: 46968022.46 | AI127: 51664824.71 | AJ127: 56831307.18 | AK127: 62514437.9 | AL127: 68765881.69 | AM127: 75642469.86 | AN127: 83206716.84 | AO127: 0 | AP127: 0 | AQ127: 0 | AR127: 0 | AS127: 0 | AT127: 0 | AU127: 0 | AV127: 0 | AW127: 0 | AX127: 0 | AY127: 0
D128: Debt Percent | E128: $ | F128: =Inputs!F123 -> 0 | J128: =$F$128*J127 -> 0 | K128: =$F$128*K127 -> 0 | L128: 0 | M128: 0 | N128: 0 | O128: 0 | P128: 0 | Q128: 0 | R128: 0 | S128: 0 | T128: 0 | U128: 0 | V128: 0 | W128: 0 | X128: 0 | Y128: 0 | Z128: 0 | AA128: 0 | AB128: 0 | AC128: 0 | AD128: 0 | AE128: 0 | AF128: 0 | AG128: 0 | AH128: 0 | AI128: 0 | AJ128: 0 | AK128: 0 | AL128: 0 | AM128: 0 | AN128: 0 | AO128: 0 | AP128: 0 | AQ128: 0 | AR128: 0 | AS128: 0 | AT128: 0 | AU128: 0 | AV128: 0 | AW128: 0 | AX128: 0 | AY128: 0
D131: Opening Balance | E131: $ | J131: =I134 -> 0 | K131: =J134 -> 0 | L131: 0 | M131: 0 | N131: 0 | O131: 0 | P131: 0 | Q131: 0 | R131: 0 | S131: 0 | T131: 0 | U131: 0 | V131: 0 | W131: 0 | X131: 0 | Y131: 0 | Z131: 0 | AA131: 0 | AB131: 0 | AC131: 0 | AD131: 0 | AE131: 0 | AF131: 0 | AG131: 0 | AH131: 0 | AI131: 0 | AJ131: 0 | AK131: 0 | AL131: 0 | AM131: 0 | AN131: 0 | AO131: 0 | AP131: 0 | AQ131: 0 | AR131: 0 | AS131: 0 | AT131: 0 | AU131: 0 | AV131: 0 | AW131: 0 | AX131: 0 | AY131: 0
D132: Add: Debt Financing | E132: $ | J132: =J123 -> 0 | K132: =K123 -> 0 | L132: 0 | M132: 0 | N132: 0 | O132: 0 | P132: 0 | Q132: 0 | R132: 0 | S132: 0 | T132: 0 | U132: 0 | V132: 0 | W132: 0 | X132: 0 | Y132: 0 | Z132: 0 | AA132: 0 | AB132: 0 | AC132: 0 | AD132: 0 | AE132: 0 | AF132: 0 | AG132: 0 | AH132: 0 | AI132: 0 | AJ132: 0 | AK132: 0 | AL132: 0 | AM132: 0 | AN132: 0 | AO132: 0 | AP132: 0 | AQ132: 0 | AR132: 0 | AS132: 0 | AT132: 0 | AU132: 0 | AV132: 0 | AW132: 0 | AX132: 0 | AY132: 0
D133: Less: Repayment | E133: $ | K133: =K128 -> 0 | L133: =L128 -> 0 | M133: 0 | N133: 0 | O133: 0 | P133: 0 | Q133: 0 | R133: 0 | S133: 0 | T133: 0 | U133: 0 | V133: 0 | W133: 0 | X133: 0 | Y133: 0 | Z133: 0 | AA133: 0 | AB133: 0 | AC133: 0 | AD133: 0 | AE133: 0 | AF133: 0 | AG133: 0 | AH133: 0 | AI133: 0 | AJ133: 0 | AK133: 0 | AL133: 0 | AM133: 0 | AN133: 0 | AO133: 0 | AP133: 0 | AQ133: 0 | AR133: 0 | AS133: 0 | AT133: 0 | AU133: 0 | AV133: 0 | AW133: 0 | AX133: 0 | AY133: 0
D134: Closing Balance | E134: $ | J134: =J131+J132-J133 -> 0 | K134: =K131+K132-K133 -> 0 | L134: 0 | M134: 0 | N134: 0 | O134: 0 | P134: 0 | Q134: 0 | R134: 0 | S134: 0 | T134: 0 | U134: 0 | V134: 0 | W134: 0 | X134: 0 | Y134: 0 | Z134: 0 | AA134: 0 | AB134: 0 | AC134: 0 | AD134: 0 | AE134: 0 | AF134: 0 | AG134: 0 | AH134: 0 | AI134: 0 | AJ134: 0 | AK134: 0 | AL134: 0 | AM134: 0 | AN134: 0 | AO134: 0 | AP134: 0 | AQ134: 0 | AR134: 0 | AS134: 0 | AT134: 0 | AU134: 0 | AV134: 0 | AW134: 0 | AX134: 0 | AY134: 0
D136: Interest Expense | E136: $ | F136: =Inputs!F120 -> 0.05 | J136: =J131*$F$136 -> 0 | K136: =K131*$F$136 -> 0 | L136: 0 | M136: 0 | N136: 0 | O136: 0 | P136: 0 | Q136: 0 | R136: 0 | S136: 0 | T136: 0 | U136: 0 | V136: 0 | W136: 0 | X136: 0 | Y136: 0 | Z136: 0 | AA136: 0 | AB136: 0 | AC136: 0 | AD136: 0 | AE136: 0 | AF136: 0 | AG136: 0 | AH136: 0 | AI136: 0 | AJ136: 0 | AK136: 0 | AL136: 0 | AM136: 0 | AN136: 0 | AO136: 0 | AP136: 0 | AQ136: 0 | AR136: 0 | AS136: 0 | AT136: 0 | AU136: 0 | AV136: 0 | AW136: 0 | AX136: 0 | AY136: 0
D138: Operating Cash Flow | E138: $ | J138: =J115 -> 0 | K138: =K115 -> 91527388.53 | L138: =L115 -> 91527388.53 | M138: 91527388.53 | N138: 91527388.53 | O138: 91527388.53 | P138: 91527388.53 | Q138: 91527388.53 | R138: 91527388.53 | S138: 91527388.53 | T138: 91527388.53 | U138: 91527388.53 | V138: 91527388.53 | W138: 91527388.53 | X138: 91527388.53 | Y138: 91527388.53 | Z138: 91527388.53 | AA138: 91527388.53 | AB138: 91527388.53 | AC138: 91527388.53 | AD138: 91527388.53 | AE138: 91527388.53 | AF138: 91527388.53 | AG138: 91527388.53 | AH138: 91527388.53 | AI138: 91527388.53 | AJ138: 91527388.53 | AK138: 91527388.53 | AL138: 91527388.53 | AM138: 91527388.53 | AN138: 91527388.53 | AO138: 0 | AP138: 0 | AQ138: 0 | AR138: 0 | AS138: 0 | AT138: 0 | AU138: 0 | AV138: 0 | AW138: 0 | AX138: 0 | AY138: 0
D139: Less: Debt Service | E139: $ | J139: =J136+J133 -> 0 | K139: =K136+K133 -> 0 | L139: 0 | M139: 0 | N139: 0 | O139: 0 | P139: 0 | Q139: 0 | R139: 0 | S139: 0 | T139: 0 | U139: 0 | V139: 0 | W139: 0 | X139: 0 | Y139: 0 | Z139: 0 | AA139: 0 | AB139: 0 | AC139: 0 | AD139: 0 | AE139: 0 | AF139: 0 | AG139: 0 | AH139: 0 | AI139: 0 | AJ139: 0 | AK139: 0 | AL139: 0 | AM139: 0 | AN139: 0 | AO139: 0 | AP139: 0 | AQ139: 0 | AR139: 0 | AS139: 0 | AT139: 0 | AU139: 0 | AV139: 0 | AW139: 0 | AX139: 0 | AY139: 0
D140: Dividends | E140: $ | J140: =J138-J139 -> 0 | K140: =K138-K139 -> 91527388.53 | L140: 91527388.53 | M140: 91527388.53 | N140: 91527388.53 | O140: 91527388.53 | P140: 91527388.53 | Q140: 91527388.53 | R140: 91527388.53 | S140: 91527388.53 | T140: 91527388.53 | U140: 91527388.53 | V140: 91527388.53 | W140: 91527388.53 | X140: 91527388.53 | Y140: 91527388.53 | Z140: 91527388.53 | AA140: 91527388.53 | AB140: 91527388.53 | AC140: 91527388.53 | AD140: 91527388.53 | AE140: 91527388.53 | AF140: 91527388.53 | AG140: 91527388.53 | AH140: 91527388.53 | AI140: 91527388.53 | AJ140: 91527388.53 | AK140: 91527388.53 | AL140: 91527388.53 | AM140: 91527388.53 | AN140: 91527388.53 | AO140: 0 | AP140: 0 | AQ140: 0 | AR140: 0 | AS140: 0 | AT140: 0 | AU140: 0 | AV140: 0 | AW140: 0 | AX140: 0 | AY140: 0
C142: Financial Statements for Case with Levelised Credit for 45Q over Life of Project
C144: Income Statement
D145: Revenues | E145: $ | K145: =K112 -> 281241417.8 | L145: 281241417.8 | M145: 281241417.8 | N145: 281241417.8 | O145: 281241417.8 | P145: 281241417.8 | Q145: 281241417.8 | R145: 281241417.8 | S145: 281241417.8 | T145: 281241417.8 | U145: 281241417.8 | V145: 281241417.8 | W145: 281241417.8 | X145: 281241417.8 | Y145: 281241417.8 | Z145: 281241417.8 | AA145: 281241417.8 | AB145: 281241417.8 | AC145: 281241417.8 | AD145: 281241417.8 | AE145: 281241417.8 | AF145: 281241417.8 | AG145: 281241417.8 | AH145: 281241417.8 | AI145: 281241417.8 | AJ145: 281241417.8 | AK145: 281241417.8 | AL145: 281241417.8 | AM145: 281241417.8 | AN145: 281241417.8 | AO145: 0 | AP145: 0 | AQ145: 0 | AR145: 0 | AS145: 0 | AT145: 0 | AU145: 0 | AV145: 0 | AW145: 0 | AX145: 0 | AY145: 0
D146: Less: Operating Expenses | E146: $ | K146: =K34+K39 -> 189714029.2 | L146: 189714029.2 | M146: 189714029.2 | N146: 189714029.2 | O146: 189714029.2 | P146: 189714029.2 | Q146: 189714029.2 | R146: 189714029.2 | S146: 189714029.2 | T146: 189714029.2 | U146: 189714029.2 | V146: 189714029.2 | W146: 189714029.2 | X146: 189714029.2 | Y146: 189714029.2 | Z146: 189714029.2 | AA146: 189714029.2 | AB146: 189714029.2 | AC146: 189714029.2 | AD146: 189714029.2 | AE146: 189714029.2 | AF146: 189714029.2 | AG146: 189714029.2 | AH146: 189714029.2 | AI146: 189714029.2 | AJ146: 189714029.2 | AK146: 189714029.2 | AL146: 189714029.2 | AM146: 189714029.2 | AN146: 189714029.2 | AO146: 0 | AP146: 0 | AQ146: 0 | AR146: 0 | AS146: 0 | AT146: 0 | AU146: 0 | AV146: 0 | AW146: 0 | AX146: 0 | AY146: 0
D147: EBITDA | E147: $ | K147: =K145-K146 -> 91527388.53 | L147: =L145-L146 -> 91527388.53 | M147: 91527388.53 | N147: 91527388.53 | O147: 91527388.53 | P147: 91527388.53 | Q147: 91527388.53 | R147: 91527388.53 | S147: 91527388.53 | T147: 91527388.53 | U147: 91527388.53 | V147: 91527388.53 | W147: 91527388.53 | X147: 91527388.53 | Y147: 91527388.53 | Z147: 91527388.53 | AA147: 91527388.53 | AB147: 91527388.53 | AC147: 91527388.53 | AD147: 91527388.53 | AE147: 91527388.53 | AF147: 91527388.53 | AG147: 91527388.53 | AH147: 91527388.53 | AI147: 91527388.53 | AJ147: 91527388.53 | AK147: 91527388.53 | AL147: 91527388.53 | AM147: 91527388.53 | AN147: 91527388.53 | AO147: 0 | AP147: 0 | AQ147: 0 | AR147: 0 | AS147: 0 | AT147: 0 | AU147: 0 | AV147: 0 | AW147: 0 | AX147: 0 | AY147: 0
D148: Less: Depreciation | E148: $ | F148: Apply SL | G148: =Inputs!$F$129 -> FALSE | K148: =IF($G$148,K125,K127) -> 5245302.224 | L148: 5769832.446 | M148: 6346815.691 | N148: 6981497.26 | O148: 7679646.986 | P148: 8447611.684 | Q148: 9292372.853 | R148: 10221610.14 | S148: 11243771.15 | T148: 12368148.27 | U148: 13604963.09 | V148: 14965459.4 | W148: 16462005.34 | X148: 18108205.88 | Y148: 19919026.47 | Z148: 21910929.11 | AA148: 24102022.02 | AB148: 26512224.23 | AC148: 29163446.65 | AD148: 32079791.31 | AE148: 35287770.44 | AF148: 38816547.49 | AG148: 42698202.24 | AH148: 46968022.46 | AI148: 51664824.71 | AJ148: 56831307.18 | AK148: 62514437.9 | AL148: 68765881.69 | AM148: 75642469.86 | AN148: 83206716.84 | AO148: 0 | AP148: 0 | AQ148: 0 | AR148: 0 | AS148: 0 | AT148: 0 | AU148: 0 | AV148: 0 | AW148: 0 | AX148: 0 | AY148: 0
D149: EBIT | E149: $ | K149: =K147-K148 -> 86282086.3 | L149: =L147-L148 -> 85757556.08 | M149: 85180572.83 | N149: 84545891.27 | O149: 83847741.54 | P149: 83079776.84 | Q149: 82235015.67 | R149: 81305778.39 | S149: 80283617.37 | T149: 79159240.26 | U149: 77922425.43 | V149: 76561929.12 | W149: 75065383.18 | X149: 73419182.65 | Y149: 71608362.06 | Z149: 69616459.41 | AA149: 67425366.5 | AB149: 65015164.3 | AC149: 62363941.88 | AD149: 59447597.21 | AE149: 56239618.08 | AF149: 52710841.04 | AG149: 48829186.29 | AH149: 44559366.06 | AI149: 39862563.82 | AJ149: 34696081.35 | AK149: 29012950.63 | AL149: 22761506.84 | AM149: 15884918.67 | AN149: 8320671.684 | AO149: 0 | AP149: 0 | AQ149: 0 | AR149: 0 | AS149: 0 | AT149: 0 | AU149: 0 | AV149: 0 | AW149: 0 | AX149: 0 | AY149: 0
D150: Less: Interest | E150: $ | K150: =K136 -> 0 | L150: =L136 -> 0 | M150: 0 | N150: 0 | O150: 0 | P150: 0 | Q150: 0 | R150: 0 | S150: 0 | T150: 0 | U150: 0 | V150: 0 | W150: 0 | X150: 0 | Y150: 0 | Z150: 0 | AA150: 0 | AB150: 0 | AC150: 0 | AD150: 0 | AE150: 0 | AF150: 0 | AG150: 0 | AH150: 0 | AI150: 0 | AJ150: 0 | AK150: 0 | AL150: 0 | AM150: 0 | AN150: 0 | AO150: 0 | AP150: 0 | AQ150: 0 | AR150: 0 | AS150: 0 | AT150: 0 | AU150: 0 | AV150: 0 | AW150: 0 | AX150: 0 | AY150: 0
D151: EBT | E151: $ | K151: =K149-K150 -> 86282086.3 | L151: =L149-L150 -> 85757556.08 | M151: 85180572.83 | N151: 84545891.27 | O151: 83847741.54 | P151: 83079776.84 | Q151: 82235015.67 | R151: 81305778.39 | S151: 80283617.37 | T151: 79159240.26 | U151: 77922425.43 | V151: 76561929.12 | W151: 75065383.18 | X151: 73419182.65 | Y151: 71608362.06 | Z151: 69616459.41 | AA151: 67425366.5 | AB151: 65015164.3 | AC151: 62363941.88 | AD151: 59447597.21 | AE151: 56239618.08 | AF151: 52710841.04 | AG151: 48829186.29 | AH151: 44559366.06 | AI151: 39862563.82 | AJ151: 34696081.35 | AK151: 29012950.63 | AL151: 22761506.84 | AM151: 15884918.67 | AN151: 8320671.684 | AO151: 0 | AP151: 0 | AQ151: 0 | AR151: 0 | AS151: 0 | AT151: 0 | AU151: 0 | AV151: 0 | AW151: 0 | AX151: 0 | AY151: 0
D152: Less: Taxes | E152: $
D153: Add: Cash from 45Q | E153: $ | K153: =K108 -> 0 | L153: 0 | M153: 0 | N153: 0 | O153: 0 | P153: 0 | Q153: 0 | R153: 0 | S153: 0 | T153: 0 | U153: 0 | V153: 0 | W153: 0 | X153: 0 | Y153: 0 | Z153: 0 | AA153: 0 | AB153: 0 | AC153: 0 | AD153: 0 | AE153: 0 | AF153: 0 | AG153: 0 | AH153: 0 | AI153: 0 | AJ153: 0 | AK153: 0 | AL153: 0 | AM153: 0 | AN153: 0 | AO153: 0 | AP153: 0 | AQ153: 0 | AR153: 0 | AS153: 0 | AT153: 0 | AU153: 0 | AV153: 0 | AW153: 0 | AX153: 0 | AY153: 0
D154: Net Income | E154: $ | K154: =K151-K152+K153 -> 86282086.3 | L154: =L151-L152+L153 -> 85757556.08 | M154: 85180572.83 | N154: 84545891.27 | O154: 83847741.54 | P154: 83079776.84 | Q154: 82235015.67 | R154: 81305778.39 | S154: 80283617.37 | T154: 79159240.26 | U154: 77922425.43 | V154: 76561929.12 | W154: 75065383.18 | X154: 73419182.65 | Y154: 71608362.06 | Z154: 69616459.41 | AA154: 67425366.5 | AB154: 65015164.3 | AC154: 62363941.88 | AD154: 59447597.21 | AE154: 56239618.08 | AF154: 52710841.04 | AG154: 48829186.29 | AH154: 44559366.06 | AI154: 39862563.82 | AJ154: 34696081.35 | AK154: 29012950.63 | AL154: 22761506.84 | AM154: 15884918.67 | AN154: 8320671.684 | AO154: 0 | AP154: 0 | AQ154: 0 | AR154: 0 | AS154: 0 | AT154: 0 | AU154: 0 | AV154: 0 | AW154: 0 | AX154: 0 | AY154: 0
C156: Cash Flow
D157: EBITDA | E157: $ | K157: =K147 -> 91527388.53 | L157: =L147 -> 91527388.53 | M157: 91527388.53 | N157: 91527388.53 | O157: 91527388.53 | P157: 91527388.53 | Q157: 91527388.53 | R157: 91527388.53 | S157: 91527388.53 | T157: 91527388.53 | U157: 91527388.53 | V157: 91527388.53 | W157: 91527388.53 | X157: 91527388.53 | Y157: 91527388.53 | Z157: 91527388.53 | AA157: 91527388.53 | AB157: 91527388.53 | AC157: 91527388.53 | AD157: 91527388.53 | AE157: 91527388.53 | AF157: 91527388.53 | AG157: 91527388.53 | AH157: 91527388.53 | AI157: 91527388.53 | AJ157: 91527388.53 | AK157: 91527388.53 | AL157: 91527388.53 | AM157: 91527388.53 | AN157: 91527388.53 | AO157: 0 | AP157: 0 | AQ157: 0 | AR157: 0 | AS157: 0 | AT157: 0 | AU157: 0 | AV157: 0 | AW157: 0 | AX157: 0 | AY157: 0
D158: Add: Cash Flow from 45Q | E158: $ | K158: =K153 -> 0 | L158: =L153 -> 0 | M158: 0 | N158: 0 | O158: 0 | P158: 0 | Q158: 0 | R158: 0 | S158: 0 | T158: 0 | U158: 0 | V158: 0 | W158: 0 | X158: 0 | Y158: 0 | Z158: 0 | AA158: 0 | AB158: 0 | AC158: 0 | AD158: 0 | AE158: 0 | AF158: 0 | AG158: 0 | AH158: 0 | AI158: 0 | AJ158: 0 | AK158: 0 | AL158: 0 | AM158: 0 | AN158: 0 | AO158: 0 | AP158: 0 | AQ158: 0 | AR158: 0 | AS158: 0 | AT158: 0 | AU158: 0 | AV158: 0 | AW158: 0 | AX158: 0 | AY158: 0
D159: Less: Taxes | E159: $ | K159: =K152 -> 0 | L159: =L152 -> 0 | M159: 0 | N159: 0 | O159: 0 | P159: 0 | Q159: 0 | R159: 0 | S159: 0 | T159: 0 | U159: 0 | V159: 0 | W159: 0 | X159: 0 | Y159: 0 | Z159: 0 | AA159: 0 | AB159: 0 | AC159: 0 | AD159: 0 | AE159: 0 | AF159: 0 | AG159: 0 | AH159: 0 | AI159: 0 | AJ159: 0 | AK159: 0 | AL159: 0 | AM159: 0 | AN159: 0 | AO159: 0 | AP159: 0 | AQ159: 0 | AR159: 0 | AS159: 0 | AT159: 0 | AU159: 0 | AV159: 0 | AW159: 0 | AX159: 0 | AY159: 0
D160: Operating Cash Flow | E160: $ | K160: =K157+K158+K159 -> 91527388.53 | L160: =L157+L158+L159 -> 91527388.53 | M160: 91527388.53 | N160: 91527388.53 | O160: 91527388.53 | P160: 91527388.53 | Q160: 91527388.53 | R160: 91527388.53 | S160: 91527388.53 | T160: 91527388.53 | U160: 91527388.53 | V160: 91527388.53 | W160: 91527388.53 | X160: 91527388.53 | Y160: 91527388.53 | Z160: 91527388.53 | AA160: 91527388.53 | AB160: 91527388.53 | AC160: 91527388.53 | AD160: 91527388.53 | AE160: 91527388.53 | AF160: 91527388.53 | AG160: 91527388.53 | AH160: 91527388.53 | AI160: 91527388.53 | AJ160: 91527388.53 | AK160: 91527388.53 | AL160: 91527388.53 | AM160: 91527388.53 | AN160: 91527388.53 | AO160: 0 | AP160: 0 | AQ160: 0 | AR160: 0 | AS160: 0 | AT160: 0 | AU160: 0 | AV160: 0 | AW160: 0 | AX160: 0 | AY160: 0
D162: Investing Cash Flow | E162: $ | J162: =-J42 -> -862820863 | K162: 0 | L162: 0 | M162: 0 | N162: 0 | O162: 0 | P162: 0 | Q162: 0 | R162: 0 | S162: 0 | T162: 0 | U162: 0 | V162: 0 | W162: 0 | X162: 0 | Y162: 0 | Z162: 0 | AA162: 0 | AB162: 0 | AC162: 0 | AD162: 0 | AE162: 0 | AF162: 0 | AG162: 0 | AH162: 0 | AI162: 0 | AJ162: 0 | AK162: 0 | AL162: 0 | AM162: 0 | AN162: 0 | AO162: 0 | AP162: 0 | AQ162: 0 | AR162: 0 | AS162: 0 | AT162: 0 | AU162: 0 | AV162: 0 | AW162: 0 | AX162: 0 | AY162: 0
D164: Financing Cash Flow
D165: Equity Financing | E165: $ | J165: =J122 -> 862820863 | K165: 0 | L165: 0 | M165: 0 | N165: 0 | O165: 0 | P165: 0 | Q165: 0 | R165: 0 | S165: 0 | T165: 0 | U165: 0 | V165: 0 | W165: 0 | X165: 0 | Y165: 0 | Z165: 0 | AA165: 0 | AB165: 0 | AC165: 0 | AD165: 0 | AE165: 0 | AF165: 0 | AG165: 0 | AH165: 0 | AI165: 0 | AJ165: 0 | AK165: 0 | AL165: 0 | AM165: 0 | AN165: 0 | AO165: 0 | AP165: 0 | AQ165: 0 | AR165: 0 | AS165: 0 | AT165: 0 | AU165: 0 | AV165: 0 | AW165: 0 | AX165: 0 | AY165: 0
D166: Debt Financing | E166: $ | J166: =J123 -> 0 | K166: 0 | L166: 0 | M166: 0 | N166: 0 | O166: 0 | P166: 0 | Q166: 0 | R166: 0 | S166: 0 | T166: 0 | U166: 0 | V166: 0 | W166: 0 | X166: 0 | Y166: 0 | Z166: 0 | AA166: 0 | AB166: 0 | AC166: 0 | AD166: 0 | AE166: 0 | AF166: 0 | AG166: 0 | AH166: 0 | AI166: 0 | AJ166: 0 | AK166: 0 | AL166: 0 | AM166: 0 | AN166: 0 | AO166: 0 | AP166: 0 | AQ166: 0 | AR166: 0 | AS166: 0 | AT166: 0 | AU166: 0 | AV166: 0 | AW166: 0 | AX166: 0 | AY166: 0
D167: Less: Interest Expense | E167: $ | J167: =J134 -> 0 | K167: 0 | L167: 0 | M167: 0 | N167: 0 | O167: 0 | P167: 0 | Q167: 0 | R167: 0 | S167: 0 | T167: 0 | U167: 0 | V167: 0 | W167: 0 | X167: 0 | Y167: 0 | Z167: 0 | AA167: 0 | AB167: 0 | AC167: 0 | AD167: 0 | AE167: 0 | AF167: 0 | AG167: 0 | AH167: 0 | AI167: 0 | AJ167: 0 | AK167: 0 | AL167: 0 | AM167: 0 | AN167: 0 | AO167: 0 | AP167: 0 | AQ167: 0 | AR167: 0 | AS167: 0 | AT167: 0 | AU167: 0 | AV167: 0 | AW167: 0 | AX167: 0 | AY167: 0
D168: Less: Debt Repayment | E168: $ | J168: =J132 -> 0 | K168: 0 | L168: 0 | M168: 0 | N168: 0 | O168: 0 | P168: 0 | Q168: 0 | R168: 0 | S168: 0 | T168: 0 | U168: 0 | V168: 0 | W168: 0 | X168: 0 | Y168: 0 | Z168: 0 | AA168: 0 | AB168: 0 | AC168: 0 | AD168: 0 | AE168: 0 | AF168: 0 | AG168: 0 | AH168: 0 | AI168: 0 | AJ168: 0 | AK168: 0 | AL168: 0 | AM168: 0 | AN168: 0 | AO168: 0 | AP168: 0 | AQ168: 0 | AR168: 0 | AS168: 0 | AT168: 0 | AU168: 0 | AV168: 0 | AW168: 0 | AX168: 0 | AY168: 0
D169: Less: Dividends | E169: $ | J169: =J140 -> 0 | K169: 91527388.53 | L169: 91527388.53 | M169: 91527388.53 | N169: 91527388.53 | O169: 91527388.53 | P169: 91527388.53 | Q169: 91527388.53 | R169: 91527388.53 | S169: 91527388.53 | T169: 91527388.53 | U169: 91527388.53 | V169: 91527388.53 | W169: 91527388.53 | X169: 91527388.53 | Y169: 91527388.53 | Z169: 91527388.53 | AA169: 91527388.53 | AB169: 91527388.53 | AC169: 91527388.53 | AD169: 91527388.53 | AE169: 91527388.53 | AF169: 91527388.53 | AG169: 91527388.53 | AH169: 91527388.53 | AI169: 91527388.53 | AJ169: 91527388.53 | AK169: 91527388.53 | AL169: 91527388.53 | AM169: 91527388.53 | AN169: 91527388.53 | AO169: 0 | AP169: 0 | AQ169: 0 | AR169: 0 | AS169: 0 | AT169: 0 | AU169: 0 | AV169: 0 | AW169: 0 | AX169: 0 | AY169: 0
D171: Total Financing Cash Flow
D173: Equity Cash Flow | E173: $ | J173: =-J165+J169 -> -862820863 | K173: =-K165+K169 -> 91527388.53 | L173: 91527388.53 | M173: 91527388.53 | N173: 91527388.53 | O173: 91527388.53 | P173: 91527388.53 | Q173: 91527388.53 | R173: 91527388.53 | S173: 91527388.53 | T173: 91527388.53 | U173: 91527388.53 | V173: 91527388.53 | W173: 91527388.53 | X173: 91527388.53 | Y173: 91527388.53 | Z173: 91527388.53 | AA173: 91527388.53 | AB173: 91527388.53 | AC173: 91527388.53 | AD173: 91527388.53 | AE173: 91527388.53 | AF173: 91527388.53 | AG173: 91527388.53 | AH173: 91527388.53 | AI173: 91527388.53 | AJ173: 91527388.53 | AK173: 91527388.53 | AL173: 91527388.53 | AM173: 91527388.53 | AN173: 91527388.53 | AO173: 0 | AP173: 0 | AQ173: 0 | AR173: 0 | AS173: 0 | AT173: 0 | AU173: 0 | AV173: 0 | AW173: 0 | AX173: 0 | AY173: 0
D174: Equity IRR | E174: % | F174: =IRR(J173:AY173) -> 0.1
C176: Balance Sheet
D177: Assets | E177: $
D178: Gross Plant | E178: $ | J178: =I178-J162 -> 862820863 | K178: =J178-K162 -> 862820863 | L178: 862820863 | M178: 862820863 | N178: 862820863 | O178: 862820863 | P178: 862820863 | Q178: 862820863 | R178: 862820863 | S178: 862820863 | T178: 862820863 | U178: 862820863 | V178: 862820863 | W178: 862820863 | X178: 862820863 | Y178: 862820863 | Z178: 862820863 | AA178: 862820863 | AB178: 862820863 | AC178: 862820863 | AD178: 862820863 | AE178: 862820863 | AF178: 862820863 | AG178: 862820863 | AH178: 862820863 | AI178: 862820863 | AJ178: 862820863 | AK178: 862820863 | AL178: 862820863 | AM178: 862820863 | AN178: 862820863 | AO178: 862820863 | AP178: 862820863 | AQ178: 862820863 | AR178: 862820863 | AS178: 862820863 | AT178: 862820863 | AU178: 862820863 | AV178: 862820863 | AW178: 862820863 | AX178: 862820863 | AY178: 862820863
D179: Accumulated Depreciation | E179: $ | J179: =I179+J148 -> 0 | K179: =J179+K148 -> 5245302.224 | L179: 11015134.67 | M179: 17361950.36 | N179: 24343447.62 | O179: 32023094.61 | P179: 40470706.29 | Q179: 49763079.14 | R179: 59984689.28 | S179: 71228460.43 | T179: 83596608.7 | U179: 97201571.8 | V179: 112167031.2 | W179: 128629036.5 | X179: 146737242.4 | Y179: 166656268.9 | Z179: 188567198 | AA179: 212669220 | AB179: 239181444.2 | AC179: 268344890.9 | AD179: 300424682.2 | AE179: 335712452.7 | AF179: 374529000.1 | AG179: 417227202.4 | AH179: 464195224.8 | AI179: 515860049.6 | AJ179: 572691356.7 | AK179: 635205794.6 | AL179: 703971676.3 | AM179: 779614146.2 | AN179: 862820863 | AO179: 862820863 | AP179: 862820863 | AQ179: 862820863 | AR179: 862820863 | AS179: 862820863 | AT179: 862820863 | AU179: 862820863 | AV179: 862820863 | AW179: 862820863 | AX179: 862820863 | AY179: 862820863
D180: Net Plant | E180: $ | J180: =J178-J179 -> 862820863 | K180: =K178-K179 -> 857575560.8 | L180: =L178-L179 -> 851805728.3 | M180: 845458912.7 | N180: 838477415.4 | O180: 830797768.4 | P180: 822350156.7 | Q180: 813057783.9 | R180: 802836173.7 | S180: 791592402.6 | T180: 779224254.3 | U180: 765619291.2 | V180: 750653831.8 | W180: 734191826.5 | X180: 716083620.6 | Y180: 696164594.1 | Z180: 674253665 | AA180: 650151643 | AB180: 623639418.8 | AC180: 594475972.1 | AD180: 562396180.8 | AE180: 527108410.4 | AF180: 488291862.9 | AG180: 445593660.6 | AH180: 398625638.2 | AI180: 346960813.5 | AJ180: 290129506.3 | AK180: 227615068.4 | AL180: 158849186.7 | AM180: 83206716.84 | AN180: 0 | AO180: 0 | AP180: 0 | AQ180: 0 | AR180: 0 | AS180: 0 | AT180: 0 | AU180: 0 | AV180: 0 | AW180: 0 | AX180: 0 | AY180: 0
D182: Debt | J182: =J134 -> 0 | K182: =K134 -> 0 | L182: 0 | M182: 0 | N182: 0 | O182: 0 | P182: 0 | Q182: 0 | R182: 0 | S182: 0 | T182: 0 | U182: 0 | V182: 0 | W182: 0 | X182: 0 | Y182: 0 | Z182: 0 | AA182: 0 | AB182: 0 | AC182: 0 | AD182: 0 | AE182: 0 | AF182: 0 | AG182: 0 | AH182: 0 | AI182: 0 | AJ182: 0 | AK182: 0 | AL182: 0 | AM182: 0 | AN182: 0 | AO182: 0 | AP182: 0 | AQ182: 0 | AR182: 0 | AS182: 0 | AT182: 0 | AU182: 0 | AV182: 0 | AW182: 0 | AX182: 0 | AY182: 0
D183: Opening Equity | E183: $ | J183: =I187 -> 0 | K183: =J187 -> 862820863 | L183: 857575560.8 | M183: 851805728.3 | N183: 845458912.7 | O183: 838477415.4 | P183: 830797768.4 | Q183: 822350156.7 | R183: 813057783.9 | S183: 802836173.7 | T183: 791592402.6 | U183: 779224254.3 | V183: 765619291.2 | W183: 750653831.8 | X183: 734191826.5 | Y183: 716083620.6 | Z183: 696164594.1 | AA183: 674253665 | AB183: 650151643 | AC183: 623639418.8 | AD183: 594475972.1 | AE183: 562396180.8 | AF183: 527108410.4 | AG183: 488291862.9 | AH183: 445593660.6 | AI183: 398625638.2 | AJ183: 346960813.5 | AK183: 290129506.3 | AL183: 227615068.4 | AM183: 158849186.7 | AN183: 83206716.84 | AO183: 3.427267075e-07 | AP183: 3.427267075e-07 | AQ183: 3.427267075e-07 | AR183: 3.427267075e-07 | AS183: 3.427267075e-07 | AT183: 3.427267075e-07 | AU183: 3.427267075e-07 | AV183: 3.427267075e-07 | AW183: 3.427267075e-07 | AX183: 3.427267075e-07 | AY183: 3.427267075e-07
D184: Add: Equity Financing | E184: $ | J184: =J165 -> 862820863 | K184: =K165 -> 0 | L184: 0 | M184: 0 | N184: 0 | O184: 0 | P184: 0 | Q184: 0 | R184: 0 | S184: 0 | T184: 0 | U184: 0 | V184: 0 | W184: 0 | X184: 0 | Y184: 0 | Z184: 0 | AA184: 0 | AB184: 0 | AC184: 0 | AD184: 0 | AE184: 0 | AF184: 0 | AG184: 0 | AH184: 0 | AI184: 0 | AJ184: 0 | AK184: 0 | AL184: 0 | AM184: 0 | AN184: 0 | AO184: 0 | AP184: 0 | AQ184: 0 | AR184: 0 | AS184: 0 | AT184: 0 | AU184: 0 | AV184: 0 | AW184: 0 | AX184: 0 | AY184: 0
D185: Add: Net Income | E185: $ | J185: =J154 -> 0 | K185: =K154 -> 86282086.3 | L185: 85757556.08 | M185: 85180572.83 | N185: 84545891.27 | O185: 83847741.54 | P185: 83079776.84 | Q185: 82235015.67 | R185: 81305778.39 | S185: 80283617.37 | T185: 79159240.26 | U185: 77922425.43 | V185: 76561929.12 | W185: 75065383.18 | X185: 73419182.65 | Y185: 71608362.06 | Z185: 69616459.41 | AA185: 67425366.5 | AB185: 65015164.3 | AC185: 62363941.88 | AD185: 59447597.21 | AE185: 56239618.08 | AF185: 52710841.04 | AG185: 48829186.29 | AH185: 44559366.06 | AI185: 39862563.82 | AJ185: 34696081.35 | AK185: 29012950.63 | AL185: 22761506.84 | AM185: 15884918.67 | AN185: 8320671.684 | AO185: 0 | AP185: 0 | AQ185: 0 | AR185: 0 | AS185: 0 | AT185: 0 | AU185: 0 | AV185: 0 | AW185: 0 | AX185: 0 | AY185: 0
D186: Less: Dividends | E186: $ | J186: =J169 -> 0 | K186: =K169 -> 91527388.53 | L186: 91527388.53 | M186: 91527388.53 | N186: 91527388.53 | O186: 91527388.53 | P186: 91527388.53 | Q186: 91527388.53 | R186: 91527388.53 | S186: 91527388.53 | T186: 91527388.53 | U186: 91527388.53 | V186: 91527388.53 | W186: 91527388.53 | X186: 91527388.53 | Y186: 91527388.53 | Z186: 91527388.53 | AA186: 91527388.53 | AB186: 91527388.53 | AC186: 91527388.53 | AD186: 91527388.53 | AE186: 91527388.53 | AF186: 91527388.53 | AG186: 91527388.53 | AH186: 91527388.53 | AI186: 91527388.53 | AJ186: 91527388.53 | AK186: 91527388.53 | AL186: 91527388.53 | AM186: 91527388.53 | AN186: 91527388.53 | AO186: 0 | AP186: 0 | AQ186: 0 | AR186: 0 | AS186: 0 | AT186: 0 | AU186: 0 | AV186: 0 | AW186: 0 | AX186: 0 | AY186: 0
D187: Closing Balance | E187: $ | J187: =J183+J184+J185-J186 -> 862820863 | K187: =K183+K184+K185-K186 -> 857575560.8 | L187: 851805728.3 | M187: 845458912.7 | N187: 838477415.4 | O187: 830797768.4 | P187: 822350156.7 | Q187: 813057783.9 | R187: 802836173.7 | S187: 791592402.6 | T187: 779224254.3 | U187: 765619291.2 | V187: 750653831.8 | W187: 734191826.5 | X187: 716083620.6 | Y187: 696164594.1 | Z187: 674253665 | AA187: 650151643 | AB187: 623639418.8 | AC187: 594475972.1 | AD187: 562396180.8 | AE187: 527108410.4 | AF187: 488291862.9 | AG187: 445593660.6 | AH187: 398625638.2 | AI187: 346960813.5 | AJ187: 290129506.3 | AK187: 227615068.4 | AL187: 158849186.7 | AM187: 83206716.84 | AN187: 3.427267075e-07 | AO187: 3.427267075e-07 | AP187: 3.427267075e-07 | AQ187: 3.427267075e-07 | AR187: 3.427267075e-07 | AS187: 3.427267075e-07 | AT187: 3.427267075e-07 | AU187: 3.427267075e-07 | AV187: 3.427267075e-07 | AW187: 3.427267075e-07 | AX187: 3.427267075e-07 | AY187: 3.427267075e-07
D188: Liabilities and Capital | E188: $ | J188: =J182+J187 -> 862820863 | K188: =K182+K187 -> 857575560.8 | L188: 851805728.3 | M188: 845458912.7 | N188: 838477415.4 | O188: 830797768.4 | P188: 822350156.7 | Q188: 813057783.9 | R188: 802836173.7 | S188: 791592402.6 | T188: 779224254.3 | U188: 765619291.2 | V188: 750653831.8 | W188: 734191826.5 | X188: 716083620.6 | Y188: 696164594.1 | Z188: 674253665 | AA188: 650151643 | AB188: 623639418.8 | AC188: 594475972.1 | AD188: 562396180.8 | AE188: 527108410.4 | AF188: 488291862.9 | AG188: 445593660.6 | AH188: 398625638.2 | AI188: 346960813.5 | AJ188: 290129506.3 | AK188: 227615068.4 | AL188: 158849186.7 | AM188: 83206716.84 | AN188: 3.427267075e-07 | AO188: 3.427267075e-07 | AP188: 3.427267075e-07 | AQ188: 3.427267075e-07 | AR188: 3.427267075e-07 | AS188: 3.427267075e-07 | AT188: 3.427267075e-07 | AU188: 3.427267075e-07 | AV188: 3.427267075e-07 | AW188: 3.427267075e-07 | AX188: 3.427267075e-07 | AY188: 3.427267075e-07
D190: Return on Equity | E190: % | K190: =IFERROR(K154/K183,0) -> 0.1 | L190: =IFERROR(L154/L183,0) -> 0.1 | M190: 0.1 | N190: 0.1 | O190: 0.1 | P190: 0.1 | Q190: 0.1 | R190: 0.1 | S190: 0.1 | T190: 0.1 | U190: 0.1 | V190: 0.1 | W190: 0.1 | X190: 0.1 | Y190: 0.1 | Z190: 0.1 | AA190: 0.1 | AB190: 0.1 | AC190: 0.1 | AD190: 0.1 | AE190: 0.1 | AF190: 0.1 | AG190: 0.1 | AH190: 0.1 | AI190: 0.1 | AJ190: 0.1 | AK190: 0.1 | AL190: 0.1 | AM190: 0.1 | AN190: 0.1 | AO190: 0 | AP190: 0 | AQ190: 0 | AR190: 0 | AS190: 0 | AT190: 0 | AU190: 0 | AV190: 0 | AW190: 0 | AX190: 0 | AY190: 0
D192: Debt to Capital | F192: =Inputs!F123 -> 0 | J192: =$F$192 -> 0 | K192: =K182/K180 -> 0 | L192: =L182/L180 -> 0 | M192: 0 | N192: 0 | O192: 0 | P192: 0 | Q192: 0 | R192: 0 | S192: 0 | T192: 0 | U192: 0 | V192: 0 | W192: 0 | X192: 0 | Y192: 0 | Z192: 0 | AA192: 0 | AB192: 0 | AC192: 0 | AD192: 0 | AE192: 0 | AF192: 0 | AG192: 0 | AH192: 0 | AI192: 0 | AJ192: 0 | AK192: 0 | AL192: 0 | AM192: 0
D193: Debt Amount | J193: =J192*J180 -> 0 | K193: =K192*K180 -> 0 | L193: 0 | M193: 0 | N193: 0 | O193: 0 | P193: 0 | Q193: 0 | R193: 0 | S193: 0 | T193: 0 | U193: 0 | V193: 0 | W193: 0 | X193: 0 | Y193: 0 | Z193: 0 | AA193: 0 | AB193: 0 | AC193: 0 | AD193: 0 | AE193: 0 | AF193: 0 | AG193: 0 | AH193: 0 | AI193: 0 | AJ193: 0 | AK193: 0 | AL193: 0 | AM193: 0
D194: Equity Amount | K194: =J193-K193 -> 0 | L194: =K193-L193 -> 0 | M194: 0 | N194: 0 | O194: 0 | P194: 0 | Q194: 0 | R194: 0 | S194: 0 | T194: 0 | U194: 0 | V194: 0 | W194: 0 | X194: 0 | Y194: 0 | Z194: 0 | AA194: 0 | AB194: 0 | AC194: 0 | AD194: 0 | AE194: 0 | AF194: 0 | AG194: 0 | AH194: 0 | AI194: 0 | AJ194: 0 | AK194: 0 | AL194: 0 | AM194: 0
C196: Bottoms-Up Method
D197: After-tax WACC
D198: Rate Base
D199: Net Operating Income After Tax
D200: Add: Operating Expense
D201: Required Revenues
D203: Production
D204: Total Tariff | E204: $/kg
D205: Less: O&M Tariff | E205: $/kg
D206: Less: Feedstock Tariff | E206: $/kg
D207: Add: 45Q Credit Tariff | E207: $/kg
D208: Implied Capital Recovery Tariff | E208: $/kg
C210: Graphs
K211: =IF(K4,K2,NA()) -> 1 | L211: 2 | M211: 3 | N211: 4 | O211: 5 | P211: 6 | Q211: 7 | R211: 8 | S211: 9 | T211: 10 | U211: 11 | V211: 12 | W211: 13 | X211: 14 | Y211: 15 | Z211: 16 | AA211: 17 | AB211: 18 | AC211: 19 | AD211: 20 | AE211: 21 | AF211: 22 | AG211: 23 | AH211: 24 | AI211: 25 | AJ211: 26 | AK211: 27 | AL211: 28 | AM211: 29 | AN211: 30
D212: Net Cash Flow | K212: =K173 -> 91527388.53 | L212: =L173 -> 91527388.53 | M212: 91527388.53 | N212: 91527388.53 | O212: 91527388.53 | P212: 91527388.53 | Q212: 91527388.53 | R212: 91527388.53 | S212: 91527388.53 | T212: 91527388.53 | U212: 91527388.53 | V212: 91527388.53 | W212: 91527388.53 | X212: 91527388.53 | Y212: 91527388.53 | Z212: 91527388.53 | AA212: 91527388.53 | AB212: 91527388.53 | AC212: 91527388.53 | AD212: 91527388.53 | AE212: 91527388.53 | AF212: 91527388.53 | AG212: 91527388.53 | AH212: 91527388.53 | AI212: 91527388.53 | AJ212: 91527388.53 | AK212: 91527388.53 | AL212: 91527388.53 | AM212: 91527388.53 | AN212: 91527388.53 | AO212: 0 | AP212: 0 | AQ212: 0 | AR212: 0 | AS212: 0 | AT212: 0 | AU212: 0 | AV212: 0 | AW212: 0 | AX212: 0 | AY212: 0
K213: =K211 -> 1 | L213: =L211 -> 2 | M213: 3 | N213: 4 | O213: 5 | P213: 6 | Q213: 7 | R213: 8 | S213: 9 | T213: 10 | U213: 11 | V213: 12 | W213: 13 | X213: 14 | Y213: 15 | Z213: 16 | AA213: 17 | AB213: 18 | AC213: 19 | AD213: 20 | AE213: 21 | AF213: 22 | AG213: 23 | AH213: 24 | AI213: 25 | AJ213: 26 | AK213: 27 | AL213: 28 | AM213: 29 | AN213: 30
D214: Return on Equity | K214: =K190 -> 0.1 | L214: =L190 -> 0.1 | M214: 0.1 | N214: 0.1 | O214: 0.1 | P214: 0.1 | Q214: 0.1 | R214: 0.1 | S214: 0.1 | T214: 0.1 | U214: 0.1 | V214: 0.1 | W214: 0.1 | X214: 0.1 | Y214: 0.1 | Z214: 0.1 | AA214: 0.1 | AB214: 0.1 | AC214: 0.1 | AD214: 0.1 | AE214: 0.1 | AF214: 0.1 | AG214: 0.1 | AH214: 0.1 | AI214: 0.1 | AJ214: 0.1 | AK214: 0.1 | AL214: 0.1 | AM214: 0.1 | AN214: 0.1 | AO214: 0 | AP214: 0 | AQ214: 0 | AR214: 0 | AS214: 0 | AT214: 0 | AU214: 0 | AV214: 0 | AW214: 0 | AX214: 0 | AY214: 0
B216: Case with Separate Components
D218: Inflation Index Applied | F218: =F28 -> FALSE | J218: =J28 -> 0 | K218: 1 | L218: 1 | M218: 1 | N218: 1 | O218: 1 | P218: 1 | Q218: 1 | R218: 1 | S218: 1 | T218: 1 | U218: 1 | V218: 1 | W218: 1 | X218: 1 | Y218: 1 | Z218: 1 | AA218: 1 | AB218: 1 | AC218: 1 | AD218: 1 | AE218: 1 | AF218: 1 | AG218: 1 | AH218: 1 | AI218: 1 | AJ218: 1 | AK218: 1 | AL218: 1 | AM218: 1 | AN218: 1 | AO218: 1 | AP218: 1 | AQ218: 1 | AR218: 1 | AS218: 1 | AT218: 1 | AU218: 1 | AV218: 1 | AW218: 1 | AX218: 1 | AY218: 1
D220: Tolling Charge (no Credit) | E220: $/kg H2 | F220: =Inputs!F141 -> 0.3672848657 | K220: =$F$220*K218 -> 0.3672848657 | L220: =$F$220*L218 -> 0.3672848657 | M220: 0.3672848657 | N220: 0.3672848657 | O220: 0.3672848657 | P220: 0.3672848657 | Q220: 0.3672848657 | R220: 0.3672848657 | S220: 0.3672848657 | T220: 0.3672848657 | U220: 0.3672848657 | V220: 0.3672848657 | W220: 0.3672848657 | X220: 0.3672848657 | Y220: 0.3672848657 | Z220: 0.3672848657 | AA220: 0.3672848657 | AB220: 0.3672848657 | AC220: 0.3672848657 | AD220: 0.3672848657 | AE220: 0.3672848657 | AF220: 0.3672848657 | AG220: 0.3672848657 | AH220: 0.3672848657 | AI220: 0.3672848657 | AJ220: 0.3672848657 | AK220: 0.3672848657 | AL220: 0.3672848657 | AM220: 0.3672848657 | AN220: 0.3672848657 | AO220: 0.3672848657 | AP220: 0.3672848657 | AQ220: 0.3672848657 | AR220: 0.3672848657 | AS220: 0.3672848657 | AT220: 0.3672848657 | AU220: 0.3672848657 | AV220: 0.3672848657 | AW220: 0.3672848657 | AX220: 0.3672848657 | AY220: 0.3672848657
D221: Fixed O&M Charge | E221: $/kg H2 | F221: =Inputs!F142 -> 0.1627310616 | K221: =$F$221*K218 -> 0.1627310616 | L221: =$F$221*L218 -> 0.1627310616 | M221: 0.1627310616 | N221: 0.1627310616 | O221: 0.1627310616 | P221: 0.1627310616 | Q221: 0.1627310616 | R221: 0.1627310616 | S221: 0.1627310616 | T221: 0.1627310616 | U221: 0.1627310616 | V221: 0.1627310616 | W221: 0.1627310616 | X221: 0.1627310616 | Y221: 0.1627310616 | Z221: 0.1627310616 | AA221: 0.1627310616 | AB221: 0.1627310616 | AC221: 0.1627310616 | AD221: 0.1627310616 | AE221: 0.1627310616 | AF221: 0.1627310616 | AG221: 0.1627310616 | AH221: 0.1627310616 | AI221: 0.1627310616 | AJ221: 0.1627310616 | AK221: 0.1627310616 | AL221: 0.1627310616 | AM221: 0.1627310616 | AN221: 0.1627310616 | AO221: 0.1627310616 | AP221: 0.1627310616 | AQ221: 0.1627310616 | AR221: 0.1627310616 | AS221: 0.1627310616 | AT221: 0.1627310616 | AU221: 0.1627310616 | AV221: 0.1627310616 | AW221: 0.1627310616 | AX221: 0.1627310616 | AY221: 0.1627310616
D222: Feedstock Passthrough Charge | E222: $/kg H2 | F222: =Inputs!F143 -> 0.5985611905 | K222: =$F$222*K218 -> 0.5985611905 | L222: 0.5985611905 | M222: 0.5985611905 | N222: 0.5985611905 | O222: 0.5985611905 | P222: 0.5985611905 | Q222: 0.5985611905 | R222: 0.5985611905 | S222: 0.5985611905 | T222: 0.5985611905 | U222: 0.5985611905 | V222: 0.5985611905 | W222: 0.5985611905 | X222: 0.5985611905 | Y222: 0.5985611905 | Z222: 0.5985611905 | AA222: 0.5985611905 | AB222: 0.5985611905 | AC222: 0.5985611905 | AD222: 0.5985611905 | AE222: 0.5985611905 | AF222: 0.5985611905 | AG222: 0.5985611905 | AH222: 0.5985611905 | AI222: 0.5985611905 | AJ222: 0.5985611905 | AK222: 0.5985611905 | AL222: 0.5985611905 | AM222: 0.5985611905 | AN222: 0.5985611905 | AO222: 0.5985611905 | AP222: 0.5985611905 | AQ222: 0.5985611905 | AR222: 0.5985611905 | AS222: 0.5985611905 | AT222: 0.5985611905 | AU222: 0.5985611905 | AV222: 0.5985611905 | AW222: 0.5985611905 | AX222: 0.5985611905 | AY222: 0.5985611905
D223: Credit for 45Q over 10 Years | E223: $/kg H2 | F223: =Inputs!F149 -> 0 | K223: =$F$223*K5*K218 -> 0 | L223: 0 | M223: 0 | N223: 0 | O223: 0 | P223: 0 | Q223: 0 | R223: 0 | S223: 0 | T223: 0 | U223: 0 | V223: 0 | W223: 0 | X223: 0 | Y223: 0 | Z223: 0 | AA223: 0 | AB223: 0 | AC223: 0 | AD223: 0 | AE223: 0 | AF223: 0 | AG223: 0 | AH223: 0 | AI223: 0 | AJ223: 0 | AK223: 0 | AL223: 0 | AM223: 0 | AN223: 0 | AO223: 0 | AP223: 0 | AQ223: 0 | AR223: 0 | AS223: 0 | AT223: 0 | AU223: 0 | AV223: 0 | AW223: 0 | AX223: 0 | AY223: 0
D224: Total | E224: $/kg H2 | K224: =SUM(K220:K223) -> 1.128577118 | L224: =SUM(L220:L223) -> 1.128577118 | M224: 1.128577118 | N224: 1.128577118 | O224: 1.128577118 | P224: 1.128577118 | Q224: 1.128577118 | R224: 1.128577118 | S224: 1.128577118 | T224: 1.128577118 | U224: 1.128577118 | V224: 1.128577118 | W224: 1.128577118 | X224: 1.128577118 | Y224: 1.128577118 | Z224: 1.128577118 | AA224: 1.128577118 | AB224: 1.128577118 | AC224: 1.128577118 | AD224: 1.128577118 | AE224: 1.128577118 | AF224: 1.128577118 | AG224: 1.128577118 | AH224: 1.128577118 | AI224: 1.128577118 | AJ224: 1.128577118 | AK224: 1.128577118 | AL224: 1.128577118 | AM224: 1.128577118 | AN224: 1.128577118 | AO224: 1.128577118 | AP224: 1.128577118 | AQ224: 1.128577118 | AR224: 1.128577118 | AS224: 1.128577118 | AT224: 1.128577118 | AU224: 1.128577118 | AV224: 1.128577118 | AW224: 1.128577118 | AX224: 1.128577118 | AY224: 1.128577118
D226: Total Revenues from Total Toll | E226: $ | I226: =SUM(K226:XFD226) -> 2745821656 | K226: =K220*K9 -> 91527388.53 | L226: 91527388.53 | M226: 91527388.53 | N226: 91527388.53 | O226: 91527388.53 | P226: 91527388.53 | Q226: 91527388.53 | R226: 91527388.53 | S226: 91527388.53 | T226: 91527388.53 | U226: 91527388.53 | V226: 91527388.53 | W226: 91527388.53 | X226: 91527388.53 | Y226: 91527388.53 | Z226: 91527388.53 | AA226: 91527388.53 | AB226: 91527388.53 | AC226: 91527388.53 | AD226: 91527388.53 | AE226: 91527388.53 | AF226: 91527388.53 | AG226: 91527388.53 | AH226: 91527388.53 | AI226: 91527388.53 | AJ226: 91527388.53 | AK226: 91527388.53 | AL226: 91527388.53 | AM226: 91527388.53 | AN226: 91527388.53 | AO226: 0 | AP226: 0 | AQ226: 0 | AR226: 0 | AS226: 0 | AT226: 0 | AU226: 0 | AV226: 0 | AW226: 0 | AX226: 0 | AY226: 0
D227: Fixed O&M Revenue | E227: $ | I227: =SUM(K227:XFD227) -> 1216577417 | K227: =K221*K9 -> 40552580.56 | L227: 40552580.56 | M227: 40552580.56 | N227: 40552580.56 | O227: 40552580.56 | P227: 40552580.56 | Q227: 40552580.56 | R227: 40552580.56 | S227: 40552580.56 | T227: 40552580.56 | U227: 40552580.56 | V227: 40552580.56 | W227: 40552580.56 | X227: 40552580.56 | Y227: 40552580.56 | Z227: 40552580.56 | AA227: 40552580.56 | AB227: 40552580.56 | AC227: 40552580.56 | AD227: 40552580.56 | AE227: 40552580.56 | AF227: 40552580.56 | AG227: 40552580.56 | AH227: 40552580.56 | AI227: 40552580.56 | AJ227: 40552580.56 | AK227: 40552580.56 | AL227: 40552580.56 | AM227: 40552580.56 | AN227: 40552580.56 | AO227: 0 | AP227: 0 | AQ227: 0 | AR227: 0 | AS227: 0 | AT227: 0 | AU227: 0 | AV227: 0 | AW227: 0 | AX227: 0 | AY227: 0
D228: Feedstock Revenue | E228: $ | I228: =SUM(K228:XFD228) -> 4474843460 | K228: =K222*K11 -> 149161448.7 | L228: 149161448.7 | M228: 149161448.7 | N228: 149161448.7 | O228: 149161448.7 | P228: 149161448.7 | Q228: 149161448.7 | R228: 149161448.7 | S228: 149161448.7 | T228: 149161448.7 | U228: 149161448.7 | V228: 149161448.7 | W228: 149161448.7 | X228: 149161448.7 | Y228: 149161448.7 | Z228: 149161448.7 | AA228: 149161448.7 | AB228: 149161448.7 | AC228: 149161448.7 | AD228: 149161448.7 | AE228: 149161448.7 | AF228: 149161448.7 | AG228: 149161448.7 | AH228: 149161448.7 | AI228: 149161448.7 | AJ228: 149161448.7 | AK228: 149161448.7 | AL228: 149161448.7 | AM228: 149161448.7 | AN228: 149161448.7 | AO228: 0 | AP228: 0 | AQ228: 0 | AR228: 0 | AS228: 0 | AT228: 0 | AU228: 0 | AV228: 0 | AW228: 0 | AX228: 0 | AY228: 0
D229: Credit for 45Q over 10 Years | E229: $ | I229: =SUM(K229:XFD229) -> 0 | K229: =K223*K9 -> 0 | L229: 0 | M229: 0 | N229: 0 | O229: 0 | P229: 0 | Q229: 0 | R229: 0 | S229: 0 | T229: 0 | U229: 0 | V229: 0 | W229: 0 | X229: 0 | Y229: 0 | Z229: 0 | AA229: 0 | AB229: 0 | AC229: 0 | AD229: 0 | AE229: 0 | AF229: 0 | AG229: 0 | AH229: 0 | AI229: 0 | AJ229: 0 | AK229: 0 | AL229: 0 | AM229: 0 | AN229: 0 | AO229: 0 | AP229: 0 | AQ229: 0 | AR229: 0 | AS229: 0 | AT229: 0 | AU229: 0 | AV229: 0 | AW229: 0 | AX229: 0 | AY229: 0
D230: Revenue | I230: =SUM(K230:XFD230) -> 8437242533 | K230: =SUM(K226:K229) -> 281241417.8 | L230: =SUM(L226:L229) -> 281241417.8 | M230: 281241417.8 | N230: 281241417.8 | O230: 281241417.8 | P230: 281241417.8 | Q230: 281241417.8 | R230: 281241417.8 | S230: 281241417.8 | T230: 281241417.8 | U230: 281241417.8 | V230: 281241417.8 | W230: 281241417.8 | X230: 281241417.8 | Y230: 281241417.8 | Z230: 281241417.8 | AA230: 281241417.8 | AB230: 281241417.8 | AC230: 281241417.8 | AD230: 281241417.8 | AE230: 281241417.8 | AF230: 281241417.8 | AG230: 281241417.8 | AH230: 281241417.8 | AI230: 281241417.8 | AJ230: 281241417.8 | AK230: 281241417.8 | AL230: 281241417.8 | AM230: 281241417.8 | AN230: 281241417.8 | AO230: 0 | AP230: 0 | AQ230: 0 | AR230: 0 | AS230: 0 | AT230: 0 | AU230: 0 | AV230: 0 | AW230: 0 | AX230: 0 | AY230: 0
D233: Revenues | K233: =K230 -> 281241417.8 | L233: =L230 -> 281241417.8 | M233: 281241417.8 | N233: 281241417.8 | O233: 281241417.8 | P233: 281241417.8 | Q233: 281241417.8 | R233: 281241417.8 | S233: 281241417.8 | T233: 281241417.8 | U233: 281241417.8 | V233: 281241417.8 | W233: 281241417.8 | X233: 281241417.8 | Y233: 281241417.8 | Z233: 281241417.8 | AA233: 281241417.8 | AB233: 281241417.8 | AC233: 281241417.8 | AD233: 281241417.8 | AE233: 281241417.8 | AF233: 281241417.8 | AG233: 281241417.8 | AH233: 281241417.8 | AI233: 281241417.8 | AJ233: 281241417.8 | AK233: 281241417.8 | AL233: 281241417.8 | AM233: 281241417.8 | AN233: 281241417.8 | AO233: 0 | AP233: 0 | AQ233: 0 | AR233: 0 | AS233: 0 | AT233: 0 | AU233: 0 | AV233: 0 | AW233: 0 | AX233: 0 | AY233: 0
D234: Total O&M | K234: =K146 -> 189714029.2 | L234: =L146 -> 189714029.2 | M234: 189714029.2 | N234: 189714029.2 | O234: 189714029.2 | P234: 189714029.2 | Q234: 189714029.2 | R234: 189714029.2 | S234: 189714029.2 | T234: 189714029.2 | U234: 189714029.2 | V234: 189714029.2 | W234: 189714029.2 | X234: 189714029.2 | Y234: 189714029.2 | Z234: 189714029.2 | AA234: 189714029.2 | AB234: 189714029.2 | AC234: 189714029.2 | AD234: 189714029.2 | AE234: 189714029.2 | AF234: 189714029.2 | AG234: 189714029.2 | AH234: 189714029.2 | AI234: 189714029.2 | AJ234: 189714029.2 | AK234: 189714029.2 | AL234: 189714029.2 | AM234: 189714029.2 | AN234: 189714029.2 | AO234: 0 | AP234: 0 | AQ234: 0 | AR234: 0 | AS234: 0 | AT234: 0 | AU234: 0 | AV234: 0 | AW234: 0 | AX234: 0 | AY234: 0
D235: Credits Received | K235: =K108 -> 0 | L235: 0 | M235: 0 | N235: 0 | O235: 0 | P235: 0 | Q235: 0 | R235: 0 | S235: 0 | T235: 0 | U235: 0 | V235: 0 | W235: 0 | X235: 0 | Y235: 0 | Z235: 0 | AA235: 0 | AB235: 0 | AC235: 0 | AD235: 0 | AE235: 0 | AF235: 0 | AG235: 0 | AH235: 0 | AI235: 0 | AJ235: 0 | AK235: 0 | AL235: 0 | AM235: 0 | AN235: 0 | AO235: 0 | AP235: 0 | AQ235: 0 | AR235: 0 | AS235: 0 | AT235: 0 | AU235: 0 | AV235: 0 | AW235: 0 | AX235: 0 | AY235: 0
D236: Total Pre-tax Cash Flow | J236: =J162 -> -862820863 | K236: =K233-K234+K235 -> 91527388.53 | L236: =L233-L234+L235 -> 91527388.53 | M236: 91527388.53 | N236: 91527388.53 | O236: 91527388.53 | P236: 91527388.53 | Q236: 91527388.53 | R236: 91527388.53 | S236: 91527388.53 | T236: 91527388.53 | U236: 91527388.53 | V236: 91527388.53 | W236: 91527388.53 | X236: 91527388.53 | Y236: 91527388.53 | Z236: 91527388.53 | AA236: 91527388.53 | AB236: 91527388.53 | AC236: 91527388.53 | AD236: 91527388.53 | AE236: 91527388.53 | AF236: 91527388.53 | AG236: 91527388.53 | AH236: 91527388.53 | AI236: 91527388.53 | AJ236: 91527388.53 | AK236: 91527388.53 | AL236: 91527388.53 | AM236: 91527388.53 | AN236: 91527388.53 | AO236: 0 | AP236: 0 | AQ236: 0 | AR236: 0 | AS236: 0 | AT236: 0 | AU236: 0 | AV236: 0 | AW236: 0 | AX236: 0 | AY236: 0
D237: Pre-tax IRR | F237: =IRR(J236:AY236) -> 0.1
K239: =K2 -> 1 | L239: 2 | M239: 3 | N239: 4 | O239: 5 | P239: 6 | Q239: 7 | R239: 8 | S239: 9 | T239: 10 | U239: 11 | V239: 12 | W239: 13 | X239: 14 | Y239: 15 | Z239: 16 | AA239: 17 | AB239: 18 | AC239: 19 | AD239: 20 | AE239: 21 | AF239: 22 | AG239: 23 | AH239: 24 | AI239: 25 | AJ239: 26 | AK239: 27 | AL239: 28 | AM239: 29 | AN239: 30 | AO239: 31 | AP239: 32 | AQ239: 33 | AR239: 34 | AS239: 35 | AT239: 36 | AU239: 37 | AV239: 38 | AW239: 39 | AX239: 40 | AY239: 41
D240: EBITDA | K240: =K233-K234+K235 -> 91527388.53 | L240: =L233-L234+L235 -> 91527388.53 | M240: 91527388.53 | N240: 91527388.53 | O240: 91527388.53 | P240: 91527388.53 | Q240: 91527388.53 | R240: 91527388.53 | S240: 91527388.53 | T240: 91527388.53 | U240: 91527388.53 | V240: 91527388.53 | W240: 91527388.53 | X240: 91527388.53 | Y240: 91527388.53 | Z240: 91527388.53 | AA240: 91527388.53 | AB240: 91527388.53 | AC240: 91527388.53 | AD240: 91527388.53 | AE240: 91527388.53 | AF240: 91527388.53 | AG240: 91527388.53 | AH240: 91527388.53 | AI240: 91527388.53 | AJ240: 91527388.53 | AK240: 91527388.53 | AL240: 91527388.53 | AM240: 91527388.53 | AN240: 91527388.53 | AO240: =AO233-AO234+AO235 -> 0 | AP240: 0 | AQ240: 0 | AR240: 0 | AS240: 0 | AT240: 0 | AU240: 0 | AV240: 0 | AW240: 0 | AX240: 0 | AY240: 0
D242: Equity Return | E242: 100
D243: Revenue | E243: =E242/(1-F243) -> 133.3333333 | F243: 0.25
E245: =E243 -> 133.3333333
E246: =E245*F243 -> 33.33333333
E247: =E245-E246 -> 100
C250: Real and Nominal LCOH from NPV of Revenues/NPV of Production
D251: Real LCOH
D252: NPV of Revenues | F252: =Inputs!F125 -> 0.1 | G252: =NPV(F252,K230:AY230) -> 2651238790
D253: NPV of Quantity for Real LCOE | F253: =Inputs!F126 -> 0.1 | G253: =NPV(F253,K9:AN9) -> 2349187085
D254: LCOH - Real | G254: =G252/G253 -> 1.128577118
D255: Computed LCOH | G255: =Inputs!F147 -> 1.128577118 | H255: =G255=G254 -> TRUE
D257: Nominal LCOH
D258: NPV of Revenues | G258: =G252 -> 2651238790
D259: NPV of Quantity for Real LCOE | F259: =F252 -> 0.1 | G259: =NPV(F259,K11:AY11) -> 2349187085
D260: LCOH - Nominal | G260: =G258/G259 -> 1.128577118
... 77 more rows

Sheet Synthesizer and Ammonia LCOH
B3: Production
C4: Ammonia Production | E4: NH3 tPA | H4: =Inputs!H14 -> 1400000 | I4: =Inputs!L14 -> 1400000 | J4: =Inputs!U14 -> 1400000
C5: Conversion | E5: H2/NH3 | H5: =Inputs!H15 -> 178 | I5: =Inputs!L15 -> 178 | J5: =Inputs!U15 -> 178
C6: Required Hydrogen | E6: H2 | H6: =H4*H5 -> 249200000 | I6: =I4*I5 -> 249200000 | J6: =J4*J5 -> 249200000
C11: Levelized Cost of Hydrogen | E11: USD/kgH2
C13: Synthesizer Capital Expenditures | E13: USD/MH3
C14: Added Energy for Synthesizer | E14: %
C15: Added Energy in NG | E15: MMBTU
C16: Added Energy in Electricity | E16: kWh
C18: Synthesizer Operating Cost | E18: %
C19: Synthesizer Operating Cost | E19: USD

Sheet Synthesyzer Financial Model

Sheet Consolidated Ammonia Model

Sheet LCOH Methods
C5: Method 1 | D5: Use PMT over life of project, 30 years
C6: Method 2 | D6: Use NPV of revenues devided by NPV of quantity, use PreTax WACC as rate
C7: Method 3 | D7: capex + NPV of Opex/ NPV of quantity
C9: All should yeild same results

Sheet WACC
F3: =Inputs!L115 -> 0 | H3: =Inputs!L118 -> 0.1 | I3: =H3*D6+D5*E5 -> 0.1
D4: % | E4: Pretax Cost | F4: Atax Cost | G4: Atax WACC | H4: Ptax WACC
C5: Debt | D5: =Inputs!L123 -> 0 | E5: =Inputs!L120 -> 0.05 | F5: =E5*(1-F3) -> 0.05 | G5: =F5*D5 -> 0 | H5: =H3*D6 -> 0.1 | I5: =H3*D6+D5*E5*(1-F3) -> 0.1
C6: Equity | D6: =1-D5 -> 1 | E6: =Inputs!L118 -> 0.1 | F6: =E6 -> 0.1 | G6: =F6*D6 -> 0.1 | H6: =E5*D5 -> 0
C7: Total | D7: =SUM(D5:D6) -> 1 | G7: =SUM(G5:G6) -> 0.1 | H7: =SUM(H5:H6) -> 0.1

Sheet Other IEA
O5: 33.33
O6: 1820
P44: 2822 | Q44: =P44/8760 -> 0.3221461187
